Workbook

Sheet Photos
B2: Pilotes | F2: Autos | J2: Logos | N2: Champions Pilotes | R2: Champions Voitures
B3: Noms | D3: Photos | F3: Noms | H3: Photos | J3: Noms | L3: Photos | N3: Noms | P3: Drapeaux | R3: Noms | T3: Drapeaux
B4: HAMILTON Lewis | C4: ="Photos!"&ADDRESS(ROW(C4),COLUMN(D4)) -> Photos!$D$4 | F4: MERCEDES | G4: ="Photos!"&ADDRESS(ROW(G4),COLUMN(H4)) -> Photos!$H$4 | J4: MERCEDES | K4: ="Photos!"&ADDRESS(ROW(K4),COLUMN(L4)) -> Photos!$L$4 | N4: HAMILTON Lewis | O4: ="Photos!"&ADDRESS(ROW(O4),COLUMN(P4)) -> Photos!$P$4 | R4: MERCEDES | S4: ="Photos!"&ADDRESS(ROW(S4),COLUMN(T4)) -> Photos!$T$4
B5: RUSSELL George | C5: Photos!$D$5 | F5: FERRARI | G5: Photos!$H$5 | J5: FERRARI | K5: ="Photos!"&ADDRESS(ROW(K5),COLUMN(L5)) -> Photos!$L$5 | N5: RUSSELL George | O5: Photos!$P$5 | R5: FERRARI | S5: Photos!$T$5
B6: LECLERC Charles | C6: Photos!$D$6 | F6: RED BULL RACING | G6: Photos!$H$6 | J6: RED BULL RACING | K6: Photos!$L$6 | N6: LECLERC Charles | O6: Photos!$P$6 | R6: RED BULL RACING | S6: Photos!$T$6
B7: SAINZ.Jr Carlos | C7: Photos!$D$7 | F7: ASTON MARTIN | G7: Photos!$H$7 | J7: ASTON MARTIN | K7: Photos!$L$7 | N7: SAINZ.Jr Carlos | O7: Photos!$P$7 | R7: ASTON MARTIN | S7: Photos!$T$7
B8: VERSTAPPEN Max | C8: Photos!$D$8 | F8: WILLIAMS | G8: Photos!$H$8 | J8: WILLIAMS | K8: Photos!$L$8 | N8: VERSTAPPEN Max | O8: Photos!$P$8 | R8: WILLIAMS | S8: Photos!$T$8
B9: PEREZ Sergio | C9: Photos!$D$9 | F9: ALPINE F1 TEAM | G9: Photos!$H$9 | J9: ALPINE F1 TEAM | K9: Photos!$L$9 | N9: PEREZ Sergio | O9: Photos!$P$9 | R9: ALPINE F1 TEAM | S9: Photos!$T$9
B10: STROLL Lance | C10: Photos!$D$10 | F10: ALPHA TAURI | G10: Photos!$H$10 | J10: ALPHA TAURI | K10: Photos!$L$10 | N10: STROLL Lance | O10: Photos!$P$10 | R10: ALPHA TAURI | S10: Photos!$T$10
B11: ALONSO Fernando | C11: Photos!$D$11 | F11: HAAS | G11: Photos!$H$11 | J11: HAAS | K11: Photos!$L$11 | N11: ALONSO Fernando | O11: Photos!$P$11 | R11: HAAS | S11: Photos!$T$11
B12: SARGEANT Logan | C12: Photos!$D$12 | F12: Mc LAREN | G12: Photos!$H$12 | J12: Mc LAREN | K12: Photos!$L$12 | N12: SARGEANT Logan | O12: Photos!$P$12 | R12: Mc LAREN | S12: Photos!$T$12
B13: ALBON Alexander | C13: Photos!$D$13 | F13: ALFA ROMÉO | G13: Photos!$H$13 | J13: ALFA ROMÉO | K13: Photos!$L$13 | N13: ALBON Alexander | O13: Photos!$P$13 | R13: ALFA ROMÉO | S13: Photos!$T$13
B14: GASLY Pierre | C14: Photos!$D$14 | N14: GASLY Pierre | O14: Photos!$P$14
B15: OCON Sebastian | C15: Photos!$D$15 | N15: OCON Sebastian | O15: Photos!$P$15
B16: TSUNODA Yuki | C16: Photos!$D$16 | N16: TSUNODA Yoki | O16: Photos!$P$16
B17: DEVRIES Nyck | C17: Photos!$D$17 | N17: DEVRIES Nyck | O17: Photos!$P$17
B18: HULKENBERG Nico | C18: Photos!$D$18 | N18: HULKENBERG Nico | O18: Photos!$P$18
B19: MAGNUSSEN Kevin | C19: Photos!$D$19 | N19: MAGNUSSEN Kevin | O19: Photos!$P$19
B20: NORRIS Lando | C20: Photos!$D$20 | N20: NORRIS Lando | O20: Photos!$P$20
B21: PIASTRI Oscar | C21: Photos!$D$21 | N21: PIASTRI Oscar | O21: Photos!$P$21
B22: BOTTAS Valtteri | C22: Photos!$D$22 | N22: BOTTAS Valtteri | O22: Photos!$P$22
B23: GUANYU Zhou | C23: Photos!$D$23 | N23: GUANYU Zhou | O23: Photos!$P$23
B24: RICCIARDO Daniel | C24: Photos!$D$24 | N24: DUGROVICH Felipe | O24: Photos!$P$24
B25: LAWSON LIAM | C25: Photos!$D$25 | O25: Photos!$P$25
C26: Photos!$D$26 | O26: Photos!$P$26
C27: ="Photos!"&ADDRESS(ROW(C27),COLUMN(D27)) -> Photos!$D$27 | O27: ="Photos!"&ADDRESS(ROW(O27),COLUMN(P27)) -> Photos!$P$27

Sheet Champions
C4: CHAMPIONNAT PILOTES 2023
F8: CHAMPION 2023
F9: =Pilotes!$B$5 -> VERSTAPPEN Max
B11: DEUXIÈME | J11: TROIXIÈME
B12: =Pilotes!$B$6 -> PEREZ Sergio | J12: =Pilotes!$B$7 -> HAMILTON Lewis
C28: CHAMPIONNAT CONSTRUCTEURS 2023
F34: CHAMPION 2023
F35: =Écuries!$C$4 -> RED BULL RACING
B37: DEUXIÈME | J37: TROIXIÈME
B38: =Écuries!$C$5 -> MERCEDES | J38: =Écuries!$C$6 -> FERRARI

Sheet Écuries
C3: ÉCURIES | D3: POINTS | E3: Écart/premier | F3: Écart/précédent | G3: RANG
C4: RED BULL RACING | D4: =SUM(Bahrein:AbuDhabi!$G$11:$G$13) -> 822 | G4: =IF(D4="",0,(RANK(D4,$D$4:$D$13))) -> 1
C5: MERCEDES | D5: =SUM(Bahrein:AbuDhabi!$G$5:$G$7) -> 392 | E5: =D4-D5 -> 430 | F5: =D4-D5 -> 430 | G5: 2
C6: FERRARI | D6: =SUM(Bahrein:AbuDhabi!$G$8:$G$10) -> 388 | E6: =D4-D6 -> 434 | F6: =D5-D6 -> 4 | G6: 3
C7: Mc LAREN | D7: =SUM(Bahrein:AbuDhabi!$G$29:$G$31) -> 284 | E7: =D4-D7 -> 538 | F7: 104 | G7: 4
C8: ASTON MARTIN | D8: =SUM(Bahrein:AbuDhabi!$G$14:$G$16) -> 273 | E8: =D4-D8 -> 549 | F8: 11 | G8: 5
C9: ALPINE F1 TEAM | D9: =SUM(Bahrein:AbuDhabi!$G$20:$G$22) -> 120 | E9: =D4-D9 -> 702 | F9: =D8-D9 -> 153 | G9: 6
C10: WILLIAMS | D10: =SUM(Bahrein:AbuDhabi!$G$17:$G$19) -> 28 | E10: =D4-D10 -> 794 | F10: 92 | G10: 7
C11: ALPHA TAURI | D11: =SUM(Bahrein:AbuDhabi!$G$23:$G$25) -> 21 | E11: =D4-D11 -> 801 | F11: 7 | G11: 8
C12: ALFA ROMÉO | D12: =SUM(Bahrein:AbuDhabi!$G$32:$G$34) -> 16 | E12: =D4-D12 -> 806 | F12: 5 | G12: 9
C13: HAAS | D13: =SUM(Bahrein:AbuDhabi!$G$26:$G$28) -> 12 | E13: =D4-D13 -> 810 | F13: =D12-D13 -> 4 | G13: 10
C17: Écuries | D17: POINTS | E17: VS | F17: Écuries | G17: POINTS
C18: ALPINE F1 TEAM | D18: =INDEX(D4:D13,MATCH(C18,C4:C13,0)) -> 120 | F18: ASTON MARTIN | G18: =INDEX($D$4:$D$13,MATCH($F$18,C4:C13,0)) -> 273
E20: ÉCART
E21: =D18-G18 -> -153

Sheet Pilotes
B3: PILOTES | C3: Points | D3: Place | E3: Écart-premier | F3: Écart/précédent | G3: Pôle Position | H3: 6 | J3: Courses
C4: =IFERROR(SUM([1]Australie!G33,[2]Bahreïn!F33),"") -> 0 | H4: Nbre de fois | I4: % | J4: =IF(G4=0,"",(RANK(G4,G1:G4))) -> 
B5: VERSTAPPEN Max | C5: =SUM(Bahrein:AbuDhabi!$G$11) -> 549 | D5: =IF(C5="",0,(RANK(C5,$C$5:$C$28))) -> 1 | G5: =CalculPool(B5) ->  | H5: =CalculPosition(B5) ->  | I5: =H5/22 ->  | J5: Australie | AA5: Brésil | AB5: Las Végas
B6: PEREZ Sergio | C6: =SUM(Bahrein:AbuDhabi!$G$12) -> 273 | D6: =IF(C6="",0,(RANK(C6,$C$5:$C$28))) -> 2 | E6: =C5-C6 -> 276 | F6: =C5-C6 -> 276 | J6: AbuDhabi | K6: Canada | L6: GB
B7: HAMILTON Lewis | C7: =SUM(Bahrein:AbuDhabi!$G$5) -> 232 | D7: 3 | E7: =C5-C7 -> 317 | F7: 41 | J7: Arabie Saoudite | K7: Azerbaïdjan | L7: Miami | M7: Pays-Bas | N7: Italie
B8: ALONSO Fernando | C8: =SUM(Bahrein:AbuDhabi!$G$14) -> 200 | D8: 4 | E8: =C5-C8 -> 349 | F8: =C7-C8 -> 32 | J8: Autriche | K8: Qatar
B9: SAINZ.Jr Carlos | C9: =SUM(Bahrein:AbuDhabi!$G$8) -> 200 | D9: 4 | E9: =C5-C9 -> 349 | F9: 0 | J9: Azerbaïdjan | K9: Arabie Saoudite | L9: Autriche | M9: Japon | N9: Brésil | O9: Las Végas
B10: NORRIS Lando | C10: =SUM(Bahrein:AbuDhabi!$G$29) -> 195 | D10: 6 | E10: =C5-C10 -> 354 | F10: 5 | J10: Bahrein | K10: Australie
B11: LECLERC Charles | C11: =SUM(Bahrein:AbuDhabi!$G$9) -> 188 | D11: 7 | E11: =C5-C11 -> 361 | F11: 7 | J11: Belgique | K11: Monaco
B12: RUSSELL George | C12: =SUM(Bahrein:AbuDhabi!$G$6) -> 160 | D12: 8 | E12: =C5-C12 -> 389 | F12: 28 | J12: Brésil | K12: Hongrie | L12: Belgique | M12: Mexique
B13: PIASTRI Oscar | C13: =SUM(Bahrein:AbuDhabi!$G$30) -> 89 | D13: 9 | E13: =C5-C13 -> 460 | F13: 71 | J13: Canada
B14: STROLL Lance | C14: =SUM(Bahrein:AbuDhabi!$G$15) -> 73 | D14: 10 | E14: =C5-C14 -> 476 | F14: 16 | J14: Espagne | K14: Bahrein | L14: Espagne
B15: GASLY Pierre | C15: =SUM(Bahrein:AbuDhabi!$G$20) -> 62 | D15: 11 | E15: =C5-C15 -> 487 | F15: 11 | J15: GB | K15: Singapour | L15: USA
B16: OCON Sebastian | C16: =SUM(Bahrein:AbuDhabi!$G$21) -> 58 | D16: 12 | E16: =C5-C16 -> 491 | F16: 4 | J16: Hongrie
B17: ALBON Alexander | C17: =SUM(Bahrein:AbuDhabi!$G$17) -> 27 | D17: 13 | E17: =C5-C17 -> 522 | F17: 31 | J17: Italie
B18: TSUNODA Yuki | C18: =SUM(Bahrein:AbuDhabi!$G$23) -> 13 | D18: 14 | E18: =C5-C18 -> 536 | F18: 14 | J18: ItalieIm
B19: BOTTAS Valtteri | C19: =SUM(Bahrein:AbuDhabi!$G$32) -> 10 | D19: 15 | E19: =C5-C19 -> 539 | F19: 3 | J19: Japon
B20: HULKENBERG Nico | C20: =SUM(Bahrein:AbuDhabi!$G$27) -> 9 | D20: 16 | E20: =C5-C20 -> 540 | F20: 1 | J20: Las Végas
B21: GUANYU Zhou | C21: =SUM(Bahrein:AbuDhabi!$G$33) -> 6 | D21: 17 | E21: =C5-C21 -> 543 | F21: 3 | J21: Mexique
B22: RICCIARDO Daniel | C22: =SUM(GB:AbuDhabi!$G$24) -> 6 | D22: 17 | E22: =C5-C22 -> 543 | F22: 0 | J22: Miami
B23: MAGNUSSEN Kevin | C23: =SUM(Bahrein:AbuDhabi!$G$26) -> 3 | D23: 19 | E23: =C5-C23 -> 546 | F23: 3 | J23: Monaco
B24: LAWSON Liam | C24: =SUM('Pays-Bas:Qatar'!$G$25) -> 2 | D24: 20 | E24: =C5-C24 -> 547 | F24: 1 | J24: Pays-Bas
B25: SARGEANT Logan | C25: =SUM(Bahrein:AbuDhabi!$G$18) -> 1 | D25: 21 | E25: =C5-C25 -> 548 | F25: =C24-C25 -> 1 | J25: Qatar
B26: DEVRIES Nyck | C26: =SUM(Bahrein:Autriche!$G$24) -> 0 | D26: 22 | E26: =C6-C26 -> 273 | F26: =C25-C26 -> 1 | J26: Singapour
J27: USA
I30: Moyenne
I31: =AVERAGE($I$5:$I$28) -> 
B32: PILOTE 1 | C32: Points | E32: VS | F32: PILOTE 2 | G32: Points
B33: PEREZ Sergio | C33: =INDEX(C5:C28,MATCH(B33,B5:B28,0)) -> 273 | F33: HAMILTON Lewis | G33: =INDEX(C5:C28,MATCH(F33,B5:B28,0)) -> 232
E35: ÉCART
E36: =C33-G33 -> 41

Sheet Bahrein
A1: SAKHIR - 5 MARS 2023
A3: PILOTES | B3: ECURIES | C3: VOITURES | D3: Finish | E3: Pôle | F3: Pt tour | G3: Points | I3: ÉCURIES | J3: Points | K3: Écart | L3: Rang | N3: Noms | O3: Points | P3: Écart | Q3: Rang
I4: RED BULL RACING | J4: =SUM($G$11:$G$13) -> 43 | K4: =J4-J5 -> 20 | L4: =IF(J4="",0,(RANK(J4,$J$4:$J$13))) -> 1 | N4: VERSTAPPEN Max | O4: =$G$11 -> 25 | Q4: =IF(O4="",0,(RANK(O4,$O$4:$O$23))) -> 1
A5: HAMILTON Lewis | B5: MERCEDES | D5: 5 | G5: =IFERROR(CHOOSE(D5,25,18,15,12,10,8,6,4,2,1)+IF(D5<=10,F5),0) -> 10 | I5: ASTON MARTIN | J5: =SUM($G$14:$G$16) -> 23 | K5: =J4-J5 -> 20 | L5: 2 | N5: PEREZ Sergio | O5: =$G$12 -> 18 | P5: =O4-O5 -> 7 | Q5: =IF(O5="",0,(RANK(O5,$O$4:$O$23))) -> 2
A6: RUSSELL George | D6: 7 | G6: =IFERROR(CHOOSE(D6,25,18,15,12,10,8,6,4,2,1)+IF(D6<=10,F6),0) -> 6 | I6: MERCEDES | J6: =SUM($G$5:$G$7) -> 16 | K6: =J5-J6 -> 7 | L6: 3 | N6: ALONSO Fernando | O6: =$G$14 -> 15 | P6: =O5-O6 -> 3 | Q6: 3
G7: 0 | I7: FERRARI | J7: =SUM($G$8:$G$10) -> 12 | K7: 4 | L7: 4 | N7: SAINZ.Jr Carlos | O7: =$G$8 -> 12 | P7: 3 | Q7: 4
A8: SAINZ.Jr Carlos | B8: FERRARI | D8: 4 | G8: 12 | I8: ALFA ROMÉO | J8: =SUM($G$32:$G$34) -> 4 | K8: 8 | L8: 5 | N8: HAMILTON Lewis | O8: =$G$5 -> 10 | P8: 2 | Q8: 5
A9: LECLERC Charles | D9: OUT | G9: 0 | I9: ALPINE F1 TEAM | J9: =SUM($G$20:$G$22) -> 2 | K9: 2 | L9: 6 | N9: STROLL Lance | O9: =$G$15 -> 8 | P9: 2 | Q9: 6
G10: 0 | I10: WILLIAMS | J10: =SUM($G$17:$G$19) -> 1 | K10: 1 | L10: 7 | N10: RUSSEL George | O10: =$G$6 -> 6 | P10: 2 | Q10: 7
A11: VERSTAPPEN Max | B11: RED BULL RACING | D11: 1 | E11: 1 | G11: 25 | I11: ALPHA TAURI | J11: =SUM($G$23:$G$25) -> 0 | K11: 1 | L11: 8 | N11: BOTTAS Valtteri | O11: =$G$32 -> 4 | P11: 2 | Q11: 8
A12: PEREZ Sergio | D12: 2 | G12: 18 | I12: Mc LAREN | J12: =SUM($G$29:$G$31) -> 0 | K12: 0 | L12: 8 | N12: ALBON Alexander | O12: =$G$17 -> 1 | P12: 3 | Q12: 9
G13: 0 | I13: HAAS | J13: =SUM($G$26:$G$28) -> 0 | K13: 0 | L13: 8 | N13: LECLERC Charles | O13: =$G$9 -> 0 | P13: 1 | Q13: 10
A14: ALONSO Fernando | B14: ASTON MARTIN | D14: 3 | G14: 15 | N14: MAGNUSSEN Kevin | O14: =$G$26 -> 0 | P14: 0 | Q14: 10
A15: STROLL Lance | D15: 6 | G15: 8 | N15: OCON Sebastian | O15: =$G$21 -> 0 | P15: 0 | Q15: 10
G16: 0 | N16: TSUNODA Yoki | O16: =$G$23 -> 0 | P16: 0 | Q16: 10
A17: ALBON Alexander | B17: WILLIAMS | D17: 10 | G17: 1 | N17: GUANYU Zhou | O17: =$G$33 -> 0 | P17: 0 | Q17: 10
A18: SARGEANT Logan | D18: 12 | G18: 0 | N18: NORRIS Lando | O18: =$G$29 -> 0 | P18: 0 | Q18: 10
G19: 0 | N19: PIASTRI Oscar | O19: =$G$30 -> 0 | P19: 0 | Q19: 10
A20: GASLY Pierre | B20: ALPINE F1 TEAM | D20: 9 | G20: 2 | N20: GASLY Pierre | O20: =$G$24 -> 0 | P20: 0 | Q20: 10
A21: OCON Sebastian | D21: OUT | G21: 0 | N21: DEVRIES Nyck | O21: =$G$24 -> 0 | P21: 0 | Q21: 10
G22: 0 | N22: SARGEANT Logan | O22: =$G$18 -> 0 | P22: 0 | Q22: 10
A23: TSUNODA Yuki | B23: ALPHA TAURI | D23: 11 | G23: 0 | N23: HULKENBERG Nico | O23: =$G$27 -> 0 | P23: 0 | Q23: 10
A24: DEVRIES Nyck | D24: 14 | G24: 0
G25: 0
A26: MAGNUSSEN Kevin | B26: HAAS | D26: 13 | G26: 0
A27: HULKENBERG Nico | D27: 15 | G27: 0
G28: 0
A29: NORRIS Lando | B29: Mc LAREN | D29: 17 | G29: 0
A30: PIASTRI Oscar | D30: OUT | G30: 0
G31: 0
A32: BOTTAS Valtteri | B32: ALFA ROMÉO | D32: 8 | G32: 4
A33: GUANYU Zhou | D33: 16 | G33: 0
G34: 0

Sheet Arabie Saoudite
A1: DJEDDAH - 19 MARS 2023
A3: PILOTES | B3: ECURIES | C3: VOITURES | D3: Finish | E3: Pôle | F3: Pt tour | G3: Points | I3: ÉCURIES | J3: Points | K3: Écart | L3: Rang | N3: Noms | O3: Points | P3: Écart | Q3: Rang
I4: RED BULL RACING | J4: =SUM('Bahrein:Arabie Saoudite'!$G$11:$G$13) -> 87 | L4: =IF(J4="",0,(RANK(J4,$J$4:$J$13))) -> 1 | N4: VERSTAPPEN Max | O4: =IF(Bahrein!$D$11="",0,SUM('Bahrein:Arabie Saoudite'!$G$11)) -> 44 | Q4: =IF(O4="",0,(RANK(O4,$O$4:$O$23))) -> 1
A5: HAMILTON Lewis | B5: MERCEDES | D5: 5 | G5: =IFERROR(CHOOSE(D5,25,18,15,12,10,8,6,4,2,1)+IF(D5<=10,F5),0) -> 10 | I5: MERCEDES | J5: =SUM('Bahrein:Arabie Saoudite'!$G$5:$G$7) -> 38 | K5: =J4-J5 -> 49 | L5: =IF(J5="",0,(RANK(J5,$J$4:$J$13))) -> 2 | N5: PEREZ Sergio | O5: =IF(Bahrein!$D$12="",0,SUM('Bahrein:Arabie Saoudite'!$G$12)) -> 43 | P5: =O4-O5 -> 1 | Q5: =IF(O5=0,0,(RANK(O5,$O$4:$O$23))) -> 2
A6: RUSSELL George | D6: 4 | G6: =IFERROR(CHOOSE(D6,25,18,15,12,10,8,6,4,2,1)+IF(D6<=10,F6),0) -> 12 | I6: ASTON MARTIN | J6: =SUM('Bahrein:Arabie Saoudite'!$G$14:$G$16) -> 38 | K6: =J5-J6 -> 0 | L6: 2 | N6: ALONSO Fernando | O6: =IF(Bahrein!$D$14="",0,SUM('Bahrein:Arabie Saoudite'!$G$14)) -> 30 | P6: =O5-O6 -> 13 | Q6: 3
G7: 0 | I7: FERRARI | J7: =SUM('Bahrein:Arabie Saoudite'!$G$8:$G$10) -> 26 | K7: 12 | L7: 4 | N7: HAMILTON Lewis | O7: =IF(Bahrein!$D$5="",0,SUM('Bahrein:Arabie Saoudite'!$G$5)) -> 20 | P7: 10 | Q7: =IF(O7=0,0,(RANK(O7,$O$4:$O$23))) -> 4
A8: SAINZ.Jr Carlos | B8: FERRARI | D8: 6 | G8: 8 | I8: ALPINE F1 TEAM | J8: =SUM('Bahrein:Arabie Saoudite'!$G$20:$G$22) -> 8 | K8: 18 | L8: 5 | N8: SAINZ.Jr Carlos | O8: =IF(Bahrein!$D$8="",0,SUM('Bahrein:Arabie Saoudite'!$G$8)) -> 20 | P8: 0 | Q8: 4
A9: LECLERC Charles | D9: 7 | G9: 6 | I9: ALFA ROMÉO | J9: =SUM('Bahrein:Arabie Saoudite'!$G$32:$G$34) -> 4 | K9: 4 | L9: 6 | N9: RUSSEL George | O9: =IF(Bahrein!$D$6="",0,SUM('Bahrein:Arabie Saoudite'!$G$6)) -> 18 | P9: 2 | Q9: 6
G10: 0 | I10: HAAS | J10: =SUM('Bahrein:Arabie Saoudite'!$G$26:$G$28) -> 1 | K10: 3 | L10: 7 | N10: STROLL Lance | O10: =IF(Bahrein!$D$15="",0,SUM('Bahrein:Arabie Saoudite'!$G$15)) -> 8 | P10: 10 | Q10: 7
A11: VERSTAPPEN Max | B11: RED BULL RACING | D11: 2 | F11: 1 | G11: 19 | I11: WILLIAMS | J11: =SUM('Bahrein:Arabie Saoudite'!$G$17:$G$19) -> 1 | K11: 0 | L11: 7 | N11: LECLERC Charles | O11: =IF(Bahrein!$D$9="",0,SUM('Bahrein:Arabie Saoudite'!$G$9)) -> 6 | P11: 2 | Q11: 8
A12: PEREZ Sergio | D12: 1 | E12: 1 | G12: 25 | I12: Mc LAREN | J12: =SUM('Bahrein:Arabie Saoudite'!$G$29:$G$31) -> 0 | K12: 1 | L12: 9 | N12: GASLY Pierre | O12: =IF(Bahrein!$D$20="",0,SUM('Bahrein:Arabie Saoudite'!$G$20)) -> 4 | P12: 2 | Q12: 9
G13: 0 | I13: ALPHA TAURI | J13: =SUM('Bahrein:Arabie Saoudite'!$G$23:$G$25) -> 0 | K13: 0 | L13: 9 | N13: OCON Sebastian | O13: =IF(Bahrein!$D$21="",0,SUM('Bahrein:Arabie Saoudite'!$G$21)) -> 4 | P13: 0 | Q13: 9
A14: ALONSO Fernando | B14: ASTON MARTIN | D14: 3 | G14: 15 | N14: BOTTAS Valtteri | O14: =IF(Bahrein!$D$32="",0,SUM('Bahrein:Arabie Saoudite'!$G$32)) -> 4 | P14: 0 | Q14: 9
A15: STROLL Lance | D15: OUT | G15: 0 | N15: NORRIS Lando | O15: =IF(Bahrein!$D$21="",0,SUM('Bahrein:Arabie Saoudite'!$G$21)) -> 4 | P15: 0 | Q15: 9
G16: 0 | N16: ALBON Alexander | O16: =IF(Bahrein!$D$17="",0,SUM('Bahrein:Arabie Saoudite'!$G$17)) -> 1 | P16: 3 | Q16: 13
A17: ALBON Alexander | B17: WILLIAMS | D17: OUT | G17: 0 | N17: MAGNUSSEN Kevin | O17: =IF(Bahrein!$D$26="",0,SUM('Bahrein:Arabie Saoudite'!$G$26)) -> 1 | P17: 0 | Q17: 13
A18: SARGEANT Logan | D18: 16 | G18: 0 | N18: DEVRIES Nyck | O18: =IF(Bahrein!$D$24="",0,SUM('Bahrein:Arabie Saoudite'!$G$24)) -> 0 | P18: 1 | Q18: 0
G19: 0 | N19: GUANYU Zhou | O19: =IF(Bahrein!$D$33="",0,SUM('Bahrein:Arabie Saoudite'!$G$33)) -> 0 | P19: 0 | Q19: 0
A20: GASLY Pierre | B20: ALPINE F1 TEAM | D20: 9 | G20: 2 | N20: SARGEANT Logan | O20: =IF(Bahrein!$D$18="",0,SUM('Bahrein:Arabie Saoudite'!$G$18)) -> 0 | P20: 0 | Q20: 0
A21: OCON Sebastian | D21: 8 | G21: 4 | N21: TSUNODA Yoki | O21: =IF(Bahrein!$D$23="",0,SUM('Bahrein:Arabie Saoudite'!$G$23)) -> 0 | P21: 0 | Q21: 0
G22: 0 | N22: PIASTRI Oscar | O22: =IF(Bahrein!$D$31="",0,SUM(Bahrein:'Arabie Saoudite'!$G$31)) -> 0 | P22: 0 | Q22: 0
A23: TSUNODA Yuki | B23: ALPHA TAURI | D23: 11 | G23: 0 | N23: HULKENBERG Nico | O23: =IF(Bahrein!$D$27="",0,SUM('Bahrein:Arabie Saoudite'!$G$27)) -> 0 | P23: 0 | Q23: 0
A24: DEVRIES Nyck | D24: 14 | G24: 0
G25: 0
A26: MAGNUSSEN Kevin | B26: HAAS | D26: 10 | G26: 1
A27: HULKENBERG Nico | D27: 12 | G27: 0
G28: 0
A29: NORRIS Lando | B29: Mc LAREN | D29: 17 | G29: 0
A30: PIASTRI Oscar | D30: 15 | G30: 0
G31: 0
A32: BOTTAS Valtteri | B32: ALFA ROMÉO | D32: 18 | G32: 0
A33: GUANYU Zhou | D33: 13 | G33: 0
G34: 0

Sheet Australie
A1: MELBOURNE - 2 AVRIL 2023
A3: PILOTES | B3: ECURIES | C3: VOITURES | D3: Finish | E3: Pôle | F3: Pt tour | G3: Points | I3: ÉCURIES | J3: Points | K3: Écart | L3: Rang | N3: Noms | O3: Points | P3: Écart | Q3: Rang
I4: RED BULL RACING | J4: =IF(SUM('Arabie Saoudite'!$D$11:$D$12)=0,0,SUM(Bahrein:Australie!$G$11:$G$12)) -> 123 | L4: =IF(J4="",0,(RANK(J4,$J$4:$J$13))) -> 1 | N4: VERSTAPPEN Max | O4: =IF('Arabie Saoudite'!$D$11="",0,SUM(Bahrein:Australie!$G$11)) -> 69 | Q4: =IF(O4="",0,(RANK(O4,$O$4:$O$23))) -> 1
A5: HAMILTON Lewis | B5: MERCEDES | D5: 2 | G5: =IFERROR(CHOOSE(D5,25,18,15,12,10,8,6,4,2,1)+IF(D5<=10,F5),0) -> 18 | I5: ASTON MARTIN | J5: =IF(SUM('Arabie Saoudite'!$D$14:$D$15)=0,0,SUM(Bahrein:Australie!$G$14:$G$15)) -> 65 | K5: =J4-J5 -> 58 | L5: =IF(J5="",0,(RANK(J5,$J$4:$J$13))) -> 2 | N5: PEREZ Sergio | O5: =IF('Arabie Saoudite'!$D$12="",0,SUM(Bahrein:Australie!$G$12)) -> 54 | P5: =O4-O5 -> 15 | Q5: =IF(O5="",0,(RANK(O5,$O$4:$O$23))) -> 2
A6: RUSSELL George | D6: OUT | G6: =IFERROR(CHOOSE(D6,25,18,15,12,10,8,6,4,2,1)+IF(D6<=10,F6),0) -> 0 | I6: MERCEDES | J6: =IF(SUM('Arabie Saoudite'!$D$5:$D$6)=0,0,SUM(Bahrein:Australie!$G$5:$G$6)) -> 56 | K6: =J5-J6 -> 9 | L6: 3 | N6: ALONSO Fernando | O6: =IF('Arabie Saoudite'!$D$14="",0,SUM(Bahrein:Australie!$G$14)) -> 45 | P6: =O5-O6 -> 9 | Q6: 3
G7: 0 | I7: FERRARI | J7: =IF(SUM('Arabie Saoudite'!$D$8:$D$9)=0,0,SUM(Bahrein:Australie!$G$8:$G$9)) -> 26 | K7: 30 | L7: 4 | N7: HAMILTON Lewis | O7: =IF('Arabie Saoudite'!$D$5="",0,SUM(Bahrein:Australie!$G$5)) -> 38 | P7: 7 | Q7: 4
A8: SAINZ.Jr Carlos | B8: FERRARI | D8: 12 | G8: 0 | I8: Mc LAREN | J8: =IF(SUM('Arabie Saoudite'!$D$29:$D$30)=0,0,SUM(Bahrein:Australie!$G$29:$G$30)) -> 12 | K8: 14 | L8: 5 | N8: STROLL Lance | O8: =IF('Arabie Saoudite'!$D$15="",0,SUM(Bahrein:Australie!$G$15)) -> 20 | P8: 18 | Q8: 5
A9: LECLERC Charles | D9: OUT | G9: 0 | I9: ALPINE F1 TEAM | J9: =IF(SUM('Arabie Saoudite'!$D$20:$D$21)=0,0,SUM(Bahrein:Australie!$G$20:$G$21)) -> 8 | K9: 4 | L9: 6 | N9: SAINZ.Jr Carlos | O9: =IF('Arabie Saoudite'!$D$8="",0,SUM(Bahrein:Australie!$G$8)) -> 20 | P9: 0 | Q9: 5
G10: 0 | I10: HAAS | J10: =IF(SUM('Arabie Saoudite'!$D$26:$D$27)=0,0,SUM(Bahrein:Australie!$G$26:$G$27)) -> 7 | K10: 1 | L10: 7 | N10: RUSSEL George | O10: =IF('Arabie Saoudite'!$D$6="",0,SUM(Bahrein:Australie!$G$6)) -> 18 | P10: 2 | Q10: 7
A11: VERSTAPPEN Max | B11: RED BULL RACING | D11: 1 | E11: 1 | G11: 25 | I11: ALFA ROMÉO | J11: =IF(SUM('Arabie Saoudite'!$D$32:$D$33)=0,0,SUM(Bahrein:Australie!$G$32:$G$33)) -> 6 | K11: 1 | L11: 8 | N11: NORRIS Lando | O11: =IF('Arabie Saoudite'!$D$29="",0,SUM(Bahrein:Australie!$G$29)) -> 8 | P11: 10 | Q11: 8
A12: PEREZ Sergio | D12: 5 | F12: 1 | G12: 11 | I12: ALPHA TAURI | J12: =IF(SUM('Arabie Saoudite'!$D$23:$D$24)=0,0,SUM(Bahrein:Australie!$G$23:$G$24)) -> 1 | K12: 5 | L12: 9 | N12: HULKENBERG Nico | O12: =IF('Arabie Saoudite'!$D$27="",0,SUM(Bahrein:Australie!$G$27)) -> 6 | P12: 2 | Q12: 9
G13: 0 | I13: WILLIAMS | J13: =IF(SUM('Arabie Saoudite'!$D$17:$D$18)=0,0,SUM(Bahrein:Australie!$G$17:$G$18)) -> 1 | K13: 0 | L13: 9 | N13: LECLERC Charles | O13: =IF('Arabie Saoudite'!$D$9="",0,SUM(Bahrein:Australie!$G$9)) -> 6 | P13: 0 | Q13: 9
A14: ALONSO Fernando | B14: ASTON MARTIN | D14: 3 | G14: 15 | N14: BOTTAS Valtteri | O14: =IF('Arabie Saoudite'!$D$32="",0,SUM(Bahrein:Australie!$G$32)) -> 4 | P14: 2 | Q14: 11
A15: STROLL Lance | D15: 4 | G15: 12 | N15: PIASTRI Oscar | O15: =IF('Arabie Saoudite'!$D$30="",0,SUM(Bahrein:Australie!$G$30)) -> 4 | P15: 0 | Q15: 11
G16: 0 | N16: OCON Sebastian | O16: =IF('Arabie Saoudite'!$D$21="",0,SUM(Bahrein:Australie!$G$21)) -> 4 | P16: 0 | Q16: 11
A17: ALBON Alexander | B17: WILLIAMS | D17: OUT | G17: 0 | N17: GASLY Pierre | O17: =IF('Arabie Saoudite'!$D$20="",0,SUM(Bahrein:Australie!$G$20)) -> 4 | P17: 0 | Q17: 11
A18: SARGEANT Logan | D18: OUT | G18: 0 | N18: GUANYU Zhou | O18: =IF('Arabie Saoudite'!$D$33="",0,SUM(Bahrein:Australie!$G$33)) -> 2 | P18: 2 | Q18: 15
G19: 0 | N19: MAGNUSSEN Kevin | O19: =IF('Arabie Saoudite'!$D$11="",0,SUM(Bahrein:Australie!$G$26)) -> 1 | P19: 1 | Q19: 16
A20: GASLY Pierre | B20: ALPINE F1 TEAM | D20: OUT | G20: 0 | N20: TSUNODA Yoki | O20: =IF('Arabie Saoudite'!$D$23="",0,SUM(Bahrein:Australie!$G$23)) -> 1 | P20: 0 | Q20: 16
A21: OCON Sebastian | D21: OUT | G21: 0 | N21: ALBON Alexander | O21: =IF('Arabie Saoudite'!$D$17="",0,SUM(Bahrein:Australie!$G$17)) -> 1 | P21: 0 | Q21: 16
G22: 0 | N22: SARGEANT Logan | O22: =IF('Arabie Saoudite'!$D$18="",0,SUM(Bahrein:Australie!$G$18)) -> 0 | P22: 1 | Q22: 19
A23: TSUNODA Yuki | B23: ALPHA TAURI | D23: 10 | G23: 1 | N23: DEVRIES Nyck | O23: =IF('Arabie Saoudite'!$D$24="",0,SUM(Bahrein:Australie!$G$24)) -> 0 | P23: 0 | Q23: 19
A24: DEVRIES Nyck | D24: OUT | G24: 0
G25: 0
A26: MAGNUSSEN Kevin | B26: HAAS | D26: OUT | G26: 0
A27: HULKENBERG Nico | D27: 7 | G27: 6
G28: 0
A29: NORRIS Lando | B29: Mc LAREN | D29: 6 | G29: 8
A30: PIASTRI Oscar | D30: 8 | G30: 4
G31: 0
A32: BOTTAS Valtteri | B32: ALFA ROMÉO | D32: 11 | G32: 0
A33: GUANYU Zhou | D33: 9 | G33: 2
G34: 0

Sheet Azerbaïdjan
A1: BAKOU - 30 AVRIL 2023
A3: PILOTES | B3: ECURIES | C3: VOITURES | D3: Finish | E3: Pôle | F3: Pt tour | G3: Points | H3: Sprint | I3: ÉCURIES | J3: Points | K3: Écart | L3: Rang | N3: Noms | O3: Points | P3: Écart | Q3: Rang
I4: RED BULL RACING | J4: =IF(SUM(Australie!$D$11:$D$12)=0,0,SUM(Bahrein:Azerbaïdjan!$G$11:$G$12)) -> 180 | L4: =IF(J4="",0,(RANK(J4,$J$4:$J$13))) -> 1 | N4: VERSTAPPEN Max | O4: =IF(Australie!$D$11="",0,SUM(Bahrein:Azerbaïdjan!$G$11)) -> 93 | Q4: =IF(O4="",0,(RANK(O4,$O$4:$O$23))) -> 1
A5: HAMILTON Lewis | B5: MERCEDES | D5: 6 | G5: =IFERROR(CHOOSE(D5,25,18,15,12,10,8,6,4,2,1),0)+IFERROR(CHOOSE(H5,8,7,6,5,4,3,2,1),0)+IF(D5<=10,F5,0) -> 10 | H5: 7 | I5: ASTON MARTIN | J5: =IF(SUM(Australie!$D$14:$D$15)=0,0,SUM(Bahrein:Azerbaïdjan!$G$14:$G$15)) -> 87 | K5: =J4-J5 -> 93 | L5: =IF(J5="",0,(RANK(J5,$J$4:$J$13))) -> 2 | N5: PEREZ Sergio | O5: =IF(Australie!$D$12="",0,SUM(Bahrein:Azerbaïdjan!$G$12)) -> 87 | P5: =O4-O5 -> 6 | Q5: =IF(O5="",0,(RANK(O5,$O$4:$O$23))) -> 2
A6: RUSSELL George | D6: 8 | F6: 1 | G6: =IFERROR(CHOOSE(D6,25,18,15,12,10,8,6,4,2,1),0)+IFERROR(CHOOSE(H6,8,7,6,5,4,3,2,1),0)+IF(D6<=10,F6,0) -> 10 | H6: 4 | I6: MERCEDES | J6: =IF(SUM(Australie!$D$5:$D$6)=0,0,SUM(Bahrein:Azerbaïdjan!$G$5:$G$6)) -> 76 | K6: =J5-J6 -> 11 | L6: 3 | N6: ALONSO Fernando | O6: =IF(Australie!$D$14="",0,SUM(Bahrein:Azerbaïdjan!$G$14)) -> 60 | P6: =O5-O6 -> 27 | Q6: 3
G7: 0 | I7: FERRARI | J7: =IF(SUM(Australie!$D$8:$D$9)=0,0,SUM(Bahrein:Azerbaïdjan!$G$8:$G$9)) -> 62 | K7: 14 | L7: 4 | N7: HAMILTON Lewis | O7: =IF(Australie!$D$5="",0,SUM(Bahrein:Azerbaïdjan!$G$5)) -> 48 | P7: 12 | Q7: 4
A8: SAINZ.Jr Carlos | B8: FERRARI | D8: 5 | G8: 14 | H8: 5 | I8: Mc LAREN | J8: =IF(SUM(Australie!$D$29:$D$30)=0,0,SUM(Bahrein:Azerbaïdjan!$G$29:$G$30)) -> 14 | K8: 48 | L8: 5 | N8: SAINZ.Jr Carlos | O8: =IF(Australie!$D$8="",0,SUM(Bahrein:Azerbaïdjan!$G$8)) -> 34 | P8: 14 | Q8: 5
A9: LECLERC Charles | D9: 3 | E9: 1 | G9: 22 | H9: 2 | I9: HAAS | J9: =IF(SUM(Australie!$D$26:$D$27)=0,0,SUM(Bahrein:Azerbaïdjan!$G$26:$G$27)) -> 7 | K9: 7 | L9: 6 | N9: RUSSEL George | O9: =IF(Australie!$D$6="",0,SUM(Bahrein:Azerbaïdjan!$G$6)) -> 28 | P9: 6 | Q9: 6
G10: 0 | I10: ALFA ROMÉO | J10: =IF(SUM(Australie!$D$32:$D$33)=0,0,SUM(Bahrein:Azerbaïdjan!$G$32:$G$33)) -> 6 | K10: 1 | L10: 7 | N10: LECLERC Charles | O10: =IF(Australie!$D$9="",0,SUM(Bahrein:Azerbaïdjan!$G$9)) -> 28 | P10: 0 | Q10: 6
A11: VERSTAPPEN Max | B11: RED BULL RACING | D11: 2 | G11: 24 | H11: 3 | I11: ALPHA TAURI | J11: =IF(SUM(Australie!$D$23:$D$24)=0,0,SUM(Bahrein:Azerbaïdjan!$G$23:$G$24)) -> 2 | K11: 4 | L11: 8 | N11: STROLL Lance | O11: =IF(Australie!$D$15="",0,SUM(Bahrein:Azerbaïdjan!$G$15)) -> 27 | P11: 1 | Q11: 8
A12: PEREZ Sergio | D12: 1 | G12: 33 | H12: 1 | I12: ALPINE F1 TEAM | J12: =IF(SUM(Australie!$D$20:$D$21)=0,0,SUM(Bahrein:Azerbaïdjan!$G$20:$G$21)) -> 0 | K12: 2 | L12: 9 | N12: NORRIS Lando | O12: =IF(Australie!$D$29="",0,SUM(Bahrein:Azerbaïdjan!$G$29)) -> 10 | P12: 17 | Q12: 9
G13: 0 | I13: WILLIAMS | J13: =IF(SUM(Australie!$D$17:$D$18)=0,0,SUM(Bahrein:Azerbaïdjan!$G$17:$G$18)) -> 0 | K13: 0 | L13: 9 | N13: PIASTRI Oscar | O13: =IF(Australie!$D$30="",0,SUM(Bahrein:Azerbaïdjan!$G$30)) -> 4 | P13: 6 | Q13: 10
A14: ALONSO Fernando | B14: ASTON MARTIN | D14: 4 | G14: 15 | H14: 6 | N14: GASLY Pierre | O14: =IF(Australie!$D$20="",0,SUM(Bahrein:Azerbaïdjan!$G$20)) -> 4 | P14: 0 | Q14: 10
A15: STROLL Lance | D15: 7 | G15: 7 | H15: 8 | N15: BOTTAS Valtteri | O15: =IF(Australie!$D$32="",0,SUM(Bahrein:Azerbaïdjan!$G$32)) -> 4 | P15: 0 | Q15: 10
G16: 0 | N16: OCON Sebastian | O16: =IF(Australie!$D$21="",0,SUM(Bahrein:Azerbaïdjan!$G$21)) -> 4 | P16: 0 | Q16: 10
A17: ALBON Alexander | B17: WILLIAMS | D17: 12 | G17: 0 | N17: GUANYU Zhou | O17: =IF(Australie!$D$33="",0,SUM(Bahrein:Azerbaïdjan!$G$33)) -> 2 | P17: 2 | Q17: 14
A18: SARGEANT Logan | D18: 16 | G18: 0 | N18: TSUNODA Yoki | O18: =IF(Australie!$D$23="",0,SUM(Bahrein:Azerbaïdjan!$G$23)) -> 2 | P18: 0 | Q18: 14
G19: 0 | N19: HULKENBERG Nico | O19: =IF(Australie!$D$26="",0,SUM(Bahrein:Azerbaïdjan!$G$26)) -> 1 | P19: 1 | Q19: 16
A20: GASLY Pierre | B20: ALPINE F1 TEAM | D20: 14 | G20: 0 | N20: ALBON Alexander | O20: =IF(Australie!$D$17="",0,SUM(Bahrein:Azerbaïdjan!$G$17)) -> 1 | P20: 0 | Q20: 16
A21: OCON Sebastian | D21: 15 | G21: 0 | N21: MAGNUSSEN Kevin | O21: =IF(Australie!$D$26="",0,SUM(Bahrein:Azerbaïdjan!$G$26)) -> 1 | P21: 0 | Q21: 16
G22: 0 | N22: DEVRIES Nyck | O22: =IF(Australie!$D$24="",0,SUM(Bahrein:Azerbaïdjan!$G$24)) -> 0 | P22: 1 | Q22: 19
A23: TSUNODA Yuki | B23: ALPHA TAURI | D23: 10 | G23: 1 | N23: SARGEANT Logan | O23: =IF(Australie!$D$18="",0,SUM(Bahrein:Azerbaïdjan!$G$18)) -> 0 | P23: 0 | Q23: 19
A24: DEVRIES Nyck | G24: 0
G25: 0
A26: MAGNUSSEN KEVIN | B26: HAAS | D26: 13 | G26: 0
A27: HULKENBERG Nico | D27: 17 | G27: 0
G28: 0
A29: NORRIS Lando | B29: Mc LAREN | D29: 9 | G29: 2
A30: PIASTRI Oscar | D30: 11 | G30: 0
G31: 0
A32: BOTTAS Valtteri | B32: ALFA ROMÉO | D32: 18 | G32: 0
A33: GUANYU Zhou | G33: 0
G34: 0

Sheet Miami
A1: MIAMI - 7 MAI 2023
A3: PILOTES | B3: ECURIES | C3: VOITURES | D3: Finish | E3: Pôle | F3: Pt tour | G3: Points | I3: ÉCURIES | J3: Points | K3: Écart | L3: Rang | N3: Noms | O3: Points | P3: Écart | Q3: Rang
I4: RED BULL RACING | J4: =IF(SUM(Azerbaïdjan!$D$11:$D$12)=0,0,SUM(Bahrein:Miami!$G$11:$G$12)) -> 224 | L4: =IF(J4="",0,(RANK(J4,$J$4:$J$13))) -> 1 | N4: VERSTAPPEN Max | O4: =IF(Azerbaïdjan!$G$11="",0,SUM(Bahrein:Miami!$G$11)) -> 119 | Q4: =IF(O4="",0,(RANK(O4,$O$4:$O$23))) -> 1
A5: HAMILTON Lewis | B5: MERCEDES | D5: 6 | G5: =IFERROR(CHOOSE(D5,25,18,15,12,10,8,6,4,2,1)+IF(D5<=10,F5),0) -> 8 | I5: ASTON MARTIN | J5: =IF(SUM(Azerbaïdjan!$D$14:$D$15)=0,0,SUM(Bahrein:Miami!$G$14:$G$15)) -> 102 | K5: =J4-J5 -> 122 | L5: =IF(J5="",0,(RANK(J5,$J$4:$J$13))) -> 2 | N5: PEREZ Sergio | O5: =IF(Azerbaïdjan!$G$12="",0,SUM(Bahrein:Miami!$G$12)) -> 105 | P5: =O4-O5 -> 14 | Q5: =IF(O5="",0,(RANK(O5,$O$4:$O$23))) -> 2
A6: RUSSELL George | D6: 4 | G6: =IFERROR(CHOOSE(D6,25,18,15,12,10,8,6,4,2,1)+IF(D6<=10,F6),0) -> 12 | I6: MERCEDES | J6: =IF(SUM(Azerbaïdjan!$D$5:$D$6)=0,0,SUM(Bahrein:Miami!$G$5:$G$6)) -> 96 | K6: =J5-J6 -> 6 | L6: 3 | N6: ALONSO Fernando | O6: =IF(Azerbaïdjan!$G$14="",0,SUM(Bahrein:Miami!$G$14)) -> 75 | P6: =O5-O6 -> 30 | Q6: 3
G7: 0 | I7: FERRARI | J7: =IF(SUM(Azerbaïdjan!$D$8:$D$9)=0,0,SUM(Bahrein:Miami!$G$8:$G$9)) -> 78 | K7: =J6-J7 -> 18 | L7: 4 | N7: HAMILTON Lewis | O7: =IF(Azerbaïdjan!$G$5="",0,SUM(Bahrein:Miami!$G$5)) -> 56 | P7: 19 | Q7: 4
A8: SAINZ.Jr Carlos | B8: FERRARI | D8: 5 | G8: 10 | I8: Mc LAREN | J8: =IF(SUM(Azerbaïdjan!$D$29:$D$30)=0,0,SUM(Bahrein:Miami!$G$29:$G$30)) -> 14 | K8: 64 | L8: 5 | N8: SAINZ.Jr Carlos | O8: =IF(Azerbaïdjan!$G$8="",0,SUM(Bahrein:Miami!$G$8)) -> 44 | P8: 12 | Q8: 5
A9: LECLERC Charles | D9: 7 | G9: 6 | I9: ALPINE F1 TEAM | J9: =IF(SUM(Azerbaïdjan!$D$20:$D$21)=0,0,SUM(Bahrein:Miami!$G$20:$G$21)) -> 14 | K9: 0 | L9: 5 | N9: RUSSEL George | O9: =IF(Azerbaïdjan!$G$6="",0,SUM(Bahrein:Miami!$G$6)) -> 40 | P9: 4 | Q9: 6
G10: 0 | I10: HAAS | J10: =IF(SUM(Azerbaïdjan!$D$26:$D$27)=0,0,SUM(Bahrein:Miami!$G$26:$G$27)) -> 8 | K10: 6 | L10: 7 | N10: LECLERC Charles | O10: =IF(Azerbaïdjan!$G$9="",0,SUM(Bahrein:Miami!$G$9)) -> 34 | P10: 6 | Q10: 7
A11: VERSTAPPEN Max | B11: RED BULL RACING | D11: 1 | F11: 1 | G11: 26 | I11: ALFA ROMÉO | J11: =IF(SUM(Azerbaïdjan!$D$32:$D$33)=0,0,SUM(Bahrein:Miami!$G$32:$G$33)) -> 6 | K11: 2 | L11: 8 | N11: STROLL Lance | O11: =IF(Azerbaïdjan!$G$15="",0,SUM(Bahrein:Miami!$G$15)) -> 27 | P11: 7 | Q11: 8
A12: PEREZ Sergio | D12: 2 | E12: 1 | G12: 18 | I12: ALPHA TAURI | J12: =IF(SUM(Azerbaïdjan!$D$23:$D$24)=0,0,SUM(Bahrein:Miami!$G$23:$G$24)) -> 2 | K12: 4 | L12: 9 | N12: NORRIS Lando | O12: =IF(Azerbaïdjan!$G$29="",0,SUM(Bahrein:Miami!$G$29)) -> 10 | P12: 17 | Q12: 9
G13: 0 | I13: WILLIAMS | J13: =IF(SUM(Azerbaïdjan!$D$17:$D$18)=0,0,SUM(Bahrein:Miami!$G$17:$G$18)) -> 1 | K13: 1 | L13: 10 | N13: GASLY Pierre | O13: =IF(Azerbaïdjan!$G$20="",0,SUM(Bahrein:Miami!$G$20)) -> 8 | P13: 2 | Q13: 10
A14: ALONSO Fernando | B14: ASTON MARTIN | D14: 3 | G14: 15 | N14: HULKENBERG Nico | O14: =IF(Azerbaïdjan!$G$27="",0,SUM(Bahrein:Miami!$G$27)) -> 6 | P14: 2 | Q14: 11
A15: STROLL Lance | D15: 12 | G15: 0 | N15: OCON Sebastian | O15: =IF(Azerbaïdjan!$G$21="",0,SUM(Bahrein:Miami!$G$21)) -> 6 | P15: 0 | Q15: 11
G16: 0 | N16: PIASTRI Oscar | O16: =IF(Azerbaïdjan!$G$30="",0,SUM(Bahrein:Miami!$G$30)) -> 4 | P16: 2 | Q16: 13
A17: ALBON Alexander | B17: WILLIAMS | D17: 14 | G17: 0 | N17: BOTTAS Valtteri | O17: =IF(Azerbaïdjan!$G$32="",0,SUM(Bahrein:Miami!$G$32)) -> 4 | P17: 0 | Q17: 13
A18: SARGEANT Logan | D18: 20 | G18: 0 | N18: TSUNODA Yoki | O18: =IF(Azerbaïdjan!$G$23="",0,SUM(Bahrein:Miami!$G$23)) -> 2 | P18: 2 | Q18: 15
G19: 0 | N19: MAGNUSSEN Kevin | O19: =IF(Azerbaïdjan!$G$26="",0,SUM(Bahrein:Miami!$G$26)) -> 2 | P19: 0 | Q19: 15
A20: GASLY Pierre | B20: ALPINE F1 TEAM | D20: 8 | G20: 4 | N20: GUANYU Zhou | O20: =IF(Azerbaïdjan!$G$33="",0,SUM(Bahrein:Miami!$G$33)) -> 2 | P20: 0 | Q20: 15
A21: OCON Sebastian | D21: 9 | G21: 2 | N21: ALBON Alexander | O21: =IF(Azerbaïdjan!$G$17="",0,SUM(Bahrein:Miami!$G$17)) -> 1 | P21: 1 | Q21: 18
G22: 0 | N22: DEVRIES Nyck | O22: =IF(Azerbaïdjan!$G$24="",0,SUM(Bahrein:Miami!$G$24)) -> 0 | P22: 1 | Q22: 19
A23: TSUNODA Yuki | B23: ALPHA TAURI | D23: 11 | G23: 0 | N23: SARGEANT Logan | O23: =IF(Azerbaïdjan!$G$18="",0,SUM(Bahrein:Miami!$G$18)) -> 0 | P23: 0 | Q23: 19
A24: DEVRIES Nyck | D24: 18 | G24: 0
G25: 0
A26: MAGNUSSEN Kevin | B26: HAAS | D26: 10 | G26: 1
A27: HULKENBERG Nico | D27: 15 | G27: 0
G28: 0
A29: NORRIS Lando | B29: Mc LAREN | D29: 17 | G29: 0
A30: PIASTRI Oscar | D30: 19 | G30: 0
G31: 0
A32: BOTTAS Valtteri | B32: ALFA ROMÉO | D32: 13 | G32: 0
A33: GUANYU Zhou | D33: 16 | G33: 0
G34: 0

Sheet ItalieIm
A1: IMOLA - 21 MAI 2023
A3: PILOTES | B3: ECURIES | C3: VOITURES | D3: Finish | E3: Pôle | F3: Pt tour | G3: Points | I3: ÉCURIES | J3: Points | K3: Écart | L3: Rang | N3: Noms | O3: Points | P3: Écart | Q3: Rang
I4: RED BULL RACING | J4: =IF(SUM(Miami!$D$11:$D$12)=0,0,SUM(Bahrein:ItalieIm!$G$11:$G$12)) -> 224 | L4: =IF(J4="",0,(RANK(J4,$J$4:$J$13))) -> 1 | N4: VERSTAPPEN Max | O4: =IF(Miami!$G$11="",0,SUM(Bahrein:ItalieIm!$G$11)) -> 119 | Q4: =IF(O4="",0,(RANK(O4,$O$4:$O$23))) -> 1
A5: HAMILTON Lewis | B5: MERCEDES | G5: =IFERROR(CHOOSE(D5,25,18,15,12,10,8,6,4,2,1)+IF(D5<=10,F5),0) -> 0 | I5: ASTON MARTIN | J5: =IF(SUM(Miami!$D$14:$D$15)=0,0,SUM(Bahrein:ItalieIm!$G$14:$G$15)) -> 102 | K5: =J4-J5 -> 122 | L5: =IF(J5="",0,(RANK(J5,$J$4:$J$13))) -> 2 | N5: PEREZ Sergio | O5: =IF(Miami!$G$12="",0,SUM(Bahrein:ItalieIm!$G$12)) -> 105 | P5: =O4-O5 -> 14 | Q5: =IF(O5="",0,(RANK(O5,$O$4:$O$23))) -> 2
A6: RUSSELL George | G6: =IFERROR(CHOOSE(D6,25,18,15,12,10,8,6,4,2,1)+IF(D6<=10,F6),0) -> 0 | I6: MERCEDES | J6: =IF(SUM(Miami!$D$5:$D$6)=0,0,SUM(Bahrein:ItalieIm!$G$5:$G$6)) -> 96 | K6: =J5-J6 -> 6 | L6: 3 | N6: ALONSO Fernando | O6: =IF(Miami!$G$14="",0,SUM(Bahrein:ItalieIm!$G$14)) -> 75 | P6: =O5-O6 -> 30 | Q6: 3
G7: 0 | I7: FERRARI | J7: =IF(SUM(Miami!$D$8:$D$9)=0,0,SUM(Bahrein:ItalieIm!$G$8:$G$9)) -> 78 | K7: 18 | L7: 4 | N7: HAMILTON Lewis | O7: =IF(Miami!$G$5="",0,SUM(Bahrein:ItalieIm!$G$5)) -> 56 | P7: 19 | Q7: 4
A8: SAINZ.Jr Carlos | B8: FERRARI | G8: 0 | I8: ALPINE F1 TEAM | J8: =IF(SUM(Miami!$D$20:$D$21)=0,0,SUM(Bahrein:ItalieIm!$G$20:$G$21)) -> 14 | K8: 64 | L8: 5 | N8: SAINZ.Jr Carlos | O8: =IF(Miami!$G$8="",0,SUM(Bahrein:ItalieIm!$G$8)) -> 44 | P8: 12 | Q8: 5
A9: LECLERC Charles | G9: 0 | I9: Mc LAREN | J9: =IF(SUM(Miami!$D$29:$D$30)=0,0,SUM(Bahrein:ItalieIm!$G$29:$G$30)) -> 14 | K9: 0 | L9: 5 | N9: RUSSEL George | O9: =IF(Miami!$G$6="",0,SUM(Bahrein:ItalieIm!$G$6)) -> 40 | P9: 4 | Q9: 6
G10: 0 | I10: HAAS | J10: =IF(SUM(Miami!$D$26:$D$27)=0,0,SUM(Bahrein:ItalieIm!$G$26:$G$27)) -> 8 | K10: 6 | L10: 7 | N10: LECLERC Charles | O10: =IF(Miami!$G$9="",0,SUM(Bahrein:ItalieIm!$G$9)) -> 34 | P10: 6 | Q10: 7
A11: VERSTAPPEN Max | B11: RED BULL RACING | G11: 0 | I11: ALFA ROMÉO | J11: =IF(SUM(Miami!$D$32:$D$33)=0,0,SUM(Bahrein:ItalieIm!$G$32:$G$33)) -> 6 | K11: 2 | L11: 8 | N11: STROLL Lance | O11: =IF(Miami!$G$15="",0,SUM(Bahrein:ItalieIm!$G$15)) -> 27 | P11: 7 | Q11: 8
A12: PEREZ Sergio | G12: 0 | I12: ALPHA TAURI | J12: =IF(SUM(Miami!$D$23:$D$24)=0,0,SUM(Bahrein:ItalieIm!$G$23:$G$24)) -> 2 | K12: 4 | L12: 9 | N12: NORRIS Lando | O12: =IF(Miami!$G$29="",0,SUM(Bahrein:ItalieIm!$G$29)) -> 10 | P12: 17 | Q12: 9
G13: 0 | I13: WILLIAMS | J13: =IF(SUM(Miami!$D$17:$D$18)=0,0,SUM(Bahrein:ItalieIm!$G$17:$G$18)) -> 1 | K13: 1 | L13: 10 | N13: GASLY Pierre | O13: =IF(Miami!$G$20="",0,SUM(Bahrein:ItalieIm!$G$20)) -> 8 | P13: 2 | Q13: 10
A14: ALONSO Fernando | B14: ASTON MARTIN | G14: 0 | N14: HULKENBERG Nico | O14: =IF(Miami!$G$27="",0,SUM(Bahrein:ItalieIm!$G$27)) -> 6 | P14: 2 | Q14: 11
A15: STROLL Lance | G15: 0 | N15: OCON Sebastian | O15: =IF(Miami!$G$21="",0,SUM(Bahrein:ItalieIm!$G$21)) -> 6 | P15: 0 | Q15: 11
G16: 0 | N16: PIASTRI Oscar | O16: =IF(Miami!$G$30="",0,SUM(Bahrein:ItalieIm!$G$30)) -> 4 | P16: 2 | Q16: 13
A17: ALBON Alexander | B17: WILLIAMS | G17: 0 | N17: BOTTAS Valtteri | O17: =IF(Miami!$G$32="",0,SUM(Bahrein:ItalieIm!$G$32)) -> 4 | P17: 0 | Q17: 13
A18: SARGEANT Logan | G18: 0 | N18: TSUNODA Yoki | O18: =IF(Miami!$G$23="",0,SUM(Bahrein:ItalieIm!$G$23)) -> 2 | P18: 2 | Q18: 15
G19: 0 | N19: MAGNUSSEN Kevin | O19: =IF(Miami!$G$26="",0,SUM(Bahrein:ItalieIm!$G$26)) -> 2 | P19: 0 | Q19: 15
A20: GASLY Pierre | B20: ALPINE F1 TEAM | G20: 0 | N20: GUANYU Zhou | O20: =IF(Miami!$G$33="",0,SUM(Bahrein:ItalieIm!$G$33)) -> 2 | P20: 0 | Q20: 15
A21: OCON Sebastian | G21: 0 | N21: DEVRIES Nyck | O21: =IF(Miami!$G$24="",0,SUM(Bahrein:ItalieIm!$G$24)) -> 0 | P21: 2 | Q21: 18
G22: 0 | N22: SARGEANT Logan | O22: =IF(Miami!$G$18="",0,SUM(Bahrein:ItalieIm!$G$18)) -> 0 | P22: 0 | Q22: 18
A23: TSUNODA Yuki | B23: ALPHA TAURI | G23: 0 | N23: ALBON Alexander | O23: =IF(Miami!$G$18="",0,SUM(Bahrein:ItalieIm!$G$18)) -> 0 | P23: 0 | Q23: 18
A24: DEVRIES Nyck | G24: 0
G25: 0
A26: MAGNUSSEN Kevin | B26: HAAS | G26: 0
A27: HULKENBERG Nico | G27: 0 | I27: ANNULÉ
G28: 0
A29: NORRIS Lando | B29: Mc LAREN | G29: 0
A30: PIASTRI Oscar | G30: 0
G31: 0
A32: BOTTAS Valtteri | B32: ALFA ROMÉO | G32: 0
A33: GUANYU Zhou | G33: 0
G34: 0

Sheet Monaco
A1: MONACO - 28 MAI 2023
A3: PILOTES | B3: ECURIES | C3: VOITURES | D3: Finish | E3: Pôle | F3: Pt tour | G3: Points | I3: ÉCURIES | J3: Points | K3: Écart | L3: Rang | N3: Noms | O3: Points | P3: Écart | Q3: Rang
I4: RED BULL RACING | J4: =IF(SUM(Miami!$D$11:$D$12)=0,0,SUM(Bahrein:Monaco!$G$11:$G$12)) -> 249 | L4: =IF(J4="",0,(RANK(J4,$J$4:$J$13))) -> 1 | N4: VERSTAPPEN Max | O4: =IF(Miami!$D$11="",0,SUM(Bahrein:Monaco!$G$11)) -> 144 | Q4: =IF(O4="",0,(RANK(O4,$O$4:$O$23))) -> 1
A5: HAMILTON Lewis | B5: MERCEDES | D5: 4 | F5: 1 | G5: =IFERROR(CHOOSE(D5,25,18,15,12,10,8,6,4,2,1)+IF(D5<=10,F5),0) -> 13 | I5: ASTON MARTIN | J5: =IF(SUM(Miami!$D$14:$D$15)=0,0,SUM(Bahrein:Monaco!$G$14:$G$15)) -> 120 | K5: =J4-J5 -> 129 | L5: =IF(J5="",0,(RANK(J5,$J$4:$J$13))) -> 2 | N5: PEREZ Sergio | O5: =IF(Miami!$D$12="",0,SUM(Bahrein:Monaco!$G$12)) -> 105 | P5: =O4-O5 -> 39 | Q5: =IF(O5="",0,(RANK(O5,$O$4:$O$23))) -> 2
A6: RUSSELL George | D6: 5 | G6: =IFERROR(CHOOSE(D6,25,18,15,12,10,8,6,4,2,1)+IF(D6<=10,F6),0) -> 10 | I6: MERCEDES | J6: =IF(SUM(Miami!$D$5:$D$6)=0,0,SUM(Bahrein:Monaco!$G$5:$G$6)) -> 119 | K6: =J5-J6 -> 1 | L6: 3 | N6: ALONSO Fernando | O6: =IF(Miami!$D$14="",0,SUM(Bahrein:Monaco!$G$14)) -> 93 | P6: =O5-O6 -> 12 | Q6: 3
G7: 0 | I7: FERRARI | J7: =IF(SUM(Miami!$D$8:$D$9)=0,0,SUM(Bahrein:Monaco!$G$8:$G$9)) -> 90 | K7: 29 | L7: 4 | N7: HAMILTON Lewis | O7: =IF(Miami!$D$5="",0,SUM(Bahrein:Monaco!$G$5)) -> 69 | P7: 24 | Q7: 4
A8: SAINZ.Jr Carlos | B8: FERRARI | D8: 8 | G8: 4 | I8: ALPINE F1 TEAM | J8: =IF(SUM(Miami!$D$20:$D$21)=0,0,SUM(Bahrein:Monaco!$G$20:$G$21)) -> 35 | K8: 55 | L8: 5 | N8: RUSSEL George | O8: =IF(Miami!$D$6="",0,SUM(Bahrein:Monaco!$G$6)) -> 50 | P8: 19 | Q8: 5
A9: LECLERC Charles | D9: 6 | G9: 8 | I9: Mc LAREN | J9: =IF(SUM(Miami!$D$29:$D$30)=0,0,SUM(Bahrein:Monaco!$G$29:$G$30)) -> 17 | K9: 18 | L9: 6 | N9: SAINZ.Jr Carlos | O9: =IF(Miami!$D$8="",0,SUM(Bahrein:Monaco!$G$8)) -> 48 | P9: 2 | Q9: 6
G10: 0 | I10: HAAS | J10: =IF(SUM(Miami!$D$26:$D$27)=0,0,SUM(Bahrein:Monaco!$G$26:$G$27)) -> 8 | K10: 9 | L10: 7 | N10: LECLERC Charles | O10: =IF(Miami!$D$9="",0,SUM(Bahrein:Monaco!$G$9)) -> 42 | P10: 6 | Q10: 7
A11: VERSTAPPEN Max | B11: RED BULL RACING | D11: 1 | E11: 1 | G11: 25 | I11: ALFA ROMÉO | J11: =IF(SUM(Miami!$D$32:$D$33)=0,0,SUM(Bahrein:Monaco!$G$32:$G$33)) -> 6 | K11: 2 | L11: 8 | N11: STROLL Lance | O11: =IF(Miami!$D$15="",0,SUM(Bahrein:Monaco!$G$15)) -> 27 | P11: 15 | Q11: 8
A12: PEREZ Sergio | D12: 16 | G12: 0 | I12: ALPHA TAURI | J12: =IF(SUM(Miami!$D$23:$D$44)=0,0,SUM(Bahrein:Monaco!$G$23:$G$24)) -> 2 | K12: 4 | L12: 9 | N12: OCON Sebastian | O12: =IF(Miami!$D$21="",0,SUM(Bahrein:Monaco!$G$21)) -> 21 | P12: 6 | Q12: 9
G13: 0 | I13: WILLIAMS | J13: =IF(SUM(Miami!$D$17:$D$18)=0,0,SUM(Bahrein:Monaco!$G$17:$G$18)) -> 1 | K13: 1 | L13: 10 | N13: GASLY Pierre | O13: =IF(Miami!$D$20="",0,SUM(Bahrein:Monaco!$G$20)) -> 14 | P13: 7 | Q13: 10
A14: ALONSO Fernando | B14: ASTON MARTIN | D14: 2 | G14: 18 | N14: NORRIS Lando | O14: =IF(Miami!$D$29="",0,SUM(Bahrein:Monaco!$G$29)) -> 12 | P14: 2 | Q14: 11
A15: STROLL Lance | D15: OUT | G15: 0 | N15: HULKENBERG Nico | O15: =IF(Miami!$D$27="",0,SUM(Bahrein:Monaco!$G$27)) -> 6 | P15: 6 | Q15: 12
G16: 0 | N16: PIASTRI Oscar | O16: =IF(Miami!$D$30="",0,SUM(Bahrein:Monaco!$G$30)) -> 5 | P16: 1 | Q16: 13
A17: ALBON Alexander | B17: WILLIAMS | D17: 14 | G17: 0 | N17: BOTTAS Valtteri | O17: =IF(Miami!$D$32="",0,SUM(Bahrein:Monaco!$G$32)) -> 4 | P17: 1 | Q17: 14
A18: SARGEANT Logan | D18: 18 | G18: 0 | N18: GUANYU Zhou | O18: =IF(Miami!$D$33="",0,SUM(Bahrein:Monaco!$G$33)) -> 2 | P18: 2 | Q18: 15
G19: 0 | N19: MAGNUSSEN Kevin | O19: =IF(Miami!$D$26="",0,SUM(Bahrein:Monaco!$G$26)) -> 2 | P19: 0 | Q19: 15
A20: GASLY Pierre | B20: ALPINE F1 TEAM | D20: 7 | G20: 6 | N20: TSUNODA Yoki | O20: =IF(Miami!$D$23="",0,SUM(Bahrein:Monaco!$G$23)) -> 2 | P20: 0 | Q20: 15
A21: OCON Sebastian | D21: 3 | G21: 15 | N21: ALBON Alexander | O21: =IF(Miami!$D$17="",0,SUM(Bahrein:Monaco!$G$17)) -> 1 | P21: 1 | Q21: 18
G22: 0 | N22: DEVRIES Nyck | O22: =IF(Miami!$D$24="",0,SUM(Bahrein:Monaco!$G$24)) -> 0 | P22: 1 | Q22: 19
A23: TSUNODA Yuki | B23: ALPHA TAURI | D23: 15 | G23: 0 | N23: SARGEANT Logan | O23: =IF(Miami!$D$18="",0,SUM(Bahrein:Monaco!$G$18)) -> 0 | P23: 0 | Q23: 19
A24: DEVRIES Nyck | D24: 12 | G24: 0
G25: 0
A26: MAGNUSSEN Kevin | B26: HAAS | D26: OUT | G26: 0
A27: HULKENBERG Nico | D27: 17 | G27: 0
G28: 0
A29: NORRIS Lando | B29: Mc LAREN | D29: 9 | G29: 2
A30: PIASTRI Oscar | D30: 10 | G30: 1
G31: 0
A32: BOTTAS Valtteri | B32: ALFA ROMÉO | D32: 11 | G32: 0
A33: GUANYU Zhou | D33: 13 | G33: 0
G34: 0

Sheet Espagne
A1: BARCELONE - 4 JUIN 2023
A3: PILOTES | B3: ECURIES | C3: VOITURES | D3: Finish | E3: Pôle | F3: Pt tour | G3: Points | I3: ÉCURIES | J3: Points | K3: Écart | L3: Rang | N3: Noms | O3: Points | P3: Écart | Q3: Rang
I4: RED BULL RACING | J4: =IF(SUM(Monaco!$D$11:$D$12)=0,0,SUM(Bahrein:Espagne!$G$11:$G$12)) -> 287 | L4: =IF(J4="",0,(RANK(J4,$J$4:$J$13))) -> 1 | N4: VERSTAPPEN Max | O4: =IF(Monaco!$D$11="",0,SUM(Bahrein:Espagne!$G$11)) -> 170 | Q4: =IF(O4="",0,(RANK(O4,$O$4:$O$23))) -> 1
A5: HAMILTON Lewis | B5: MERCEDES | D5: 2 | G5: =IFERROR(CHOOSE(D5,25,18,15,12,10,8,6,4,2,1)+IF(D5<=10,F5),0) -> 18 | I5: MERCEDES | J5: =IF(SUM(Monaco!$D$5:$G$6)=0,0,SUM(Bahrein:Espagne!$G$5:$G$6)) -> 152 | K5: =J4-J5 -> 135 | L5: =IF(J5="",0,(RANK(J5,$J$4:$J$13))) -> 2 | N5: PEREZ Sergio | O5: =IF(Monaco!$D$12="",0,SUM(Bahrein:Espagne!$G$12)) -> 117 | P5: =O4-O5 -> 53 | Q5: =IF(O5="",0,(RANK(O5,$O$4:$O$23))) -> 2
A6: RUSSELL George | D6: 3 | G6: =IFERROR(CHOOSE(D6,25,18,15,12,10,8,6,4,2,1)+IF(D6<=10,F6),0) -> 15 | I6: ASTON MARTIN | J6: =IF(SUM(Monaco!$D$14:$D$15)=0,0,SUM(Bahrein:Espagne!$G$14:$G$15)) -> 134 | K6: =J5-J6 -> 18 | L6: 3 | N6: ALONSO Fernando | O6: =IF(Monaco!$D$14="",0,SUM(Bahrein:Espagne!$G$14)) -> 99 | P6: =O5-O6 -> 18 | Q6: 3
G7: 0 | I7: FERRARI | J7: =IF(SUM(Monaco!$D$8:$D$9)=0,0,SUM(Bahrein:Espagne!$G$8:$G$9)) -> 100 | K7: 34 | L7: 4 | N7: HAMILTON Lewis | O7: =IF(Monaco!$D$5="",0,SUM(Bahrein:Espagne!$G$5)) -> 87 | P7: 12 | Q7: 4
A8: SAINZ.Jr Carlos | B8: FERRARI | D8: 5 | G8: 10 | I8: ALPINE F1 TEAM | J8: =IF(SUM(Monaco!$D$20:$D$21)=0,0,SUM(Bahrein:Espagne!$G$20:$G$21)) -> 40 | K8: 60 | L8: 5 | N8: RUSSEL George | O8: =IF(Monaco!$D$6="",0,SUM(Bahrein:Espagne!$G$6)) -> 65 | P8: 22 | Q8: 5
A9: LECLERC Charles | D9: 11 | G9: 0 | I9: Mc LAREN | J9: =IF(SUM(Monaco!$D$29:$D$30)=0,0,SUM(Bahrein:Espagne!$G$29:$G$30)) -> 17 | K9: 23 | L9: 6 | N9: SAINZ.Jr Carlos | O9: =IF(Monaco!$D$8="",0,SUM(Bahrein:Espagne!$G$8)) -> 58 | P9: 7 | Q9: 6
G10: 0 | I10: HAAS | J10: =IF(SUM(Monaco!$D$26:$D$27)=0,0,SUM(Bahrein:Espagne!$G$26:$G$27)) -> 8 | K10: 9 | L10: 7 | N10: LECLERC Charles | O10: =IF(Monaco!$D$9="",0,SUM(Bahrein:Espagne!$G$9)) -> 42 | P10: 16 | Q10: 7
A11: VERSTAPPEN Max | B11: RED BULL RACING | D11: 1 | E11: 1 | F11: 1 | G11: 26 | I11: ALFA ROMÉO | J11: =IF(SUM(Monaco!$D$32:$D$33)=0,0,SUM(Bahrein:Espagne!$G$32:$G$33)) -> 8 | K11: 0 | L11: 7 | N11: STROLL Lance | O11: =IF(Monaco!$D$15="",0,SUM(Bahrein:Espagne!$G$15)) -> 35 | P11: 7 | Q11: 8
A12: PEREZ Sergio | D12: 4 | G12: 12 | I12: ALPHA TAURI | J12: =IF(SUM(Monaco!$D$23:$D$24)=0,0,SUM(Bahrein:Espagne!$G$23:$G$24)) -> 2 | K12: 6 | L12: 9 | N12: OCON Sebastian | O12: =IF(Monaco!$D$21="",0,SUM(Bahrein:Espagne!$G$21)) -> 25 | P12: 10 | Q12: 9
G13: 0 | I13: WILLIAMS | J13: =IF(SUM(Monaco!$D$17:$D$18)=0,0,SUM(Bahrein:Espagne!$G$17:$G$18)) -> 1 | K13: 1 | L13: 10 | N13: GASLY Pierre | O13: =IF(Monaco!$D$20="",0,SUM(Bahrein:Espagne!$G$20)) -> 15 | P13: 10 | Q13: 10
A14: ALONSO Fernando | B14: ASTON MARTIN | D14: 7 | G14: 6 | N14: NORRIS Lando | O14: =IF(Monaco!$D$29="",0,SUM(Bahrein:Espagne!$G$29)) -> 12 | P14: 3 | Q14: 11
A15: STROLL Lance | D15: 6 | G15: 8 | N15: HULKENBERG Nico | O15: =IF(Monaco!$D$27="",0,SUM(Bahrein:Espagne!$G$27)) -> 6 | P15: 6 | Q15: 12
G16: 0 | N16: PIASTRI Oscar | O16: =IF(Monaco!$D$30="",0,SUM(Bahrein:Espagne!$G$30)) -> 5 | P16: 1 | Q16: 13
A17: ALBON Alexander | B17: WILLIAMS | D17: 16 | G17: 0 | N17: BOTTAS Valtteri | O17: =IF(Monaco!$D$32="",0,SUM(Bahrein:Espagne!$G$32)) -> 4 | P17: 1 | Q17: 14
A18: SARGEANT Logan | D18: 20 | G18: 0 | N18: GUANYU Zhou | O18: =IF(Monaco!$D$33="",0,SUM(Bahrein:Espagne!$G$33)) -> 4 | P18: 0 | Q18: 14
G19: 0 | N19: MAGNUSSUN Kevin | O19: =IF(Monaco!$D$26="",0,SUM(Bahrein:Espagne!$G$26)) -> 2 | P19: 2 | Q19: 16
A20: GASLY Pierre | B20: ALPINE F1 TEAM | D20: 10 | G20: 1 | N20: TSUNODA Yoki | O20: =IF(Monaco!$D$23="",0,SUM(Bahrein:Espagne!$G$23)) -> 2 | P20: 0 | Q20: 16
A21: OCON Sebastian | D21: 8 | G21: 4 | N21: ALBON Alexander | O21: =IF(Monaco!$D$17="",0,SUM(Bahrein:Espagne!$G$17)) -> 1 | P21: 1 | Q21: 18
G22: 0 | N22: DEVRIES Nyck | O22: =IF(Monaco!$D$24="",0,SUM(Bahrein:Espagne!$G$24)) -> 0 | P22: 1 | Q22: 19
A23: TSUNODA Yuki | B23: ALPHA TAURI | D23: 12 | G23: 0 | N23: SARGEANT Logan | O23: =IF(Monaco!$D$18="",0,SUM(Bahrein:Espagne!$G$18)) -> 0 | P23: 0 | Q23: 19
A24: DEVRIES Nyck | D24: 14 | G24: 0
G25: 0
A26: MAGNUSSEN Kevin | B26: HAAS | D26: 18 | G26: 0
A27: HULKENBERG Nico | D27: 15 | G27: 0
G28: 0
A29: NORRIS Lando | B29: Mc LAREN | D29: 17 | G29: 0
A30: PIASTRI Oscar | D30: 13 | G30: 0
G31: 0
A32: BOTTAS Valtteri | B32: ALFA ROMÉO | D32: 19 | G32: 0
A33: GUANYU Zhou | D33: 9 | G33: 2
G34: 0

Sheet Canada
A1: MONTRÉAL - 18 JUIN 2023
A3: PILOTES | B3: ECURIES | C3: VOITURES | D3: Finish | E3: Pôle | F3: Pt tour | G3: Points | I3: ÉCURIES | J3: Points | K3: Écart | L3: Rang | N3: Noms | O3: Points | P3: Écart | Q3: Rang
I4: RED BULL RACING | J4: =IF(SUM(Espagne!$D$11:$D$12)=0,0,SUM(Bahrein:Canada!$G$11:$G$12)) -> 321 | L4: =IF(J4="",0,(RANK(J4,$J$4:$J$13))) -> 1 | N4: VERSTAPPEN Max | O4: =IF(Espagne!$D$11="",0,SUM(Bahrein:Canada!$G$11)) -> 195 | Q4: =IF(O4="",0,(RANK(O4,$O$4:$O$23))) -> 1
A5: HAMILTON Lewis | B5: MERCEDES | D5: 3 | G5: =IFERROR(CHOOSE(D5,25,18,15,12,10,8,6,4,2,1)+IF(D5<=10,F5),0) -> 15 | I5: MERCEDES | J5: =IF(SUM(Espagne!$D$5:$D$6)=0,0,SUM(Bahrein:Canada!$G$5:$G$6)) -> 167 | K5: =J4-J5 -> 154 | L5: =IF(J5="",0,(RANK(J5,$J$4:$J$13))) -> 2 | N5: PEREZ Sergio | O5: =IF(Espagne!$D$12="",0,SUM(Bahrein:Canada!$G$12)) -> 126 | P5: =O4-O5 -> 69 | Q5: =IF(O5="",0,(RANK(O5,$O$4:$O$23))) -> 2
A6: RUSSELL George | D6: OUT | G6: =IFERROR(CHOOSE(D6,25,18,15,12,10,8,6,4,2,1)+IF(D6<=10,F6),0) -> 0 | I6: ASTON MARTIN | J6: =IF(SUM(Espagne!$D$14:$D$15)=0,0,SUM(Bahrein:Canada!$G$14:$G$15)) -> 154 | K6: =J5-J6 -> 13 | L6: 3 | N6: ALONSO Fernando | O6: =IF(Espagne!$D$14="",0,SUM(Bahrein:Canada!$G$14)) -> 117 | P6: =O5-O6 -> 9 | Q6: 3
G7: 0 | I7: FERRARI | J7: =IF(SUM(Espagne!$D$5:$D$9)=0,0,SUM(Bahrein:Canada!$G$8:$G$9)) -> 122 | K7: 32 | L7: 4 | N7: HAMILTON Lewis | O7: =IF(Espagne!$D$5="",0,SUM(Bahrein:Canada!$G$5)) -> 102 | P7: 15 | Q7: 4
A8: SAINZ.Jr Carlos | B8: FERRARI | D8: 5 | G8: 10 | I8: ALPINE F1 TEAM | J8: =IF(SUM(Espagne!$D$20:$D$21)=0,0,SUM(Bahrein:Canada!$G$20:$G$21)) -> 44 | K8: 78 | L8: 5 | N8: SAINZ.Jr Carlos | O8: =IF(Espagne!$D$8="",0,SUM(Bahrein:Canada!$G$8)) -> 68 | P8: 34 | Q8: 5
A9: LECLERC Charles | D9: 4 | G9: 12 | I9: Mc LAREN | J9: =IF(SUM(Espagne!$D$29:$D$30)=0,0,SUM(Bahrein:Canada!$G$29:$G$30)) -> 17 | K9: 27 | L9: 6 | N9: RUSSEL George | O9: =IF(Espagne!$D$6="",0,SUM(Bahrein:Canada!$G$6)) -> 65 | P9: 3 | Q9: 6
G10: 0 | I10: ALFA ROMÉO | J10: =IF(SUM(Espagne!$D$32:$D$33)=0,0,SUM(Bahrein:Canada!$G$32:$G$33)) -> 9 | K10: 8 | L10: 7 | N10: LECLERC Charles | O10: =IF(Espagne!$D$9="",0,SUM(Bahrein:Canada!$G$9)) -> 54 | P10: 11 | Q10: 7
A11: VERSTAPPEN Max | B11: RED BULL RACING | D11: 1 | E11: 1 | G11: 25 | I11: HAAS | J11: =IF(SUM(Espagne!$D$26:$D$27)=0,0,SUM(Bahrein:Canada!$G$26:$G$27)) -> 8 | K11: 1 | L11: 8 | N11: STROLL Lance | O11: =IF(Espagne!$D$15="",0,SUM(Bahrein:Canada!$G$15)) -> 37 | P11: 17 | Q11: 8
A12: PEREZ Sergio | D12: 6 | F12: 1 | G12: 9 | I12: WILLIAMS | J12: =IF(SUM(Espagne!$D$17:$D$18)=0,0,SUM(Bahrein:Canada!$G$17:$G$18)) -> 7 | K12: 1 | L12: 9 | N12: OCON Sebastian | O12: =IF(Espagne!$D$21="",0,SUM(Bahrein:Canada!$G$21)) -> 29 | P12: 8 | Q12: 9
G13: 0 | I13: ALPHA TAURI | J13: =IF(SUM(Espagne!$D$23:$D$24)=0,0,SUM(Bahrein:Canada!$G$23:$G$24)) -> 2 | K13: 5 | L13: 10 | N13: GASLY Pierre | O13: =IF(Espagne!$D$20="",0,SUM(Bahrein:Canada!$G$20)) -> 15 | P13: 14 | Q13: 10
A14: ALONSO Fernando | B14: ASTON MARTIN | D14: 2 | G14: 18 | N14: NORRIS Lando | O14: =IF(Espagne!$D$29="",0,SUM(Bahrein:Canada!$G$29)) -> 12 | P14: 3 | Q14: 11
A15: STROLL Lance | D15: 9 | G15: 2 | N15: ALBON Alexander | O15: =IF(Espagne!$D$17="",0,SUM(Bahrein:Canada!$G$17)) -> 7 | P15: 5 | Q15: 12
G16: 0 | N16: HULKENBERG Nico | O16: =IF(Espagne!$D$27="",0,SUM(Bahrein:Canada!$G$27)) -> 6 | P16: 1 | Q16: 13
A17: ALBON Alexander | B17: WILLIAMS | D17: 7 | G17: 6 | N17: PIASTRI Oscar | O17: =IF(Espagne!$D$30="",0,SUM(Bahrein:Canada!$G$30)) -> 5 | P17: 1 | Q17: 14
A18: SARGEANT Logan | D18: OUT | G18: 0 | N18: BOTTAS Valtteri | O18: =IF(Espagne!$D$32="",0,SUM(Bahrein:Canada!$G$32)) -> 5 | P18: 0 | Q18: 14
G19: 0 | N19: GUANYU Zhou | O19: =IF(Espagne!$D$33="",0,SUM(Bahrein:Canada!$G$33)) -> 4 | P19: 1 | Q19: 16
A20: GASLY Pierre | B20: ALPINE F1 TEAM | D20: 12 | G20: 0 | N20: MAGNUSSEN Kevin | O20: =IF(Espagne!$D$26="",0,SUM(Bahrein:Canada!$G$26)) -> 2 | P20: 2 | Q20: 17
A21: OCON Sebastian | D21: 8 | G21: 4 | N21: TSUNODA Yoki | O21: =IF(Espagne!$D$23="",0,SUM(Bahrein:Canada!$G$23)) -> 2 | P21: 0 | Q21: 17
G22: 0 | N22: DEVRIES Nyck | O22: =IF(Espagne!$D$24="",0,SUM(Bahrein:Canada!$G$24)) -> 0 | P22: 2 | Q22: 19
A23: TSUNODA Yuki | B23: ALPHA TAURI | D23: 14 | G23: 0 | N23: SARGEANT Logan | O23: =IF(Espagne!$D$18="",0,SUM(Bahrein:Canada!$G$18)) -> 0 | P23: 0 | Q23: 19
A24: DEVRIES Nyck | D24: 18 | G24: 0
G25: 0
A26: MAGNUSSEN Kevin | B26: HAAS | D26: 17 | G26: 0
A27: HULKENBERG Nico | D27: 15 | G27: 0
G28: 0
A29: NORRIS Lando | B29: Mc LAREN | D29: 13 | G29: 0
A30: PIASTRI Oscar | D30: 11 | G30: 0
G31: 0
A32: BOTTAS Valtteri | B32: ALFA ROMÉO | D32: 10 | G32: 1
A33: GUANYU Zhou | D33: 16 | G33: 0
G34: 0

Sheet Autriche
A1: SPIELBERG - 2 JUILLET 2023
A3: PILOTES | B3: ECURIES | C3: VOITURES | D3: Finish | E3: Pôle | F3: Pt tour | G3: Points | H3: Sprint | I3: ÉCURIES | J3: Points | K3: Écart | L3: Rang | N3: Noms | O3: Points | P3: Écart | Q3: Rang
I4: RED BULL RACING | J4: =IF(SUM(Canada!$D$11:$D$12)=0,0,SUM(Bahrein:Autriche!$G$11:$G$12)) -> 377 | L4: =IF(J4="",0,(RANK(J4,$J$4:$J$13))) -> 1 | N4: VERSTAPPEN Max | O4: =IF(Canada!$D$11="",0,SUM(Bahrein:Autriche!$G$11)) -> 229 | Q4: =IF(O4="",0,(RANK(O4,$O$4:$O$23))) -> 1
A5: HAMILTON Lewis | B5: MERCEDES | D5: 8 | G5: =IFERROR(CHOOSE(D5,25,18,15,12,10,8,6,4,2,1),0)+IFERROR(CHOOSE(H5,8,7,6,5,4,3,2,1),0)+IF(D5<=10,F5,0) -> 4 | I5: MERCEDES | J5: =IF(SUM(Canada!$D$5:$D$6)=0,0,SUM(Bahrein:Autriche!$G$5:$G$6)) -> 178 | K5: =J4-J5 -> 199 | L5: =IF(J5="",0,(RANK(J5,$J$4:$J$13))) -> 2 | N5: PEREZ Sergio | O5: =IF(Canada!$D$12=0,0,SUM(Bahrein:Autriche!$G$12)) -> 148 | P5: =O4-O5 -> 81 | Q5: =IF(O5="",0,(RANK(O5,$O$4:$O$23))) -> 2
A6: RUSSELL George | D6: 7 | G6: =IFERROR(CHOOSE(D6,25,18,15,12,10,8,6,4,2,1),0)+IFERROR(CHOOSE(H6,8,7,6,5,4,3,2,1),0)+IF(D6<=10,F6,0) -> 7 | H6: 8 | I6: ASTON MARTIN | J6: =IF(SUM(Canada!$D$14:$D$15)=0,0,SUM(Bahrein:Autriche!$G$14:$G$15)) -> 175 | K6: =J5-J6 -> 3 | L6: 3 | N6: ALONSO Fernando | O6: =IF(Canada!$D$14=0,0,SUM(Bahrein:Autriche!$G$14)) -> 131 | P6: =O5-O6 -> 17 | Q6: 3
G7: 0 | I7: FERRARI | J7: =IF(SUM(Canada!$D$8:$D$9)=0,0,SUM(Bahrein:Autriche!$G$8:$G$9)) -> 154 | K7: 21 | L7: 4 | N7: HAMILTON Lewis | O7: =IF(Canada!$D$5=0,0,SUM(Bahrein:Autriche!$G$5)) -> 106 | P7: 25 | Q7: 4
A8: SAINZ.Jr Carlos | B8: FERRARI | D8: 6 | G8: 14 | H8: 3 | I8: ALPINE F1 TEAM | J8: =IF(SUM(Canada!$D$20:$D$21)=0,0,SUM(Bahrein:Autriche!$G$20:$G$21)) -> 47 | K8: 107 | L8: 5 | N8: SAINZ.Jr Carlos | O8: =IF(Canada!$D$8=0,0,SUM(Bahrein:Autriche!$G$8)) -> 82 | P8: 24 | Q8: 5
A9: LECLERC Charles | D9: 2 | G9: 18 | I9: Mc LAREN | J9: =IF(SUM(Canada!$D$29:$D$30)=0,0,SUM(Bahrein:Autriche!$G$29:$G$30)) -> 29 | K9: 18 | L9: 6 | N9: LECLERC Charles | O9: =IF(Canada!$D$9=0,0,SUM(Bahrein:Autriche!$G$9)) -> 72 | P9: 10 | Q9: 6
G10: 0 | I10: HAAS | J10: =IF(SUM(Canada!$D$26:$D$27)=0,0,SUM(Bahrein:Autriche!$G$26:$G$27)) -> 11 | K10: 18 | L10: 7 | N10: RUSSEL George | O10: =IF(Canada!$D$6=0,0,SUM(Bahrein:Autriche!$G$6)) -> 72 | P10: 0 | Q10: 6
A11: VERSTAPPEN Max | B11: RED BULL RACING | D11: 1 | E11: 1 | F11: 1 | G11: 34 | H11: 1 | I11: ALFA ROMÉO | J11: =IF(SUM(Canada!$D$32:$D$33)=0,0,SUM(Bahrein:Autriche!$G$32:$G$33)) -> 9 | K11: 2 | L11: 8 | N11: STROLL Lance | O11: =IF(Canada!$D$15=0,0,SUM(Bahrein:Autriche!$G$15)) -> 44 | P11: 28 | Q11: 8
A12: PEREZ Sergio | D12: 3 | G12: 22 | H12: 2 | I12: WILLIAMS | J12: =IF(SUM(Canada!$D$17:$D$18)=0,0,SUM(Bahrein:Autriche!$G$17:$G$18)) -> 7 | K12: 2 | L12: 9 | N12: OCON Sebastian | O12: =IF(Canada!$D$21=0,0,SUM(Bahrein:Autriche!$G$21)) -> 31 | P12: 13 | Q12: 9
G13: 0 | I13: ALPHA TAURI | J13: =IF(SUM(Canada!$D$23:$D$24)=0,0,SUM(Bahrein:Autriche!$G$23:$G$24)) -> 2 | K13: 5 | L13: 10 | N13: NORRIS Lando | O13: =IF(Canada!$D$29=0,0,SUM(Bahrein:Autriche!$G$29)) -> 24 | P13: 7 | Q13: 10
A14: ALONSO Fernando | B14: ASTON MARTIN | D14: 5 | G14: 14 | H14: 5 | N14: GASLY Pierre | O14: =IF(Canada!$D$20=0,0,SUM(Bahrein:Autriche!$G$20)) -> 16 | P14: 8 | Q14: 11
A15: STROLL Lance | D15: 9 | G15: 7 | H15: 4 | N15: HULKENBERG Nico | O15: =IF(Canada!$D$27=0,0,SUM(Bahrein:Autriche!$G$27)) -> 9 | P15: 7 | Q15: 12
G16: 0 | N16: ALBON Alexander | O16: =IF(Canada!$D$17=0,0,SUM(Bahrein:Autriche!$G$17)) -> 7 | P16: 2 | Q16: 13
A17: ALBON Alexander | B17: WILLIAMS | D17: 11 | G17: 0 | N17: BOTTAS Valtteri | O17: =IF(Canada!$D$32=0,0,SUM(Bahrein:Autriche!$G$32)) -> 5 | P17: 2 | Q17: 14
A18: SARGEANT Logan | D18: 13 | G18: 0 | N18: GUANYU Zhou | O18: =IF(Canada!$D$33=0,0,SUM(Bahrein:Autriche!$G$33)) -> 4 | P18: 1 | Q18: 15
G19: 0 | N19: MAGNUSSEN Kevin | O19: =IF(Canada!$D$26=0,0,SUM(Bahrein:Autriche!$G$26)) -> 2 | P19: 2 | Q19: 16
A20: GASLY Pierre | B20: ALPINE F1 TEAM | D20: 10 | G20: 1 | N20: TSUNODA Yoki | O20: =IF(Canada!$D$23=0,0,SUM(Bahrein:Autriche!$G$23)) -> 2 | P20: 0 | Q20: 16
A21: OCON Sebastian | D21: 14 | G21: 2 | H21: 7 | N21: PIASTRI Oscar | O21: =IF(Canada!$D$30=0,0,SUM(Bahrein:Autriche!$F$30)) -> 0 | P21: 2 | Q21: 18
G22: 0 | N22: SARGEANT Logan | O22: =IF(Canada!$D$18=0,0,SUM(Bahrein:Autriche!$G$18)) -> 0 | P22: 0 | Q22: 18
A23: TSUNODA Yuki | B23: ALPHA TAURI | D23: 19 | G23: 0 | N23: DEVRIES Nyck | O23: =IF(Canada!$D$24=0,0,SUM(Bahrein:Autriche!$G$24)) -> 0 | P23: 0 | Q23: 18
A24: DEVRIES Nyck | D24: 17 | G24: 0
G25: 0
A26: MAGNUSSEN Kevin | B26: HAAS | D26: 18 | G26: 0
A27: HULKENBERG Nico | D27: OUT | G27: 3 | H27: 6
G28: 0
A29: NORRIS Lando | B29: Mc LAREN | D29: 4 | G29: 12
A30: PIASTRI Oscar | D30: 16 | G30: 0
G31: 0
A32: BOTTAS Valtteri | B32: ALFA ROMÉO | D32: 15 | G32: 0
A33: GUANYU Zhou | D33: 12 | G33: 0
G34: 0

Sheet GB
A1: SILVERSTONE - 9 JUILLET 2023
A3: PILOTES | B3: ECURIES | C3: VOITURES | D3: Finish | E3: Pôle | F3: Pt tour | G3: Points | I3: ÉCURIES | J3: Points | K3: Écart | L3: Rang | N3: Noms | O3: Points | P3: Écart | Q3: Rang
I4: RED BULL RACING | J4: =IF(SUM(Autriche!$D$11:$D$12)=0,0,SUM(Bahrein:GB!$G$11:$G$12)) -> 411 | L4: =IF(J4="",0,(RANK(J4,$J$4:$J$13))) -> 1 | N4: VERSTAPPEN Max | O4: =IF(Autriche!$D$11="",0,SUM(Bahrein:GB!$G$11)) -> 255 | Q4: =IF(O4="",0,(RANK(O4,$O$4:$O$23))) -> 1
A5: HAMILTON Lewis | B5: MERCEDES | D5: 3 | G5: =IFERROR(CHOOSE(D5,25,18,15,12,10,8,6,4,2,1)+IF(D5<=10,F5),0) -> 15 | I5: MERCEDES | J5: =IF(SUM(Autriche!$D$5:$D$6)=0,0,SUM(Bahrein:GB!$G$5:$G$6)) -> 203 | K5: =J4-J5 -> 208 | L5: =IF(J5="",0,(RANK(J5,$J$4:$J$13))) -> 2 | N5: PEREZ Sergio | O5: =IF(Autriche!$D$12="",0,SUM(Bahrein:GB!$G$12)) -> 156 | P5: =O4-O5 -> 99 | Q5: =IF(O5="",0,(RANK(O5,$O$4:$O$23))) -> 2
A6: RUSSELL George | D6: 5 | G6: =IFERROR(CHOOSE(D6,25,18,15,12,10,8,6,4,2,1)+IF(D6<=10,F6),0) -> 10 | I6: ASTON MARTIN | J6: =IF(SUM(Autriche!$D$14:$D$15)=0,0,SUM(Bahrein:GB!$G$14:$G$15)) -> 181 | K6: =J5-J6 -> 22 | L6: 3 | N6: ALONSO Fernando | O6: =IF(Autriche!$D$14="",0,SUM(Bahrein:GB!$G$14)) -> 137 | P6: =O5-O6 -> 19 | Q6: 3
G7: 0 | I7: FERRARI | J7: =IF(SUM(Autriche!$D$8:$D$9)=0,0,SUM(Bahrein:GB!$G$8:$G$9)) -> 157 | K7: 24 | L7: 4 | N7: HAMILTON Lewis | O7: =IF(Autriche!$D$5="",0,SUM(Bahrein:GB!$G$5)) -> 121 | P7: 16 | Q7: 4
A8: SAINZ.Jr Carlos | B8: FERRARI | D8: 10 | G8: 1 | I8: Mc LAREN | J8: =IF(SUM(Autriche!$D$29:$D$30)=0,0,SUM(Bahrein:GB!$G$29:$G$30)) -> 59 | K8: 98 | L8: 5 | N8: SAINZ.Jr Carlos | O8: =IF(Autriche!$D$8="",0,SUM(Bahrein:GB!$G$8)) -> 83 | P8: 38 | Q8: 5
A9: LECLERC Charles | D9: 9 | G9: 2 | I9: ALPINE F1 TEAM | J9: =IF(SUM(Autriche!$D$20:$D$21)=0,0,SUM(Bahrein:GB!$G$20:$G$21)) -> 47 | K9: 12 | L9: 6 | N9: RUSSEL George | O9: =IF(Autriche!$D$6="",0,SUM(Bahrein:GB!$G$6)) -> 82 | P9: 1 | Q9: 6
G10: 0 | I10: WILLIAMS | J10: =IF(SUM(Autriche!$D$17:$D$18)=0,0,SUM(Bahrein:GB!$G$17:$G$18)) -> 11 | K10: 36 | L10: 7 | N10: LECLERC Charles | O10: =IF(Autriche!$D$9="",0,SUM(Bahrein:GB!$G$9)) -> 74 | P10: 8 | Q10: 7
A11: VERSTAPPEN Max | B11: RED BULL RACING | D11: 1 | E11: 1 | F11: 1 | G11: 26 | I11: HAAS | J11: =IF(SUM(Autriche!$D$26:$D$27)=0,0,SUM(Bahrein:GB!$G$26:$G$27)) -> 11 | K11: 0 | L11: 7 | N11: STROLL Lance | O11: =IF(Autriche!$D$15="",0,SUM(Bahrein:GB!$G$15)) -> 44 | P11: 30 | Q11: 8
A12: PEREZ Sergio | D12: 6 | G12: 8 | I12: ALFA ROMÉO | J12: =IF(SUM(Autriche!$D$32:$D$33)=0,0,SUM(Bahrein:GB!$G$32:$G$33)) -> 9 | K12: 2 | L12: 9 | N12: NORRIS Lando | O12: =IF(Autriche!$D$29="",0,SUM(Bahrein:GB!$G$29)) -> 42 | P12: 2 | Q12: 9
G13: 0 | I13: ALPHA TAURI | J13: =IF(SUM(Autriche!$D$23:$D$24)=0,0,SUM(Bahrein:GB!$G$23:$G$24)) -> 2 | K13: 7 | L13: 10 | N13: OCON Sebastian | O13: =IF(Autriche!$D$21="",0,SUM(Bahrein:GB!$G$21)) -> 31 | P13: 11 | Q13: 10
A14: ALONSO Fernando | B14: ASTON MARTIN | D14: 7 | G14: 6 | N14: PIASTRI Oscar | O14: =IF(Autriche!$D$30="",0,SUM(Bahrein:GB!$G$30)) -> 17 | P14: 14 | Q14: 11
A15: STROLL Lance | D15: 14 | G15: 0 | N15: GASLY Pierre | O15: =IF(Autriche!$D$20="",0,SUM(Bahrein:GB!$G$20)) -> 16 | P15: 1 | Q15: 12
G16: 0 | N16: ALBON Alexander | O16: =IF(Autriche!$D$17="",0,SUM(Bahrein:GB!$G$17)) -> 11 | P16: 5 | Q16: 13
A17: ALBON Alexander | B17: WILLIAMS | D17: 8 | G17: 4 | N17: HULKENBERG Nico | O17: =IF(Autriche!$D$27="",0,SUM(Bahrein:GB!$G$27)) -> 9 | P17: 2 | Q17: 14
A18: SARGEANT Logan | D18: 11 | G18: 0 | N18: BOTTAS Valtteri | O18: =IF(Autriche!$D$32="",0,SUM(Bahrein:GB!$G$32)) -> 5 | P18: 4 | Q18: 15
G19: 0 | N19: GUANYU Zhou | O19: =IF(Autriche!$D$33="",0,SUM(Bahrein:GB!$G$33)) -> 4 | P19: 1 | Q19: 16
A20: GASLY Pierre | B20: ALPINE F1 TEAM | D20: OUT | G20: 0 | N20: MAGNUSSEN Kevin | O20: =IF(Autriche!$D$26="",0,SUM(Bahrein:GB!$G$26)) -> 2 | P20: 2 | Q20: 17
A21: OCON Sebastian | D21: OUT | G21: 0 | N21: TSUNODA Yoki | O21: =IF(Autriche!$D$23="",0,SUM(Bahrein:GB!$G$23)) -> 2 | P21: 0 | Q21: 17
G22: 0 | N22: SARGEANT Logan | O22: =IF(Autriche!$D$18="",0,SUM(Bahrein:GB!$G$18)) -> 0 | P22: 2 | Q22: 19
A23: TSUNODA Yuki | B23: ALPHA TAURI | D23: 16 | G23: 0 | N23: DEVRIES Nyck | O23: =IF(Autriche!$D$24="",0,SUM(Bahrein:GB!$G$24)) -> 0 | P23: 0 | Q23: 19
A24: RICCIARDO Daniel | D24: 17 | G24: 0
G25: 0
A26: MAGNUSSEN Kevin | B26: HAAS | D26: OUT | G26: 0
A27: HULKENBERG Nico | D27: 13 | G27: 0
G28: 0
A29: NORRIS Lando | B29: Mc LAREN | D29: 2 | G29: 18
A30: PIASTRI Oscar | D30: 4 | G30: 12
G31: 0
A32: BOTTAS Valtteri | B32: ALFA ROMÉO | D32: 12 | G32: 0
A33: GUANYU Zhou | D33: 15 | G33: 0
G34: 0

Sheet Hongrie
A1: BUDAPEST - 23 JUILLET 2023
A3: PILOTES | B3: ECURIES | C3: VOITURES | D3: Finish | E3: Pôle | F3: Pt tour | G3: Points | I3: ÉCURIES | J3: Points | K3: Écart | L3: Rang | N3: Noms | O3: Points | P3: Écart | Q3: Rang
I4: RED BULL RACING | J4: =IF(SUM(GB!$D$11:$D$12)=0,0,SUM(Bahrein:Hongrie!$G$11:$G$12)) -> 452 | L4: =IF(J4="",0,(RANK(J4,$J$4:$J$13))) -> 1 | N4: VERSTAPPEN Max | O4: =IF(GB!$D$11="",0,SUM(Bahrein:Hongrie!$G$11)) -> 281 | Q4: =IF(O4="",0,(RANK(O4,$O$4:$O$23))) -> 1
A5: HAMILTON Lewis | B5: MERCEDES | D5: 4 | E5: 1 | G5: =IFERROR(CHOOSE(D5,25,18,15,12,10,8,6,4,2,1)+IF(D5<=10,F5),0) -> 12 | I5: MERCEDES | J5: =IF(SUM(GB!$D$5:$D$6)=0,0,SUM(Bahrein:Hongrie!$G$5:$G$6)) -> 223 | K5: =J4-J5 -> 229 | L5: =IF(J5="",0,(RANK(J5,$J$4:$J$13))) -> 2 | N5: PEREZ Sergio | O5: =IF(GB!$D$12="",0,SUM(Bahrein:Hongrie!$G$12)) -> 171 | P5: =O4-O5 -> 110 | Q5: =IF(O5="",0,(RANK(O5,$O$4:$O$23))) -> 2
A6: RUSSELL GEORGE | D6: 6 | G6: =IFERROR(CHOOSE(D6,25,18,15,12,10,8,6,4,2,1)+IF(D6<=10,F6),0) -> 8 | I6: ASTON MARTIN | J6: =IF(SUM(GB!$D$14:$D$15)=0,0,SUM(Bahrein:Hongrie!$G$14:$G$15)) -> 184 | K6: =J5-J6 -> 39 | L6: 3 | N6: ALONSO Fernando | O6: =IF(GB!$D$14="",0,SUM(Bahrein:Hongrie!$G$14)) -> 139 | P6: =O5-O6 -> 32 | Q6: 3
G7: 0 | I7: FERRARI | J7: =IF(SUM(GB!$D$8:$D$9)=0,0,SUM(Bahrein:Hongrie!$G$8:$G$9)) -> 167 | K7: 17 | L7: 4 | N7: HAMILTON Lewis | O7: =IF(GB!$D$5="",0,SUM(Bahrein:Hongrie!$G$5)) -> 133 | P7: 6 | Q7: 4
A8: SAINZ.Jr Carlos | B8: FERRARI | D8: 8 | G8: 4 | I8: Mc LAREN | J8: =IF(SUM(GB!$D$29:$D$30)=0,0,SUM(Bahrein:Hongrie!$G$29:$G$30)) -> 87 | K8: 80 | L8: 5 | N8: RUSSEL George | O8: =IF(GB!$D$6="",0,SUM(Bahrein:Hongrie!$G$6)) -> 90 | P8: 43 | Q8: 5
A9: LECLERC Charles | D9: 7 | G9: 6 | I9: WILLIAMS | J9: =IF(SUM(GB!$D$17:$D$18)=0,0,SUM(Bahrein:Hongrie!$G$17:$G$18)) -> 11 | K9: 76 | L9: 6 | N9: SAINZ.Jr Carlos | O9: =IF(GB!$D$8="",0,SUM(Bahrein:Hongrie!$G$8)) -> 87 | P9: 3 | Q9: 6
G10: 0 | I10: HAAS | J10: =IF(SUM(GB!$D$26:$D$27)=0,0,SUM(Bahrein:Hongrie!$G$26:$G$27)) -> 11 | K10: 0 | L10: 6 | N10: LECLERC Charles | O10: =IF(GB!$D$9="",0,SUM(Bahrein:Hongrie!$G$9)) -> 80 | P10: 7 | Q10: 7
A11: VERSTAPPEN Max | B11: RED BULL RACING | D11: 1 | F11: 1 | G11: 26 | I11: ALFA ROMÉO | J11: =IF(SUM(GB!$D$32:$D$33)=0,0,SUM(Bahrein:Hongrie!$G$32:$G$33)) -> 9 | K11: 2 | L11: 8 | N11: NORRIS Lando | O11: =IF(GB!$D$29="",0,SUM(Bahrein:Hongrie!$G$29)) -> 60 | P11: 20 | Q11: 8
A12: PEREZ Sergio | D12: 3 | G12: 15 | I12: ALPHA TAURI | J12: =IF(SUM(GB!$D$24:$D$123)=0,0,SUM(Bahrein:Hongrie!$G$23:$G$24)) -> 2 | K12: 7 | L12: 9 | N12: STROLL Lance | O12: =IF(GB!$D$15="",0,SUM(Bahrein:Hongrie!$G$15)) -> 45 | P12: 15 | Q12: 9
G13: 0 | I13: ALPINE F1 TEAM | J13: =IF(SUM(GB!$D$20:$D$21)=0,0,SUM(Bahrein:Hongrie!$G$20:$G$21)) -> 0 | K13: 2 | L13: 10 | N13: OCON Sebastian | O13: =IF(GB!$D$21="",0,SUM(Bahrein:Hongrie!$G$21)) -> 31 | P13: 14 | Q13: 10
A14: ALONSO Fernando | B14: ASTON MARTIN | D14: 9 | G14: 2 | N14: PIASTRI Oscar | O14: =IF(GB!$D$30="",0,SUM(Bahrein:Hongrie!$G$30)) -> 27 | P14: 4 | Q14: 11
A15: STROLL Lance | D15: 10 | G15: 1 | N15: GASLY Pierre | O15: =IF(GB!$D$20="",0,SUM(Bahrein:Hongrie!$G$20)) -> 16 | P15: 11 | Q15: 12
G16: 0 | N16: ALBON Alexander | O16: =IF(GB!$D$17="",0,SUM(Bahrein:Hongrie!$G$17)) -> 11 | P16: 5 | Q16: 13
A17: ALBON Alexander | B17: WILLIAMS | D17: 11 | G17: 0 | N17: HULKENBERG Nico | O17: =IF(GB!$D$27="",0,SUM(Bahrein:Hongrie!$G$27)) -> 9 | P17: 2 | Q17: 14
A18: SARGEANT Logan | D18: OUT | G18: 0 | N18: BOTTAS Valtteri | O18: =IF(GB!$D$32="",0,SUM(Bahrein:Hongrie!$G$32)) -> 5 | P18: 4 | Q18: 15
G19: 0 | N19: GUANYU Zhou | O19: =IF(GB!$D$33="",0,SUM(Bahrein:Hongrie!$G$33)) -> 4 | P19: 1 | Q19: 16
A20: GASLY Pierre | B20: ALPINE F1 TEAM | D20: OUT | G20: 0 | N20: MAGNUSEN Kevin | O20: =IF(GB!$D$26="",0,SUM(Bahrein:Hongrie!$G$26)) -> 2 | P20: 2 | Q20: 17
A21: OCON Sebastian | D21: OUT | G21: 0 | N21: TSUNODA Yoki | O21: =IF(GB!$D$23="",0,SUM(Bahrein:Hongrie!$G$23)) -> 2 | P21: 0 | Q21: 17
G22: 0 | N22: SARGEANT Logan | O22: =IF(GB!$D$18="",0,SUM(Bahrein:Hongrie!$G$18)) -> 0 | P22: 2 | Q22: 19
A23: TSUNODA Yuki | B23: ALPHA TAURI | D23: 15 | G23: 0 | N23: RICCIARDO Daniel | O23: =Hongrie!$G$24 -> 0 | P23: 0 | Q23: 19
A24: RICCIARDO Daniel | D24: 13 | G24: 0
G25: 0
A26: MAGNUSEN Kevin | B26: HAAS | D26: 17 | G26: 0
A27: HULKENBERG Nico | D27: 14 | G27: 0
G28: 0
A29: NORRIS Lando | B29: Mc LAREN | D29: 2 | G29: 18
A30: PIASTRI Oscar | D30: 5 | G30: 10
G31: 0
A32: BOTTAS Valtteri | B32: ALFA ROMÉO | D32: 12 | G32: 0
A33: GUANYU Zhou | D33: 16 | G33: 0
G34: 0

Sheet Belgique
A1: SPA FRANCORCHAMPS - 30 JUILLET 2023
A3: PILOTES | B3: ECURIES | C3: VOITURES | D3: Finish | E3: Pôle | F3: Pt tour | G3: Points | H3: Sprint | I3: ÉCURIES | J3: Points | K3: Écart | L3: Rang | N3: Noms | O3: Points | P3: Écart | Q3: Rang
I4: RED BULL RACING | J4: =IF(SUM(Hongrie!$D$11:$D$12)=0,0,SUM(Bahrein:Belgique!$G$11:$G$12)) -> 503 | L4: =IF(J4="",0,(RANK(J4,$J$4:$J$13))) -> 1 | N4: VERSTAPPEN Max | O4: =IF(Hongrie!$D$11="",0,SUM(Bahrein:Belgique!$G$11)) -> 314 | Q4: =IF(O4="",0,(RANK(O4,$O$4:$O$23))) -> 1
A5: HAMILTON Lewis | B5: MERCEDES | D5: 4 | F5: 1 | G5: =IFERROR(CHOOSE(D5,25,18,15,12,10,8,6,4,2,1),0)+IFERROR(CHOOSE(H5,8,7,6,5,4,3,2,1),0)+IF(D5<=10,F5,0) -> 15 | H5: 7 | I5: MERCEDES | J5: =IF(SUM(Hongrie!$D$5:$D$6)=0,0,SUM(Bahrein:Belgique!$G$5:$G$6)) -> 247 | K5: =J4-J5 -> 256 | L5: =IF(J5="",0,(RANK(J5,$J$4:$J$13))) -> 2 | N5: PEREZ Sergio | O5: =IF(Hongrie!$D$12="",0,SUM(Bahrein:Belgique!$G$12)) -> 189 | P5: =O4-O5 -> 125 | Q5: =IF(O5="",0,(RANK(O5,$O$4:$O$23))) -> 2
A6: RUSSELL George | D6: 6 | G6: =IFERROR(CHOOSE(D6,25,18,15,12,10,8,6,4,2,1),0)+IFERROR(CHOOSE(H6,8,7,6,5,4,3,2,1),0)+IF(D6<=10,F6,0) -> 9 | H6: 8 | I6: ASTON MARTIN | J6: =IF(SUM(Hongrie!$D$14:$D$15)=0,0,SUM(Bahrein:Belgique!$G$14:$G$15)) -> 196 | K6: =J5-J6 -> 51 | L6: 3 | N6: ALONSO Fernando | O6: =IF(Hongrie!$D$14="",0,SUM(Bahrein:Belgique!$G$14)) -> 149 | P6: =O5-O6 -> 40 | Q6: 3
G7: 0 | I7: FERRARI | J7: =IF(SUM(Hongrie!$D$8:$D$9)=0,0,SUM(Bahrein:Belgique!$G$8:$G$9)) -> 191 | K7: 5 | L7: 4 | N7: HAMILTON Lewis | O7: =IF(Hongrie!$D$5="",0,SUM(Bahrein:Belgique!$G$5)) -> 148 | P7: 1 | Q7: 4
A8: SAINZ.Jr Carlos | B8: FERRARI | D8: OUT | G8: 5 | H8: 4 | I8: Mc LAREN | J8: =IF(SUM(Hongrie!$D$29:$D$30)=0,0,SUM(Bahrein:Belgique!$G$29:$G$30)) -> 103 | K8: 88 | L8: 5 | N8: RUSSEL George | O8: =IF(Hongrie!$D$6="",0,SUM(Bahrein:Belgique!$G$6)) -> 99 | P8: 49 | Q8: 5
A9: LECLERC Charles | D9: 3 | E9: 1 | G9: 19 | H9: 5 | I9: WILLIAMS | J9: =IF(SUM(Hongrie!$D$17:$D$18)=0,0,SUM(Bahrein:Belgique!$G$17:$G$18)) -> 11 | K9: 92 | L9: 6 | N9: LECLERC Charles | O9: =IF(Hongrie!$D$9="",0,SUM(Bahrein:Belgique!$G$9)) -> 99 | P9: 0 | Q9: 5
G10: 0 | I10: HAAS | J10: =IF(SUM(Hongrie!$D$26:$D$27)=0,0,SUM(Bahrein:Belgique!$G$26:$G$27)) -> 11 | K10: 0 | L10: 6 | N10: SAINZ.Jr Carlos | O10: =IF(Hongrie!$D$8="",0,SUM(Bahrein:Belgique!$G$8)) -> 92 | P10: 7 | Q10: 7
A11: VERSTAPPEN Max | B11: RED BULL RACING | D11: 1 | G11: 33 | H11: 1 | I11: ALFA ROMÉO | J11: =IF(SUM(Hongrie!$D$32:$D$33)=0,0,SUM(Bahrein:Belgique!$G$32:$G$33)) -> 9 | K11: 2 | L11: 8 | N11: NORRIS Lando | O11: =IF(Hongrie!$D$29="",0,SUM(Bahrein:Belgique!$G$29)) -> 69 | P11: 23 | Q11: 8
A12: PEREZ Sergio | D12: 2 | G12: 18 | I12: ALPHA TAURI | J12: =IF(SUM(Hongrie!$D$23:$D$24)=0,0,SUM(Bahrein:Belgique!$G$23:$G$24)) -> 3 | K12: 6 | L12: 9 | N12: STROLL Lance | O12: =IF(Hongrie!$D$15="",0,SUM(Bahrein:Belgique!$G$15)) -> 47 | P12: 22 | Q12: 9
G13: 0 | I13: ALPINE F1 TEAM | J13: =IF(SUM(Hongrie!$D$20:$D$21)=0,0,SUM(Bahrein:Belgique!$G$20:$G$21)) -> 0 | K13: 3 | L13: 10 | N13: OCON Sebastian | O13: =IF(Hongrie!$D$21="",0,SUM(Bahrein:Belgique!$G$21)) -> 35 | P13: 12 | Q13: 10
A14: ALONSO Fernando | B14: ASTON MARTIN | D14: 5 | G14: 10 | N14: PIASTRI Oscar | O14: =IF(Hongrie!$D$30="",0,SUM(Bahrein:Belgique!$G$30)) -> 34 | P14: 1 | Q14: 11
A15: STROLL Lance | D15: 9 | G15: 2 | N15: GASLY Pierre | O15: =IF(Hongrie!$D$20="",0,SUM(Bahrein:Belgique!$G$20)) -> 22 | P15: 12 | Q15: 12
G16: 0 | N16: ALBON Alexander | O16: =IF(Hongrie!$D$17="",0,SUM(Bahrein:Belgique!$G$17)) -> 11 | P16: 11 | Q16: 13
A17: ALBON Alexander | B17: WILLIAMS | D17: 14 | G17: 0 | N17: HULKENBERG Nico | O17: =IF(Hongrie!$D$27="",0,SUM(Bahrein:Belgique!$G$27)) -> 9 | P17: 2 | Q17: 14
A18: SARGEANT Logan | D18: 17 | G18: 0 | N18: BOTTAS Valtteri | O18: =IF(Hongrie!$D$32="",0,SUM(Bahrein:Belgique!$G$32)) -> 5 | P18: 4 | Q18: 15
G19: 0 | N19: GUANYU Zhou | O19: =IF(Hongrie!$D$33="",0,SUM(Bahrein:Belgique!$G$33)) -> 4 | P19: 1 | Q19: 16
A20: GASLY Pierre | B20: ALPINE F1 TEAM | D20: 11 | G20: 6 | H20: 3 | N20: TSUNODA Yoki | O20: =IF(Hongrie!$D$23="",0,SUM(Bahrein:Belgique!$G$23)) -> 3 | P20: 1 | Q20: 17
A21: OCON Sebastian | D21: 8 | G21: 4 | N21: MAGNUSSEN Kevin | O21: =IF(Hongrie!$D$26="",0,SUM(Bahrein:Belgique!$G$26)) -> 2 | P21: 1 | Q21: 18
G22: 0 | N22: SARGEANT Logan | O22: =IF(Hongrie!$D$18="",0,SUM(Bahrein:Belgique!$G$18)) -> 0 | P22: 2 | Q22: 19
A23: TSUNODA Yuki | B23: ALPHA TAURI | D23: 10 | G23: 1 | N23: RICCIARDO Daniel | O23: =IF(Hongrie!$D$24="",0,SUM(Bahrein:Belgique!$G$24)) -> 0 | P23: 0 | Q23: 19
A24: RICCIARDO Daniel | D24: 16 | G24: 0
G25: 0
A26: MAGNUSSEN Kevin | B26: HAAS | D26: 15 | G26: 0
A27: HULKENBERG Nico | D27: 18 | G27: 0
G28: 0
A29: NORRIS Lando | B29: Mc LAREN | D29: 7 | G29: 9 | H29: 6
A30: PIASTRI Oscar | D30: OUT | G30: 7 | H30: 2
G31: 0
A32: BOTTAS Valtteri | B32: ALFA ROMÉO | D32: 12 | G32: 0
A33: GUANYU Zhou | D33: 13 | G33: 0
G34: 0

Sheet Pays-Bas
A1: ZANDVOORT - 27 AOUT 2023
A3: PILOTES | B3: ECURIES | C3: VOITURES | D3: Finish | E3: Pôle | F3: Pt tour | G3: Points | I3: ÉCURIES | J3: Points | K3: Écart | L3: Rang | N3: Noms | O3: Points | P3: Écart | Q3: Rang
I4: RED BULL RACING | J4: =IF(SUM(Belgique!$D$11:$D$12)=0,0,SUM('Bahrein:Pays-Bas'!$G$11:$G$12)) -> 540 | L4: =IF(J4="",0,(RANK(J4,$J$4:$J$13))) -> 1 | N4: VERSTAPPEN Max | O4: =IF(Belgique!$D$11="",0,SUM('Bahrein:Pays-Bas'!$G$11)) -> 339 | P4: 0 | Q4: =IF(O4="",0,(RANK(O4,$O$4:$O$23))) -> 1
A5: HAMILTON Lewis | B5: MERCEDES | D5: 6 | G5: =IFERROR(CHOOSE(D5,25,18,15,12,10,8,6,4,2,1)+IF(D5<=10,F5),0) -> 8 | I5: MERCEDES | J5: =IF(SUM(Belgique!$D$5:$D$6)=0,0,SUM('Bahrein:Pays-Bas'!$G$5:$G$6)) -> 255 | K5: =J4-J5 -> 285 | L5: =IF(J5="",0,(RANK(J5,$J$4:$J$13))) -> 2 | N5: PEREZ Sergio | O5: =IF(Belgique!$D$12="",0,SUM('Bahrein:Pays-Bas'!$G$12)) -> 201 | P5: =O4-O5 -> 138 | Q5: =IF(O5="",0,(RANK(O5,$O$4:$O$23))) -> 2
A6: RUSSELL George | D6: 17 | G6: =IFERROR(CHOOSE(D6,25,18,15,12,10,8,6,4,2,1)+IF(D6<=10,F6),0) -> 0 | I6: ASTON MARTIN | J6: =IF(SUM(Belgique!$D$14:$D$15)=0,0,SUM('Bahrein:Pays-Bas'!$G$14:$G$15)) -> 215 | K6: =J5-J6 -> 40 | L6: 3 | N6: ALONSO Fernando | O6: =IF(Belgique!$D$14="",0,SUM('Bahrein:Pays-Bas'!$G$14)) -> 168 | P6: =O5-O6 -> 33 | Q6: 3
G7: 0 | I7: FERRARI | J7: =IF(SUM(Belgique!$D$8:$D$9)=0,0,SUM('Bahrein:Pays-Bas'!$G$8:$G$9)) -> 201 | K7: 14 | L7: 4 | N7: HAMILTON Lewis | O7: =IF(Belgique!$D$5="",0,SUM('Bahrein:Pays-Bas'!$G$5)) -> 156 | P7: 12 | Q7: 4
A8: SAINZ.Jr Carlos | B8: FERRARI | D8: 5 | G8: 10 | I8: Mc LAREN | J8: =IF(SUM(Belgique!$D$29:$D$30)=0,0,SUM('Bahrein:Pays-Bas'!$G$29:$G$30)) -> 111 | K8: 90 | L8: 5 | N8: SAINZ.Jr Carlos | O8: =IF(Belgique!$D$8="",0,SUM('Bahrein:Pays-Bas'!$G$8)) -> 102 | P8: 54 | Q8: 5
A9: LECLERC Charles | D9: OUT | G9: 0 | I9: ALPINE F1 TEAM | J9: =IF(SUM(Belgique!$D$20:$D$21)=0,0,SUM('Bahrein:Pays-Bas'!$G$20:$G$21)) -> 73 | K9: 38 | L9: 6 | N9: RUSSEL George | O9: =IF(Belgique!$D$6="",0,SUM('Bahrein:Pays-Bas'!$G$6)) -> 99 | P9: 3 | Q9: 6
G10: 0 | I10: WILLIAMS | J10: =IF(SUM(Belgique!$D$17:$D$18)=0,0,SUM('Bahrein:Pays-Bas'!$G$17:$G$18)) -> 15 | K10: 58 | L10: 7 | N10: LECLERC Charles | O10: =IF(Belgique!$D$9="",0,SUM('Bahrein:Pays-Bas'!$G$9)) -> 99 | P10: 0 | Q10: 6
A11: VERSTAPPEN Max | B11: RED BULL RACING | D11: 1 | E11: 1 | G11: 25 | I11: HAAS | J11: =IF(SUM(Belgique!$D$26:$D$27)=0,0,SUM('Bahrein:Pays-Bas'!$G$26:$G$27)) -> 11 | K11: 4 | L11: 8 | N11: NORRIS Lando | O11: =IF(Belgique!$D$29="",0,SUM('Bahrein:Pays-Bas'!$G$29)) -> 75 | P11: 24 | Q11: 8
A12: PEREZ Sergio | D12: 4 | G12: 12 | I12: ALFA ROMÉO | J12: =IF(SUM(Belgique!$D$32:$D$33)=0,0,SUM('Bahrein:Pays-Bas'!$G$32:$G$33)) -> 9 | K12: 2 | L12: 9 | N12: STROLL Lance | O12: =IF(Belgique!$D$15="",0,SUM('Bahrein:Pays-Bas'!$G$15)) -> 47 | P12: 28 | Q12: 9
G13: 0 | I13: ALPHA TAURI | J13: =IF(SUM(Belgique!$D$23:$D$24)=0,0,SUM('Bahrein:Pays-Bas'!$G$23:$G$24)) -> 3 | K13: 6 | L13: 10 | N13: GASLY Pierre | O13: =IF(Belgique!$D$20="",0,SUM('Bahrein:Pays-Bas'!$G$20)) -> 37 | P13: 10 | Q13: 10
A14: ALONSO Fernando | B14: ASTON MARTIN | D14: 2 | F14: 1 | G14: 19 | N14: OCON Sebastian | O14: =IF(Belgique!$D$21="",0,SUM('Bahrein:Pays-Bas'!$G$21)) -> 36 | P14: 1 | Q14: 11
A15: STROLL Lance | D15: 11 | G15: 0 | N15: PIASTRI Oscar | O15: =IF(Belgique!$D$30="",0,SUM('Bahrein:Pays-Bas'!$G$30)) -> 36 | P15: 0 | Q15: 11
G16: 0 | N16: ALBON Alexander | O16: =IF(Belgique!$D$17="",0,SUM('Bahrein:Pays-Bas'!$G$17)) -> 15 | P16: 21 | Q16: 13
A17: ALBON Alexander | B17: WILLIAMS | D17: 8 | G17: 4 | N17: BOTTAS Valtteri | O17: =IF(Belgique!$D$32="",0,SUM('Bahrein:Pays-Bas'!$G$32)) -> 5 | P17: 10 | Q17: 14
A18: SARGEANT Logan | D18: OUT | G18: 0 | N18: GUANYU Zhou | O18: =IF(Belgique!$D$33="",0,SUM('Bahrein:Pays-Bas'!$G$33)) -> 4 | P18: 1 | Q18: 15
G19: 0 | N19: TSUNODA Yoki | O19: =IF(Belgique!$D$23="",0,SUM('Bahrein:Pays-Bas'!$G$23)) -> 3 | P19: 1 | Q19: 16
A20: GASLY Pierre | B20: ALPINE F1 TEAM | D20: 3 | G20: 15 | N20: HULKENBERG Nico | O20: =IF(Belgique!$D$26="",0,SUM('Bahrein:Pays-Bas'!$G$26)) -> 2 | P20: 1 | Q20: 17
A21: OCON Sebastian | D21: 10 | G21: 1 | N21: MAGNUSSEN Kevin | O21: =IF(Belgique!$D$26="",0,SUM('Bahrein:Pays-Bas'!$G$26)) -> 2 | P21: 0 | Q21: 17
G22: 0 | N22: RICCIARDO Daniel | O22: =IF(Belgique!$D$24="",0,SUM('Bahrein:Pays-Bas'!$G$24)) -> 0 | P22: 2 | Q22: 19
A23: TSUNODA Yuki | B23: ALPHA TAURI | D23: 15 | G23: 0 | N23: SARGEANT Logan | O23: =IF(Belgique!$D$18="",0,SUM('Bahrein:Pays-Bas'!$G$18)) -> 0 | P23: 0 | Q23: 19
A24: RICCIARDO Daniel | D24: NC | G24: 0
A25: LAWSON Liam | D25: 13 | G25: 0
A26: MAGNUSSEN Kevin | B26: HAAS | D26: 16 | G26: 0
A27: HULKENBERG Nico | D27: 12 | G27: 0
G28: 0
A29: NORRIS Lando | B29: Mc LAREN | D29: 7 | G29: 6
A30: PIASTRI Oscar | D30: 9 | G30: 2
G31: 0
A32: BOTTAS Valtteri | B32: ALFA ROMÉO | D32: 14 | G32: 0
A33: GUANYU Zhou | D33: OUT | G33: 0
G34: 0

Sheet Italie
A1: MONZA - 3 SEPTEMBRE 2023
A3: PILOTES | B3: ECURIES | C3: VOITURES | D3: Finish | E3: Pôle | F3: Pt tour | G3: Points | I3: ÉCURIES | J3: Points | K3: Écart | L3: Rang | N3: Noms | O3: Points | P3: Écart | Q3: Rang
I4: RED BULL RACING | J4: =IF(SUM('Pays-Bas'!$D$11:$D$12)=0,0,SUM(Bahrein:Italie!$G$11:$G$12)) -> 583 | L4: =IF(J4="",0,(RANK(J4,$J$4:$J$13))) -> 1 | N4: VERSTAPPEN Max | O4: =IF('Pays-Bas'!$D$11="",0,SUM(Bahrein:Italie!$G$11)) -> 364 | Q4: =IF(O4="",0,(RANK(O4,$O$4:$O$23))) -> 1
A5: HAMILTON Lewis | B5: MERCEDES | D5: 6 | G5: =IFERROR(CHOOSE(D5,25,18,15,12,10,8,6,4,2,1)+IF(D5<=10,F5),0) -> 8 | I5: MERCEDES | J5: =IF(SUM('Pays-Bas'!$D$5:$D$6)=0,0,SUM(Bahrein:Italie!$G$5:$G$6)) -> 273 | K5: =J4-J5 -> 310 | L5: =IF(J5="",0,(RANK(J5,$J$4:$J$13))) -> 2 | N5: PEREZ Sergio | O5: =IF('Pays-Bas'!$D$12="",0,SUM(Bahrein:Italie!$G$12)) -> 219 | P5: =O4-O5 -> 145 | Q5: =IF(O5="",0,(RANK(O5,$O$4:$O$23))) -> 2
A6: RUSSELL George | D6: 5 | G6: =IFERROR(CHOOSE(D6,25,18,15,12,10,8,6,4,2,1)+IF(D6<=10,F6),0) -> 10 | I6: FERRARI | J6: =IF(SUM('Pays-Bas'!$D$8:$D$9)=0,0,SUM(Bahrein:Italie!$G$8:$G$9)) -> 228 | K6: =J5-J6 -> 45 | L6: 3 | N6: ALONSO Fernando | O6: =IF('Pays-Bas'!$D$14="",0,SUM(Bahrein:Italie!$G$14)) -> 170 | P6: =O5-O6 -> 49 | Q6: 3
G7: 0 | I7: ASTON MARTIN | J7: =IF(SUM('Pays-Bas'!$D$14:$D$15)=0,0,SUM(Bahrein:Italie!$G$14:$G$15)) -> 217 | K7: 11 | L7: 4 | N7: HAMILTON Lewis | O7: =IF('Pays-Bas'!$D$5="",0,SUM(Bahrein:Italie!$G$5)) -> 164 | P7: 6 | Q7: 4
A8: SAINZ.Jr Carlos | B8: FERRARI | D8: 3 | E8: 1 | G8: 15 | I8: Mc LAREN | J8: =IF(SUM('Pays-Bas'!$D$29:$D$30)=0,0,SUM(Bahrein:Italie!$G$29:$G$30)) -> 115 | K8: 102 | L8: 5 | N8: SAINZ.Jr Carlos | O8: =IF('Pays-Bas'!$D$8="",0,SUM(Bahrein:Italie!$G$8)) -> 117 | P8: 47 | Q8: 5
A9: LECLERC Charles | D9: 4 | G9: 12 | I9: ALPINE F1 TEAM | J9: =IF(SUM('Pays-Bas'!$D$20:$D$21)=0,0,SUM(Bahrein:Italie!$G$20:$G$21)) -> 73 | K9: 42 | L9: 6 | N9: LECLERC Charles | O9: =IF('Pays-Bas'!$D$9="",0,SUM(Bahrein:Italie!$G$9)) -> 111 | P9: 6 | Q9: 6
G10: 0 | I10: WILLIAMS | J10: =IF(SUM('Pays-Bas'!$D$17:$D$18)=0,0,SUM(Bahrein:Italie!$G$17:$G$18)) -> 21 | K10: 52 | L10: 7 | N10: RUSSEL George | O10: =IF('Pays-Bas'!$D$6="",0,SUM(Bahrein:Italie!$G$6)) -> 109 | P10: 2 | Q10: 7
A11: VERSTAPPEN Max | B11: RED BULL RACING | D11: 1 | G11: 25 | I11: HAAS | J11: =IF(SUM('Pays-Bas'!$D$26:$D$27)=0,0,SUM(Bahrein:Italie!$G$26:$G$27)) -> 11 | K11: 10 | L11: 8 | N11: NORRIS Lando | O11: =IF('Pays-Bas'!$D$29="",0,SUM(Bahrein:Italie!$G$29)) -> 79 | P11: 30 | Q11: 8
A12: PEREZ Sergio | D12: 2 | G12: 18 | I12: ALFA ROMÉO | J12: =IF(SUM('Pays-Bas'!$D$32:$D$33)=0,0,SUM(Bahrein:Italie!$G$32:$G$33)) -> 10 | K12: 1 | L12: 9 | N12: STROLL Lance | O12: =IF('Pays-Bas'!$D$15="",0,SUM(Bahrein:Italie!$G$15)) -> 47 | P12: 32 | Q12: 9
G13: 0 | I13: ALPHA TAURI | J13: =IF(SUM('Pays-Bas'!$D$23:$D$24)=0,0,SUM(Bahrein:Italie!$G$23:$G$24)) -> 3 | K13: 7 | L13: 10 | N13: GASLY Pierre | O13: =IF('Pays-Bas'!$D$20="",0,SUM(Bahrein:Italie!$G$20)) -> 37 | P13: 10 | Q13: 10
A14: ALONSO Fernando | B14: ASTON MARTIN | D14: 9 | G14: 2 | N14: OCON Sebastian | O14: =IF('Pays-Bas'!$D$21="",0,SUM(Bahrein:Italie!$G$21)) -> 36 | P14: 1 | Q14: 11
A15: STROLL Lance | D15: 16 | G15: 0 | N15: PIASTRI Oscar | O15: =IF('Pays-Bas'!$D$30="",0,SUM(Bahrein:Italie!$G$30)) -> 36 | P15: 0 | Q15: 11
G16: 0 | N16: ALBON Alexander | O16: =IF('Pays-Bas'!$D$17="",0,SUM(Bahrein:Italie!$G$17)) -> 21 | P16: 15 | Q16: 13
A17: ALBON Alexander | B17: WILLIAMS | D17: 7 | G17: 6 | N17: HULKENBERG Nico | O17: =IF('Pays-Bas'!$D$27="",0,SUM(Bahrein:Italie!$G$27)) -> 9 | P17: 12 | Q17: 14
A18: SARGEANT Logan | D18: 13 | G18: 0 | N18: BOTTAS Valtteri | O18: =IF('Pays-Bas'!$D$32="",0,SUM(Bahrein:Italie!$G$32)) -> 6 | P18: 3 | Q18: 15
G19: 0 | N19: GUANYU Zhou | O19: =IF('Pays-Bas'!$D$33="",0,SUM(Bahrein:Italie!$G$33)) -> 4 | P19: 2 | Q19: 16
A20: GASLY Pierre | B20: ALPINE F1 TEAM | D20: 15 | G20: 0 | N20: TSUNODA Yoki | O20: =IF('Pays-Bas'!$D$23="",0,SUM(Bahrein:Italie!$G$23)) -> 3 | P20: 1 | Q20: 17
A21: OCON Sebastian | D21: OUT | G21: 0 | N21: MAGNUSSEN Kevin | O21: =IF('Pays-Bas'!$D$26="",0,SUM(Bahrein:Italie!$G$26)) -> 2 | P21: 1 | Q21: 18
G22: 0 | N22: SARGEANT Logan | O22: =IF('Pays-Bas'!$D$18="",0,SUM(Bahrein:Italie!$G$18)) -> 0 | P22: 2 | Q22: 19
A23: TSUNODA Yuki | B23: ALPHA TAURI | D23: OUT | G23: 0 | N23: RICCIARDO Daniel | O23: =IF('Pays-Bas'!$D$24="",0,SUM(Bahrein:Italie!$G$24)) -> 0 | P23: 0 | Q23: =IF(O23="",0,(RANK(O23,$O$4:$O$23))) -> 19
A24: RICCIARDO Daniel | D24: NC | G24: 0
A25: LAWSON Liam | D25: 11 | G25: 0
A26: MAGNUSSEN Kevin | B26: HAAS | D26: 18 | G26: 0
A27: HULKENBERG Nico | D27: 17 | G27: 0
G28: 0
A29: NORRIS Lando | B29: Mc LAREN | D29: 8 | G29: 4
A30: PIASTRI Oscar | D30: 12 | G30: 0
G31: 0
A32: BOTTAS Valtteri | B32: ALFA ROMÉO | D32: 10 | G32: 1
A33: GUANYU Zhou | D33: 14 | G33: 0
G34: 0

Sheet Singapour
A1: SINGAPOUR - 17 SEPTEMBRE 2023
A3: PILOTES | B3: ECURIES | C3: VOITURES | D3: Finish | E3: Pôle | F3: Pt tour | G3: Points | I3: ÉCURIES | J3: Points | K3: Écart | L3: Rang | N3: Noms | O3: Points | P3: Écart | Q3: Rang
I4: RED BULL RACING | J4: =IF(SUM(Italie!$D$11:$D$12)=0,0,SUM(Bahrein:Singapour!$G$11:$G$12)) -> 597 | L4: =IF(J4="",0,(RANK(J4,$J$4:$J$13))) -> 1 | N4: VERSTAPPEN Max | O4: =IF(Italie!$D$11="",0,SUM(Bahrein:Singapour!$G$11)) -> 374 | Q4: =IF(O4="",0,(RANK(O4,$O$4:$O$23))) -> 1
A5: HAMILTON Lewis | B5: MERCEDES | D5: 3 | F5: 1 | G5: =IFERROR(CHOOSE(D5,25,18,15,12,10,8,6,4,2,1)+IF(D5<=10,F5),0) -> 16 | I5: MERCEDES | J5: =IF(SUM(Italie!$D$5:$D$6)=0,0,SUM(Bahrein:Singapour!$G$5:$G$6)) -> 289 | K5: =J4-J5 -> 308 | L5: =IF(J5="",0,(RANK(J5,$J$4:$J$13))) -> 2 | N5: PEREZ Sergio | O5: =IF(Italie!$D$12="",0,SUM(Bahrein:Singapour!$G$12)) -> 223 | P5: =O4-O5 -> 151 | Q5: =IF(O5="",0,(RANK(O5,$O$4:$O$23))) -> 2
A6: RUSSELL George | D6: OUT | G6: =IFERROR(CHOOSE(D6,25,18,15,12,10,8,6,4,2,1)+IF(D6<=10,F6),0) -> 0 | I6: FERRARI | J6: =IF(SUM(Italie!$D$8:$D$9)=0,0,SUM(Bahrein:Singapour!$G$8:$G$9)) -> 265 | K6: =J5-J6 -> 24 | L6: 3 | N6: HAMILTON Lewis | O6: =IF(Italie!$D$5="",0,SUM(Bahrein:Singapour!$G$5)) -> 180 | P6: =O5-O6 -> 43 | Q6: 3
G7: 0 | I7: ASTON MARTIN | J7: =IF(SUM(Italie!$D$14:$D$15)=0,0,SUM(Bahrein:Singapour!$G$14:$G$15)) -> 217 | K7: 48 | L7: 4 | N7: ALONSO Fernando | O7: =IF(Italie!$D$14="",0,SUM(Bahrein:Singapour!$G$14)) -> 170 | P7: 10 | Q7: 4
A8: SAINZ.Jr Carlos | B8: FERRARI | D8: 1 | E8: 1 | G8: 25 | I8: Mc LAREN | J8: =IF(SUM(Italie!$D$29:$D$30)=0,0,SUM(Bahrein:Singapour!$G$29:$G$30)) -> 139 | K8: 78 | L8: 5 | N8: SAINZ.Jr Carlos | O8: =IF(Italie!$D$8="",0,SUM(Bahrein:Singapour!$G$8)) -> 142 | P8: 28 | Q8: 5
A9: LECLERC Charles | D9: 4 | G9: 12 | I9: ALPINE F1 TEAM | J9: =IF(SUM(Italie!$D$20:$D$21)=0,0,SUM(Bahrein:Singapour!$G$20:$G$21)) -> 81 | K9: 58 | L9: 6 | N9: LECLERC Charles | O9: =IF(Italie!$D$9="",0,SUM(Bahrein:Singapour!$G$9)) -> 123 | P9: 19 | Q9: 6
G10: 0 | I10: WILLIAMS | J10: =IF(SUM(Italie!$D$17:$D$18)=0,0,SUM(Bahrein:Singapour!$G$17:$G$18)) -> 21 | K10: 60 | L10: 7 | N10: RUSSEL George | O10: =IF(Italie!$D$6="",0,SUM(Bahrein:Singapour!$G$6)) -> 109 | P10: 14 | Q10: 7
A11: VERSTAPPEN Max | B11: RED BULL RACING | D11: 5 | G11: 10 | I11: HAAS | J11: =IF(SUM(Italie!$D$26:$D$27)=0,0,SUM(Bahrein:Singapour!$G$26:$G$27)) -> 12 | K11: 9 | L11: 8 | N11: STROLL Lance | O11: =IF(Italie!$D$15="",0,SUM(Bahrein:Singapour!$G$15)) -> 47 | P11: 62 | Q11: 8
A12: PEREZ Sergio | D12: 8 | G12: 4 | I12: ALFA ROMÉO | J12: =IF(SUM(Italie!$D$23:$D$24)=0,0,SUM(Bahrein:Singapour!$G$32:$G$33)) -> 0 | K12: 12 | L12: 9 | N12: GASLY Pierre | O12: =IF(Italie!$D$20="",0,SUM(Bahrein:Singapour!$G$20)) -> 45 | P12: 2 | Q12: 9
G13: 0 | I13: ALPHA TAURI | J13: =IF(SUM(Italie!$D$23:$D$24)=0,0,SUM(Bahrein:Singapour!$G$23:$G$24)) -> 0 | K13: 0 | L13: 9 | N13: NORRIS Lando | O13: =IF(Italie!$D$30="",0,SUM(Bahrein:Singapour!$G$30)) -> 42 | P13: 3 | Q13: 10
A14: ALONSO Fernando | B14: ASTON MARTIN | D14: 15 | G14: 0 | N14: PIASTRI Oscar | O14: =IF(Italie!$D$30="",0,SUM(Bahrein:Singapour!$G$30)) -> 42 | P14: 0 | Q14: 10
A15: STROLL Lance | D15: OUT | G15: 0 | N15: OCON Sebastian | O15: =IF(Italie!$D$21="",0,SUM(Bahrein:Singapour!$G$21)) -> 36 | P15: 6 | Q15: 12
G16: 0 | N16: ALBON Alexander | O16: =IF(Italie!$D$17="",0,SUM(Bahrein:Singapour!$G$17)) -> 21 | P16: 15 | Q16: 13
A17: ALBON Alexander | B17: WILLIAMS | D17: 11 | G17: 0 | N17: HULKENBERG Nico | O17: =IF(Italie!$D$27="",0,SUM(Bahrein:Singapour!$G$27)) -> 9 | P17: 12 | Q17: 14
A18: SARGEANT Logan | D18: 14 | G18: 0 | N18: BOTTAS Valtteri | O18: =IF(Italie!$D$32="",0,SUM(Bahrein:Singapour!$G$32)) -> 6 | P18: 3 | Q18: 15
G19: 0 | N19: GUANYU Zhou | O19: =IF(Italie!$D$33="",0,SUM(Bahrein:Singapour!$G$33)) -> 4 | P19: 2 | Q19: 16
A20: GASLY Pierre | B20: ALPINE F1 TEAM | D20: 6 | G20: 8 | N20: TSUNODA Yoki | O20: =IF(Italie!$D$23="",0,SUM(Bahrein:Singapour!$G$23)) -> 3 | P20: 1 | Q20: 17
A21: OCON Sebastian | D21: OUT | G21: 0 | N21: MAGNUSSEN Kevin | O21: =IF(Italie!$D$26="",0,SUM(Bahrein:Singapour!$G$26)) -> 3 | P21: 0 | Q21: 17
G22: 0 | N22: RICCIARDO Daniel | O22: =IF(Italie!$D$24="",0,SUM(Bahrein:Singapour!$G$24)) -> 0 | P22: 3 | Q22: 19
A23: TSUNODA Yuki | B23: ALPHA TAURI | D23: OUT | G23: 0 | N23: SARGEANT Logan | O23: =IF(Italie!$D$18="",0,SUM(Bahrein:Singapour!$G$18)) -> 0 | P23: 0 | Q23: =IF(O23="",0,(RANK(O23,$O$4:$O$23))) -> 19
A24: RICCIARDO Daniel | D24: NC | G24: 0
A25: LAWSON LIAM | D25: 9 | G25: 2
A26: MAGNUSSEN Kevin | B26: HAAS | D26: 10 | G26: 1
A27: HULKENBERG Nico | D27: 13 | G27: 0
G28: 0
A29: NORRIS Lando | B29: Mc LAREN | D29: 2 | G29: 18
A30: PIASTRI Oscar | D30: 7 | G30: 6
G31: 0
A32: BOTTAS Valtteri | B32: ALFA ROMÉO | D32: OUT | G32: 0
A33: GUANYU Zhou | D33: 12 | G33: 0
G34: 0

Sheet Japon
A1: SUZUKA- 24 SEPTEMBRE 2023
A3: PILOTES | B3: ECURIES | C3: VOITURES | D3: Finish | E3: Pôle | F3: Pt tour | G3: Points | I3: ÉCURIES | J3: Points | K3: Écart | L3: Rang | N3: Noms | O3: Points | P3: Écart | Q3: Rang
I4: RED BULL RACING | J4: =IF(SUM(Singapour!$D$11:$D$12)=0,0,SUM(Bahrein:Japon!$G$11:$G$12)) -> 623 | L4: =IF(J4="",0,(RANK(J4,$J$4:$J$13))) -> 1 | N4: VERSTAPPEN Max | O4: =IF(Singapour!$D$11="",0,SUM(Bahrein:Japon!$G$11)) -> 400 | Q4: =IF(O4="",0,(RANK(O4,$O$4:$O$23))) -> 1
A5: HAMILTON Lewis | B5: MERCEDES | D5: 5 | G5: =IFERROR(CHOOSE(D5,25,18,15,12,10,8,6,4,2,1)+IF(D5<=10,F5),0) -> 10 | I5: MERCEDES | J5: =IF(SUM(Singapour!$D$5:$D$6)=0,0,SUM(Bahrein:Japon!$G$5:$G$6)) -> 305 | K5: =J4-J5 -> 318 | L5: =IF(J5="",0,(RANK(J5,$J$4:$J$13))) -> 2 | N5: HAMILTON Lewis | O5: =IF(Singapour!$D$11="",0,SUM(Bahrein:Japon!$G$11)) -> 400 | P5: =O4-O5 -> 0 | Q5: =IF(O5="",0,(RANK(O5,$O$4:$O$23))) -> 1
A6: RUSSELL George | D6: 7 | G6: =IFERROR(CHOOSE(D6,25,18,15,12,10,8,6,4,2,1)+IF(D6<=10,F6),0) -> 6 | I6: FERRARI | J6: =IF(SUM(Singapour!$D$8:$D$9)=0,0,SUM(Bahrein:Japon!$G$8:$G$9)) -> 285 | K6: =J5-J6 -> 20 | L6: 3 | N6: SAINZ.Jr Carlos | O6: =IF(Singapour!$D$11="",0,SUM(Bahrein:Japon!$G$11)) -> 400 | P6: =O5-O6 -> 0 | Q6: 1
G7: 0 | I7: ASTON MARTIN | J7: =IF(SUM(Singapour!$D$14:$D$15)=0,0,SUM(Bahrein:Japon!$G$14:$G$15)) -> 221 | K7: 64 | L7: 4 | N7: PEREZ Sergio | O7: =IF(Singapour!$D$12="",0,SUM(Bahrein:Japon!$G$12)) -> 223 | P7: 177 | Q7: 4
A8: SAINZ.Jr Carlos | B8: FERRARI | D8: 6 | G8: 8 | I8: Mc LAREN | J8: =IF(SUM(Singapour!$D$29:$D$30)=0,0,SUM(Bahrein:Japon!$G$29:$G$30)) -> 172 | K8: 49 | L8: 5 | N8: ALONSO Fernando | O8: =IF(Singapour!$D$14="",0,SUM(Bahrein:Japon!$G$14)) -> 174 | P8: 49 | Q8: 5
A9: LECLERC Charles | D9: 4 | G9: 12 | I9: ALPINE F1 TEAM | J9: =IF(SUM(Singapour!$D$20:$D$21)=0,0,SUM(Bahrein:Japon!$G$20:$G$21)) -> 84 | K9: 88 | L9: 6 | N9: LECLERC Charles | O9: =IF(Singapour!$D$9="",0,SUM(Bahrein:Japon!$G$9)) -> 135 | P9: 39 | Q9: 6
G10: 0 | I10: WILLIAMS | J10: =IF(SUM(Singapour!$D$17:$D$18)=0,0,SUM(Bahrein:Japon!$G$17:$G$18)) -> 21 | K10: 63 | L10: 7 | N10: NORRIS Lando | O10: =IF(Singapour!$D$29="",0,SUM(Bahrein:Japon!$G$29)) -> 115 | P10: 20 | Q10: 7
A11: VERSTAPPEN Max | B11: RED BULL RACING | D11: 1 | E11: 1 | F11: 1 | G11: 26 | I11: HAAS | J11: =IF(SUM(Singapour!$G$26:$G$27)=0,0,SUM(Bahrein:Japon!$G$26:$G$27)) -> 12 | K11: 9 | L11: 8 | N11: RUSSEL George | O11: =IF(Singapour!$D$6="",0,SUM(Bahrein:Japon!$G$6)) -> 115 | P11: 0 | Q11: 7
A12: PEREZ Sergio | D12: OUT | G12: 0 | I12: ALFA ROMÉO | J12: =IF(SUM(Singapour!$D$32:$D$33)=0,0,SUM(Bahrein:Japon!$G$32:$G$33)) -> 10 | K12: 2 | L12: 9 | N12: PIASTRI Oscar | O12: =IF(Singapour!$D$30="",0,SUM(Bahrein:Japon!$G$30)) -> 57 | P12: 58 | Q12: 9
G13: 0 | I13: ALPHA TAURI | J13: =IF(SUM(Singapour!$D$23:$D$24)=0,0,SUM(Bahrein:Japon!$G$23:$G$24)) -> 0 | K13: 10 | L13: 10 | N13: STROLL Lance | O13: =IF(Singapour!$D$15="",0,SUM(Bahrein:Japon!$G$15)) -> 47 | P13: 10 | Q13: 10
A14: ALONSO Fernando | B14: ASTON MARTIN | D14: 8 | G14: 4 | N14: GASLY Pierre | O14: =IF(Singapour!$D$20="",0,SUM(Bahrein:Japon!$G$20)) -> 46 | P14: 1 | Q14: 11
A15: STROLL Lance | D15: OUT | G15: 0 | N15: OCON Sebastian | O15: =IF(Singapour!$D$21="",0,SUM(Bahrein:Japon!$G$21)) -> 38 | P15: 8 | Q15: 12
G16: 0 | N16: ALBON Alexander | O16: =IF(Singapour!$D$17="",0,SUM(Bahrein:Japon!$G$17)) -> 21 | P16: 17 | Q16: 13
A17: ALBON Alexander | B17: WILLIAMS | D17: OUT | G17: 0 | N17: HULKENBERG Nico | O17: =IF(Singapour!$D$27="",0,SUM(Bahrein:Japon!$G$27)) -> 9 | P17: 12 | Q17: 14
A18: SARGEANT Logan | D18: OUT | G18: 0 | N18: BOTTAS Valtteri | O18: =IF(Singapour!$D$32="",0,SUM(Bahrein:Japon!$G$32)) -> 6 | P18: 3 | Q18: 15
G19: 0 | N19: GUANYU Zhou | O19: =IF(Singapour!$D$33="",0,SUM(Bahrein:Japon!$G$33)) -> 4 | P19: 2 | Q19: 16
A20: GASLY Pierre | B20: ALPINE F1 TEAM | D20: 10 | G20: 1 | N20: TSUNODA Yoki | O20: =IF(Singapour!$D$23="",0,SUM(Bahrein:Japon!$G$23)) -> 3 | P20: 1 | Q20: 17
A21: OCON Sebastian | D21: 9 | G21: 2 | N21: MAGNUSSEN Kevin | O21: =IF(Singapour!$D$26="",0,SUM(Bahrein:Japon!$G$26)) -> 3 | P21: 0 | Q21: 17
G22: 0 | N22: RICCIARDO Daniel | O22: =IF(Singapour!$D$24="",0,SUM(Bahrein:Japon!$G$24)) -> 0 | P22: 3 | Q22: 19
A23: TSUNODA Yuki | B23: ALPHA TAURI | D23: 12 | G23: 0 | N23: SARGEANT Logan | O23: =IF(Singapour!$D$18="",0,SUM(Bahrein:Japon!$G$18)) -> 0 | P23: 0 | Q23: 19
A24: RICCIARDO Daniel | D24: NC | G24: 0
A25: LAWSON Liam | D25: 11 | G25: 0
A26: MAGNUSSEN Kevin | B26: HAAS | D26: 15 | G26: 0
A27: HULKENBERG Nico | D27: 14 | G27: 0 | I27: REDBULL SACRÉE CHAMPION CONSTRUCTEURS
G28: 0
A29: NORRIS Lando | B29: Mc LAREN | D29: 2 | G29: 18
A30: PIASTRI Oscar | D30: 3 | G30: 15
G31: 0
A32: BOTTAS Valtteri | B32: ALFA ROMÉO | D32: OUT | G32: 0
A33: GUANYU Zhou | D33: 13 | G33: 0
G34: 0

Sheet Qatar
A1: LOSAIL - 8 OCTOBRE 2023
A3: PILOTES | B3: ECURIES | C3: VOITURES | D3: Finish | E3: Pôle | F3: Pt tour | G3: Points | H3: Sprint | I3: ÉCURIES | J3: Points | K3: Écart | L3: Rang | N3: Noms | O3: Points | Q3: Rang
I4: RED BULL RACING | J4: =IF(SUM(Japon!$D$11:$D$12)=0,0,SUM(Bahrein:Qatar!$G$11:$G$12)) -> 657 | L4: =IF(J4="",0,(RANK(J4,$J$4:$J$13))) -> 1 | N4: VERSTAPPEN Max | O4: =IF(Japon!$D$11="",0,SUM(Bahrein:Qatar!$G$11)) -> 433 | P4: 0 | Q4: =IF(O4="",0,(RANK(O4,$O$4:$O$23))) -> 1
A5: HAMILTON Lewis | B5: MERCEDES | D5: OUT | G5: =IFERROR(CHOOSE(D5,25,18,15,12,10,8,6,4,2,1),0)+IFERROR(CHOOSE(H5,8,7,6,5,4,3,2,1),0)+IF(D5<=10,F5,0) -> 4 | H5: 5 | I5: MERCEDES | J5: =IF(SUM(Japon!$D$5:$D$6)=0,0,SUM(Bahrein:Qatar!$G$5:$G$6)) -> 326 | K5: =J4-J5 -> 331 | L5: =IF(J5="",0,(RANK(J5,$J$4:$J$13))) -> 2 | N5: PEREZ Sergio | O5: =IF(Japon!$D$12="",0,SUM(Bahrein:Qatar!$G$12)) -> 224 | P5: =O4-O5 -> 209 | Q5: =IF(O5="",0,(RANK(O5,$O$4:$O$23))) -> 2
A6: RUSSELL George | D6: 4 | G6: =IFERROR(CHOOSE(D6,25,18,15,12,10,8,6,4,2,1),0)+IFERROR(CHOOSE(H6,8,7,6,5,4,3,2,1),0)+IF(D6<=10,F6,0) -> 17 | H6: 4 | I6: FERRARI | J6: =IF(SUM(Japon!$D$8:$D$9)=0,0,SUM(Bahrein:Qatar!$G$8:$G$9)) -> 298 | K6: =J5-J6 -> 28 | L6: 3 | N6: HAMILTON Lewis | O6: =IF(Japon!$D$5="",0,SUM(Bahrein:Qatar!$G$5)) -> 194 | P6: =O5-O6 -> 30 | Q6: 3
G7: 0 | I7: ASTON MARTIN | J7: =IF(SUM(Japon!$D$14:$D$15)=0,0,SUM(Bahrein:Qatar!$G$14:$G$15)) -> 230 | K7: 68 | L7: 4 | N7: ALONSO Fernando | O7: =IF(Japon!$D$14="",0,SUM(Bahrein:Qatar!$G$14)) -> 183 | P7: 11 | Q7: 4
A8: SAINZ.Jr Carlos | B8: FERRARI | D8: OUT | G8: 3 | H8: 6 | I8: Mc LAREN | J8: =IF(SUM(Japon!$D$29:$D$30)=0,0,SUM(Bahrein:Qatar!$G$29:$G$30)) -> 219 | K8: 11 | L8: 5 | N8: SAINZ.Jr Carlos | O8: =IF(Japon!$D$8="",0,SUM(Bahrein:Qatar!$G$8)) -> 153 | P8: 30 | Q8: 5
A9: LECLERC Charles | D9: 5 | G9: =IFERROR(CHOOSE(D9,25,18,15,12,10,8,6,4,2,1),0)+IFERROR(CHOOSE(H9,8,7,6,5,4,3,2,1),0)+IF(D9<=10,F9,0) -> 10 | I9: ALPINE F1 TEAM | J9: =IF(SUM(Japon!$D$20:$D$21)=0,0,SUM(Bahrein:Qatar!$G$20:$G$21)) -> 90 | K9: 129 | L9: 6 | N9: LECLERC Charles | O9: =IF(Japon!$D$9="",0,SUM(Bahrein:Qatar!$G$9)) -> 145 | P9: 8 | Q9: 6
G10: 0 | I10: ALFA ROMÉO | J10: =IF(SUM(Japon!$D$32:$D$33)=0,0,SUM(Bahrein:Qatar!$G$32:$G$33)) -> 16 | K10: 74 | L10: 7 | N10: NORRIS Lando | O10: =IF(Japon!$D$29="",0,SUM(Bahrein:Qatar!$G$29)) -> 136 | P10: 9 | Q10: 7
A11: VERSTAPPEN Max | B11: RED BULL RACING | D11: 1 | E11: 1 | F11: 1 | G11: 33 | H11: 2 | I11: HAAS | J11: =IF(SUM(Japon!$D$26:$D$27)=0,0,SUM(Bahrein:Qatar!$G$26:$G$27)) -> 12 | K11: 4 | L11: 8 | N11: RUSSEL George | O11: =IF(Japon!$D$6="",0,SUM(Bahrein:Qatar!$G$6)) -> 132 | P11: 4 | Q11: 8
A12: PEREZ Sergio | D12: 10 | G12: 1 | I12: ALPHA TAURI | J12: =IF(SUM(Japon!$D$23:$D$24)=0,0,SUM(Bahrein:Qatar!$G$23:$G$24)) -> 3 | K12: 9 | L12: 9 | N12: PIASTRI Oscar | O12: =IF(Japon!$D$30="",0,SUM(Bahrein:Qatar!$G$30)) -> 83 | P12: 49 | Q12: 9
G13: 0 | I13: WILLIAMS | J13: =IF(SUM(Japon!$D$17:$D$18)=0,0,SUM(Bahrein:Qatar!$G$17:$G$18)) -> 0 | K13: 3 | L13: 10 | N13: STROLL Lance | O13: =IF(Japon!$D$15="",0,SUM(Bahrein:Qatar!$G$15)) -> 47 | P13: 36 | Q13: 10
A14: ALONSO Fernando | B14: ASTON MARTIN | D14: 6 | G14: 9 | H14: 8 | N14: GASLY Pierre | O14: =IF(Japon!$D$20="",0,SUM(Bahrein:Qatar!$G$20)) -> 46 | P14: 1 | Q14: 11
A15: STROLL Lance | D15: 11 | G15: 0 | N15: OCON Sebastian | O15: =IF(Japon!$D$21="",0,SUM(Bahrein:Qatar!$G$21)) -> 44 | P15: 2 | Q15: 12
G16: 0 | N16: ALBON Alexander | O16: =IF(Japon!$D$17="",0,SUM(Bahrein:Qatar!$G$17)) -> 23 | P16: 21 | Q16: 13
A17: ALBON Alexander | B17: WILLIAMS | D17: 13 | G17: 2 | H17: 7 | N17: BOTTAS Valtteri | O17: =IF(Japon!$D$32="",0,SUM(Bahrein:Qatar!$G$32)) -> 10 | P17: 13 | Q17: 14
A18: SARGEANT Logan | D18: OUT | G18: 0 | N18: HULKENBERG Nico | O18: =IF(Japon!$D$27="",0,SUM(Bahrein:Qatar!$G$27)) -> 9 | P18: 1 | Q18: 15
G19: 0 | N19: GUANYU Zhou | O19: =IF(Japon!$D$33="",0,SUM(Bahrein:Qatar!$G$33)) -> 6 | P19: 3 | Q19: 16
A20: GASLY Pierre | B20: ALPINE F1 TEAM | D20: 12 | G20: 0 | N20: TSUNODA Yoki | O20: =IF(Japon!$D$23="",0,SUM(Bahrein:Qatar!$G$23)) -> 3 | P20: 3 | Q20: 17
A21: OCON Sebastian | D21: 7 | G21: 6 | N21: MAGNUSSEN Kevin | O21: =IF(Japon!$D$26="",0,SUM(Bahrein:Qatar!$G$26)) -> 3 | P21: 0 | Q21: 17
G22: 0 | N22: SARGEANT Logan | O22: =IF(Japon!$D$18="",0,SUM(Bahrein:Qatar!$G$18)) -> 0 | P22: 3 | Q22: 19
A23: TSUNODA Yuki | B23: ALPHA TAURI | D23: 15 | G23: 0 | N23: RICCIARDO Daniel | O23: =IF(Japon!$D$24="",0,SUM(Bahrein:Qatar!$G$24)) -> 0 | P23: 0 | Q23: 19
A24: RICCIARDO Daniel | D24: NC | G24: 0
A25: LAWSON Liam | D25: 17 | G25: 0
A26: MAGNUSSEN Kevin | B26: HAAS | D26: 14 | G26: 0 | J26: VERSTAPPEN SACRÉ CHAMPION DU MONDE
A27: HULKENBERG Nico | D27: 16 | G27: 0
G28: 0
A29: NORRIS Lando | B29: Mc LAREN | D29: 3 | G29: 21 | H29: 3
A30: PIASTRI Oscar | D30: 2 | G30: 26 | H30: 1
G31: 0
A32: BOTTAS Valtteri | B32: ALFA ROMÉO | D32: 8 | G32: 4
A33: GUANYU Zhou | D33: 9 | G33: 2
G34: 0

Sheet USA
A1: AUSTIN - 22 OCTOBRE 2023
A3: PILOTES | B3: ECURIES | C3: VOITURES | D3: Finish | E3: Pôle | F3: Pt tour | G3: Points | H3: Sprint | I3: ÉCURIES | J3: Points | K3: Écart | L3: Rang | N3: Noms | O3: Points | P3: Écart | Q3: Rang
I4: RED BULL RACING | J4: =IF(SUM(Qatar!$D$11:$D$12)=0,0,SUM(Bahrein:USA!$G$11:$G$12)) -> 706 | L4: =IF(J4="",0,(RANK(J4,$J$4:$J$13))) -> 1 | N4: VERSTAPPEN Max | O4: =IF(Qatar!$D$11="",0,SUM(Bahrein:USA!$G$11)) -> 466 | Q4: =IF(O4="",0,(RANK(O4,$O$4:$O$23))) -> 1
A5: HAMILTON Lewis | B5: MERCEDES | D5: DISQ | G5: =IFERROR(CHOOSE(D5,25,18,15,12,10,8,6,4,2,1),0)+IFERROR(CHOOSE(H5,8,7,6,5,4,3,2,1),0)+IF(D5<=10,F5,0) -> 7 | H5: 2 | I5: MERCEDES | J5: =IF(SUM(Qatar!$D$5:$D$6)=0,0,SUM(Bahrein:USA!$G$5:$G$6)) -> 344 | K5: =J4-J5 -> 362 | L5: =IF(J5="",0,(RANK(J5,$J$4:$J$13))) -> 2 | N5: PEREZ Sergio | O5: =IF(Qatar!$D$12="",0,SUM(Bahrein:USA!$G$12)) -> 240 | P5: =O4-O5 -> 226 | Q5: =IF(O5="",0,(RANK(O5,$O$4:$O$23))) -> 2
A6: RUSSELL George | D6: 5 | G6: =IFERROR(CHOOSE(D6,25,18,15,12,10,8,6,4,2,1),0)+IFERROR(CHOOSE(H6,8,7,6,5,4,3,2,1),0)+IF(D6<=10,F6,0) -> 11 | H6: 8 | I6: FERRARI | J6: =IF(SUM(Qatar!$D$8:$D$9)=0,0,SUM(Bahrein:USA!$G$8:$G$9)) -> 322 | K6: =J5-J6 -> 22 | L6: 3 | N6: HAMILTON Lewis | O6: =IF(Qatar!$D$5="",0,SUM(Bahrein:USA!$G$5)) -> 201 | P6: =O5-O6 -> 39 | Q6: 3
G7: 0 | I7: Mc LAREN | J7: =IF(SUM(Qatar!$D$29:$D$30)=0,0,SUM(Bahrein:USA!$G$29:$G$30)) -> 242 | K7: 80 | L7: 4 | N7: ALONSO Fernando | O7: =IF(Qatar!$D$14="",0,SUM(Bahrein:USA!$G$14)) -> 183 | P7: 18 | Q7: 4
A8: SAINZ.Jr Carlos | B8: FERRARI | D8: 3 | G8: 18 | H8: 6 | I8: ASTON MARTIN | J8: =IF(SUM(Qatar!$D$14:$D$15)=0,0,SUM(Bahrein:USA!$G$14:$G$15)) -> 236 | K8: 6 | L8: 5 | N8: SAINZ.Jr Carlos | O8: =IF(Qatar!$D$8="",0,SUM(Bahrein:USA!$G$8)) -> 171 | P8: 12 | Q8: 5
A9: LECLERC Charles | D9: DISQ | E9: 1 | G9: 6 | H9: 3 | I9: ALPINE F1 TEAM | J9: =IF(SUM(Qatar!$D$20:$D$21)=0,0,SUM(Bahrein:USA!$G$20:$G$21)) -> 100 | K9: 136 | L9: 6 | N9: NORRIS Lando | O9: =IF(Qatar!$D$29="",0,SUM(Bahrein:USA!$G$29)) -> 159 | P9: 12 | Q9: 6
G10: 0 | I10: WILLIAMS | J10: =IF(SUM(Qatar!$D$17:$D$18)=0,0,SUM(Bahrein:USA!$G$17:$G$18)) -> 26 | K10: 74 | L10: 7 | N10: LECLERC Charles | O10: =IF(Qatar!$D$9="",0,SUM(Bahrein:USA!$G$9)) -> 151 | P10: 8 | Q10: 7
A11: VERSTAPPEN Max | B11: RED BULL RACING | D11: 1 | G11: 33 | H11: 1 | I11: ALFA ROMÉO | J11: =IF(SUM(Qatar!$D$32:$D$33)=0,0,SUM(Bahrein:USA!$G$32:$G$33)) -> 16 | K11: 10 | L11: 8 | N11: RUSSEL George | O11: =IF(Qatar!$D$6="",0,SUM(Bahrein:USA!$G$6)) -> 143 | P11: 8 | Q11: 8
A12: PEREZ Sergio | D12: 4 | G12: 16 | H12: 5 | I12: HAAS | J12: =IF(SUM(Qatar!$D$26:$D$27)=0,0,SUM(Bahrein:USA!$G$26:$G$27)) -> 12 | K12: 4 | L12: 9 | N12: PIASTRI Oscar | O12: =IF(Qatar!$D$30="",0,SUM(Bahrein:USA!$G$30)) -> 83 | P12: 60 | Q12: 9
G13: 0 | I13: ALPHA TAURI | J13: =IF(SUM(Qatar!$D$23:$D$24)=0,0,SUM(Bahrein:USA!$G$23:$G$24)) -> 8 | K13: 4 | L13: 10 | N13: GASLY Pierre | O13: =IF(Qatar!$D$20="",0,SUM(Bahrein:USA!$G$20)) -> 56 | P13: 27 | Q13: 10
A14: ALONSO Fernando | B14: ASTON MARTIN | D14: OUT | G14: 0 | N14: STROLL Lance | O14: =IF(Qatar!$D$15="",0,SUM(Bahrein:USA!$G$15)) -> 53 | P14: 3 | Q14: 11
A15: STROLL Lance | D15: 7 | G15: 6 | N15: OCON Sebastian | O15: =IF(Qatar!$D$21="",0,SUM(Bahrein:USA!$G$21)) -> 44 | P15: 9 | Q15: 12
G16: 0 | N16: ALBON Alexander | O16: =IF(Qatar!$D$17="",0,SUM(Bahrein:USA!$G$17)) -> 25 | P16: 19 | Q16: 13
A17: ALBON Alexander | B17: WILLIAMS | D17: 9 | G17: 2 | N17: BOTTAS Valtteri | O17: =IF(Qatar!$D$32="",0,SUM(Bahrein:USA!$G$32)) -> 10 | P17: 15 | Q17: 14
A18: SARGEANT Logan | D18: 10 | G18: 1 | N18: HULKENBERG Nico | O18: =IF(Qatar!$D$27="",0,SUM(Bahrein:USA!$G$27)) -> 9 | P18: 1 | Q18: 15
G19: 0 | N19: TSUNODA Yoki | O19: =IF(Qatar!$D$23="",0,SUM(Bahrein:USA!$G$23)) -> 8 | P19: 1 | Q19: 16
A20: GASLY Pierre | B20: ALPINE F1 TEAM | D20: 6 | G20: 10 | H20: 7 | N20: GUANYU Zhou | O20: =IF(Qatar!$D$33="",0,SUM(Bahrein:USA!$G$33)) -> 6 | P20: 2 | Q20: 17
A21: OCON Sebastian | D21: OUT | G21: 0 | N21: MAGNUSSEN Kevin | O21: =IF(Qatar!$D$26="",0,SUM(Bahrein:USA!$G$26)) -> 3 | P21: 3 | Q21: 18
G22: 0 | N22: SARGEANT Logan | O22: =IF(Qatar!$D$18="",0,SUM(Bahrein:USA!$G$18)) -> 1 | P22: 2 | Q22: 19
A23: TSUNODA Yuki | B23: ALPHA TAURI | D23: 8 | F23: 1 | G23: 5 | N23: RICCIARDO Daniel | O23: =IF(Qatar!$D$24="",0,SUM(Bahrein:USA!$G$24)) -> 0 | P23: 1 | Q23: 20
A24: RICCIARDO Daniel | D24: 15 | G24: 0
G25: 0
A26: MAGNUSSEN Kevin | B26: HAAS | D26: 14 | G26: 0
A27: HULKENBERG Nico | D27: 11 | G27: 0
G28: 0
A29: NORRIS Lando | B29: Mc LAREN | D29: 2 | G29: 23 | H29: 4
A30: PIASTRI Oscar | D30: OUT | G30: 0
G31: 0
A32: BOTTAS Valtteri | B32: ALFA ROMÉO | D32: 12 | G32: 0
A33: GUANYU Zhou | D33: 13 | G33: 0
G34: 0

Sheet Mexique
A1: MEXICO - 29 OCTOBRE 2023
A3: PILOTES | B3: ECURIES | C3: VOITURES | D3: Finish | E3: Pôle | F3: Pt tour | G3: Points | I3: ÉCURIES | J3: Points | K3: Écart | L3: Rang | N3: Noms | O3: Points | P3: Écart | Q3: Rang
I4: RED BULL RACING | J4: =IF(SUM(USA!$D$11:$D$12)=0,0,SUM(Bahrein:Mexique!$G$11:$G$12)) -> 731 | L4: =IF(J4="",0,(RANK(J4,$J$4:$J$13))) -> 1 | N4: VERSTAPPEN Max | O4: =IF(USA!$D$11="",0,SUM(Bahrein:Mexique!$G$11)) -> 491 | Q4: =IF(O4="",0,(RANK(O4,$O$4:$O$23))) -> 1
A5: HAMILTON Lewis | B5: MERCEDES | D5: 2 | F5: 1 | G5: =IFERROR(CHOOSE(D5,25,18,15,12,10,8,6,4,2,1)+IF(D5<=10,F5),0) -> 19 | I5: MERCEDES | J5: =IF(SUM(USA!$D$5:$D$6)=0,0,SUM(Bahrein:Mexique!$G$5:$G$6)) -> 371 | K5: =J4-J5 -> 360 | L5: =IF(J5="",0,(RANK(J5,$J$4:$J$13))) -> 2 | N5: PEREZ Sergio | O5: =IF(USA!$D$12="",0,SUM(Bahrein:Mexique!$G$12)) -> 240 | P5: =O4-O5 -> 251 | Q5: =IF(O5="",0,(RANK(O5,$O$4:$O$23))) -> 2
A6: RUSSELL George | D6: 6 | G6: =IFERROR(CHOOSE(D6,25,18,15,12,10,8,6,4,2,1)+IF(D6<=10,F6),0) -> 8 | I6: FERRARI | J6: =IF(SUM(USA!$D$8:$D$9)=0,0,SUM(Bahrein:Mexique!$G$8:$G$9)) -> 349 | K6: =J5-J6 -> 22 | L6: 3 | N6: HAMILTON Lewis | O6: =IF(USA!$D$5="",0,SUM(Bahrein:Mexique!$G$5)) -> 220 | P6: =O5-O6 -> 20 | Q6: 3
G7: 0 | I7: Mc LAREN | J7: =IF(SUM(USA!$D$29:$D$30)=0,0,SUM(Bahrein:Mexique!$G$29:$G$30)) -> 256 | K7: 93 | L7: 4 | N7: ALONSO Fernando | O7: =IF(USA!$D$14="",0,SUM(Bahrein:Mexique!$G$14)) -> 183 | P7: 37 | Q7: 4
A8: SAINZ.Jr Carlos | B8: FERRARI | D8: 4 | G8: 12 | I8: ASTON MARTIN | J8: =IF(SUM(USA!$D$14:$D$15)=0,0,SUM(Bahrein:Mexique!$G$14:$G$15)) -> 236 | K8: 20 | L8: 5 | N8: SAINZ.Jr Carlos | O8: =IF(USA!$D$8="",0,SUM(Bahrein:Mexique!$G$8)) -> 183 | P8: 0 | Q8: 4
A9: LECLERC Charles | D9: 3 | E9: 1 | G9: 15 | I9: ALPINE F1 TEAM | J9: =IF(SUM(USA!$D$20:$D$21)=0,0,SUM(Bahrein:Mexique!$G$20:$G$21)) -> 101 | K9: 135 | L9: 6 | N9: NORRIS Lando | O9: =IF(USA!$D$29="",0,SUM(Bahrein:Mexique!$G$29)) -> 169 | P9: 14 | Q9: 6
G10: 0 | I10: WILLIAMS | J10: =IF(SUM(USA!$D$17:$D$18)=0,0,SUM(Bahrein:Mexique!$G$17:$G$18)) -> 28 | K10: 73 | L10: 7 | N10: LECLERC Charles | O10: =IF(USA!$D$9="",0,SUM(Bahrein:Mexique!$G$9)) -> 166 | P10: 3 | Q10: 7
A11: VERSTAPPEN Max | B11: RED BULL RACING | D11: 1 | G11: 25 | I11: ALFA ROMÉO | J11: =IF(SUM(USA!$D$32:$D$33)=0,0,SUM(Bahrein:Mexique!$G$32:$G$33)) -> 16 | K11: 12 | L11: 8 | N11: RUSSEL George | O11: =IF(USA!$D$6="",0,SUM(Bahrein:Mexique!$G$6)) -> 151 | P11: 15 | Q11: 8
A12: PEREZ Sergio | D12: OUT | G12: 0 | I12: ALPHA TAURI | J12: =IF(SUM(USA!$D$23:$D$24)=0,0,SUM(Bahrein:Mexique!$G$23:$G$24)) -> 14 | K12: 2 | L12: 9 | N12: PIASTRI Oscar | O12: =IF(USA!$D$30="",0,SUM(Bahrein:Mexique!$G$30)) -> 87 | P12: 64 | Q12: 9
G13: 0 | I13: HAAS | J13: =IF(SUM(USA!$D$26:$D$27)=0,0,SUM(Bahrein:Mexique!$G$26:$G$27)) -> 12 | K13: 2 | L13: 10 | N13: GASLY Pierre | O13: =IF(USA!$D$20="",0,SUM(Bahrein:Mexique!$G$20)) -> 56 | P13: 31 | Q13: 10
A14: ALONSO Fernando | B14: ASTON MARTIN | D14: OUT | G14: 0 | N14: STROLL Lance | O14: =IF(USA!$D$15="",0,SUM(Bahrein:Mexique!$G$15)) -> 53 | P14: 3 | Q14: 11
A15: STROLL Lance | D15: OUT | G15: 0 | N15: OCON Sebastian | O15: =IF(USA!$D$21="",0,SUM(Bahrein:Mexique!$G$21)) -> 45 | P15: 8 | Q15: 12
G16: 0 | N16: ALBON Alexander | O16: =IF(USA!$D$17="",0,SUM(Bahrein:Mexique!$G$17)) -> 27 | P16: 18 | Q16: 13
A17: ALBON Alexander | B17: WILLIAMS | D17: 9 | G17: 2 | N17: BOTTAS Valtteri | O17: =IF(USA!$D$32="",0,SUM(Bahrein:Mexique!$G$32)) -> 10 | P17: 17 | Q17: 14
A18: SARGEANT Logan | D18: 12 | G18: 0 | N18: HULKENBERG Nico | O18: =IF(USA!$D$27="",0,SUM(Bahrein:Mexique!$G$27)) -> 9 | P18: 1 | Q18: 15
G19: 0 | N19: TSUNODA Yoki | O19: =IF(USA!$D$23="",0,SUM(Bahrein:Mexique!$G$23)) -> 8 | P19: 1 | Q19: 16
A20: GASLY Pierre | B20: ALPINE F1 TEAM | D20: 11 | G20: 0 | N20: GUANYU Zhou | O20: =IF(USA!$D$33="",0,SUM(Bahrein:Mexique!$G$33)) -> 6 | P20: 2 | Q20: 17
A21: OCON Sebastian | D21: 10 | G21: 1 | N21: RICCIARDO Daniel | O21: =IF(USA!$D$24="",0,SUM(Bahrein:Mexique!$G$24)) -> 6 | P21: 0 | Q21: 17
G22: 0 | N22: MAGNUSSEN Kevin | O22: =IF(USA!$D$26="",0,SUM(Bahrein:Mexique!$G$26)) -> 3 | P22: 3 | Q22: 19
A23: TSUNODA Yuki | B23: ALPHA TAURI | D23: 14 | G23: 0 | N23: SARGEANT Logan | O23: =IF(USA!$D$18="",0,SUM(Bahrein:Mexique!$G$18)) -> 1 | P23: 2 | Q23: 20
A24: RICCIARDO Daniel | D24: 7 | G24: 6
G25: 0
A26: MAGNUSSEN Kevin | B26: HAAS | D26: OUT | G26: 0
A27: HULKENBERG Nico | D27: 13 | G27: 0
G28: 0
A29: NORRIS Lando | B29: Mc LAREN | D29: 5 | G29: 10
A30: PIASTRI Oscar | D30: 8 | G30: 4
G31: 0
A32: BOTTAS Valtteri | B32: ALFA ROMÉO | D32: 15 | G32: 0
A33: GUANYU Zhou | D33: 16 | G33: 0
G34: 0

Sheet Brésil
A1: INTERLAGOS - 5 NOVEMBRE 2023
A3: PILOTES | B3: ECURIES | C3: VOITURES | D3: Finish | E3: Pôle | F3: Pt tour | G3: Points | H3: Sprint | I3: ÉCURIES | J3: Points | K3: Écart | L3: Rang | N3: Noms | O3: Points | P3: Écart | Q3: Rang
I4: RED BULL RACING | J4: =IF(SUM(Mexique!$D$11:$D$12)=0,0,SUM(Bahrein:Brésil!$G$11:$G$12)) -> 782 | L4: =IF(J4="",0,(RANK(J4,$J$4:$J$13))) -> 1 | N4: VERSTAPPEN Max | O4: =IF(Mexique!$D$11="",0,SUM(Bahrein:Brésil!$G$11)) -> 524 | Q4: =IF(O4="",0,(RANK(O4,$O$4:$O$23))) -> 1
A5: HAMILTON Lewis | B5: MERCEDES | D5: 8 | G5: =IFERROR(CHOOSE(D5,25,18,15,12,10,8,6,4,2,1),0)+IFERROR(CHOOSE(H5,8,7,6,5,4,3,2,1),0)+IF(D5<=10,F5,0) -> 6 | H5: 7 | I5: MERCEDES | J5: =IF(SUM(Mexique!$D$5:$D$6)=0,0,SUM(Bahrein:Brésil!$G$5:$G$6)) -> 382 | K5: =J4-J5 -> 400 | L5: =IF(J5="",0,(RANK(J5,$J$4:$J$13))) -> 2 | N5: PEREZ Sergio | O5: =IF(Mexique!$D$12="",0,SUM(Bahrein:Brésil!$G$12)) -> 258 | P5: =O4-O5 -> 266 | Q5: =IF(O5="",0,(RANK(O5,$O$4:$O$23))) -> 2
A6: RUSSELL George | D6: OUT | G6: =IFERROR(CHOOSE(D6,25,18,15,12,10,8,6,4,2,1),0)+IFERROR(CHOOSE(H6,8,7,6,5,4,3,2,1),0)+IF(D6<=10,F6,0) -> 5 | H6: 4 | I6: FERRARI | J6: =IF(SUM(Mexique!$D$8:$D$9)=0,0,SUM(Bahrein:Brésil!$G$8:$G$9)) -> 362 | K6: =J5-J6 -> 20 | L6: 3 | N6: HAMILTON Lewis | O6: =IF(Mexique!$D$5="",0,SUM(Bahrein:Brésil!$G$5)) -> 226 | P6: =O5-O6 -> 32 | Q6: 3
G7: 0 | I7: Mc LAREN | J7: =IF(SUM(Mexique!$D$29:$D$30)=0,0,SUM(Bahrein:Brésil!$G$29:$G$30)) -> 282 | K7: 80 | L7: 4 | N7: ALONSO Fernando | O7: =IF(Mexique!$D$14="",0,SUM(Bahrein:Brésil!$G$14)) -> 198 | P7: 28 | Q7: 4
A8: SAINZ.Jr Carlos | B8: FERRARI | D8: 6 | G8: 9 | H8: 8 | I8: ALPINE F1 TEAM | J8: =IF(SUM(Mexique!$D$20:$D$21)=0,0,SUM(Bahrein:Brésil!$G$20:$G$21)) -> 108 | K8: 174 | L8: 5 | N8: NORRIS Lando | O8: =IF(Mexique!$D$29="",0,SUM(Bahrein:Brésil!$G$29)) -> 195 | P8: 3 | Q8: 5
A9: LECLERC Charles | D9: OUT | G9: 4 | H9: 5 | I9: WILLIAMS | J9: =IF(SUM(Mexique!$D$17:$D$19)=0,0,SUM(Bahrein:Brésil!$G$17:$G$18)) -> 28 | K9: 80 | L9: 6 | N9: SAINZ.Jr Carlos | O9: =IF(Mexique!$D$8="",0,SUM(Bahrein:Brésil!$G$8)) -> 192 | P9: 3 | Q9: 6
G10: 0 | I10: ALPHA TAURI | J10: =IF(SUM(Mexique!$D$23:$D$24)=0,0,SUM(Bahrein:Brésil!$G$23:$G$24)) -> 19 | K10: 9 | L10: 7 | N10: LECLERC Charles | O10: =IF(Mexique!$D$9="",0,SUM(Bahrein:Brésil!$G$9)) -> 170 | P10: 22 | Q10: 7
A11: VERSTAPPEN Max | B11: RED BULL RACING | D11: 1 | E11: 1 | G11: 33 | H11: 1 | I11: ALFA ROMÉO | J11: =IF(SUM(Mexique!$D$32:$D$33)=0,0,SUM(Bahrein:Brésil!$G$32:$G$33)) -> 16 | K11: 3 | L11: 8 | N11: RUSSEL George | O11: =IF(Mexique!$D$6="",0,SUM(Bahrein:Brésil!$G$6)) -> 156 | P11: 14 | Q11: 8
A12: PEREZ Sergio | D12: 4 | G12: 18 | H12: 3 | I12: HAAS | J12: =IF(SUM(Mexique!$D$26:$D$27)=0,0,SUM(Bahrein:Brésil!$G$26:$G$27)) -> 12 | K12: 4 | L12: 9 | N12: PIASTRI Oscar | O12: =IF(Mexique!$D$30="",0,SUM(Bahrein:Brésil!$G$30)) -> 87 | P12: 69 | Q12: 9
G13: 0 | I13: ASTON MARTIN | J13: =IF(SUM(Mexique!$D$14:$D$15)=0,0,SUM(Bahrein:Brésil!$G$14:$G$15)) -> 0 | K13: 12 | L13: 10 | N13: STROLL Lance | O13: =IF(Mexique!$D$15="",0,SUM(Bahrein:Brésil!$G$15)) -> 63 | P13: 24 | Q13: 10
A14: ALONSO Fernando | B14: ASTON MARTIN | D14: 3 | G14: 15 | N14: GASLY Pierre | O14: =IF(Mexique!$D$20="",0,SUM(Bahrein:Brésil!$G$20)) -> 62 | P14: 1 | Q14: 11
A15: STROLL Lance | D15: 5 | G15: 10 | N15: OCON Sebastian | O15: =IF(Mexique!$D$21="",0,SUM(Bahrein:Brésil!$G$21)) -> 46 | P15: 16 | Q15: 12
G16: 0 | N16: ALBON Alexander | O16: =IF(Mexique!$D$17="",0,SUM(Bahrein:Brésil!$G$17)) -> 27 | P16: 19 | Q16: 13
A17: ALBON Alexander | B17: WILLIAMS | D17: OUT | G17: 0 | N17: TSUNODA Yoki | O17: =IF(Mexique!$D$23="",0,SUM(Bahrein:Brésil!$G$23)) -> 13 | P17: 14 | Q17: 14
A18: SARGEANT Logan | D18: 11 | G18: 0 | N18: BOTTAS Valtteri | O18: =IF(Mexique!$D$32="",0,SUM(Bahrein:Brésil!$G$32)) -> 10 | P18: 3 | Q18: 15
G19: 0 | N19: HULKENBERG Nico | O19: =IF(Mexique!$D$27="",0,SUM(Bahrein:Brésil!$G$27)) -> 9 | P19: 1 | Q19: 16
A20: GASLY Pierre | B20: ALPINE F1 TEAM | D20: 7 | G20: 6 | N20: GUANYU Zhou | O20: =IF(Mexique!$D$33="",0,SUM(Bahrein:Brésil!$G$33)) -> 6 | P20: 3 | Q20: 17
A21: OCON Sebastian | D21: 10 | G21: 1 | N21: RICCIARDO Daniel | O21: =IF(Mexique!$D$24="",0,SUM(Bahrein:Brésil!$G$24)) -> 6 | P21: 0 | Q21: 17
G22: 0 | N22: MAGNUSSEN Kevin | O22: =IF(Mexique!$D$26="",0,SUM(Bahrein:Brésil!$G$26)) -> 3 | P22: 3 | Q22: 19
A23: TSUNODA Yuki | B23: ALPHA TAURI | D23: 9 | G23: 5 | H23: 6 | N23: SARGEANT Logan | O23: =IF(Mexique!$D$18="",0,SUM(Bahrein:Brésil!$G$18)) -> 1 | P23: 2 | Q23: 20
A24: RICCIARDO Daniel | D24: 13 | G24: 0
G25: 0
A26: MAGNUSSEN Kevin | B26: HAAS | D26: OUT | G26: 0
A27: HULKENBERG Nico | D27: 12 | G27: 0
G28: 0
A29: NORRIS Lando | B29: Mc LAREN | D29: 2 | F29: 1 | G29: 26 | H29: 2
A30: PIASTRI Oscar | D30: 14 | G30: 0
G31: 0
A32: BOTTAS Valtteri | B32: ALFA ROMÉO | D32: OUT | G32: 0
A33: GUANYU Zhou | D33: OUT | G33: 0
G34: 0

Sheet Las Végas
A1: LAS VÉGAS - 18 NOVEMBRE 2023
A3: PILOTES | B3: ECURIES | C3: VOITURES | D3: Finish | E3: Pôle | F3: Pt tour | G3: Points | I3: ÉCURIES | J3: Points | K3: Écart | L3: Rang | N3: Noms | O3: Points | P3: Écart | Q3: Rang
I4: RED BULL RACING | J4: =IF(SUM(Brésil!$D$11:$D$12)=0,0,SUM('Bahrein:Las Végas'!$G$11:$G$12)) -> 822 | L4: =IF(J4="",0,(RANK(J4,$J$4:$J$13))) -> 1 | N4: VERSTAPPEN Max | O4: =IF(Brésil!$D$11="",0,SUM('Bahrein:Las Végas'!$G$11)) -> 549 | Q4: =IF(O4="",0,(RANK(O4,$O$4:$O$23))) -> 1
A5: HAMILTON Lewis | B5: MERCEDES | D5: 7 | G5: =IFERROR(CHOOSE(D5,25,18,15,12,10,8,6,4,2,1)+IF(D5<=10,F5),0) -> 6 | I5: MERCEDES | J5: =IF(SUM(Brésil!$D$5:$D$6)=0,0,SUM('Bahrein:Las Végas'!$G$5:$G$6)) -> 392 | K5: =J4-J5 -> 430 | L5: =IF(J5="",0,(RANK(J5,$J$4:$J$13))) -> 2 | N5: PEREZ Sergio | O5: =IF(Brésil!$D$12="",0,SUM('Bahrein:Las Végas'!$G$12)) -> 273 | P5: =O4-O5 -> 276 | Q5: =IF(O5="",0,(RANK(O5,$O$4:$O$23))) -> 2
A6: RUSSELL George | D6: 8 | G6: =IFERROR(CHOOSE(D6,25,18,15,12,10,8,6,4,2,1)+IF(D6<=10,F6),0) -> 4 | I6: FERRARI | J6: =IF(SUM(Brésil!$D$8:$D$9)=0,0,SUM('Bahrein:Las Végas'!$G$8:$G$9)) -> 388 | K6: =J5-J6 -> 4 | L6: 3 | N6: HAMILTON Lewis | O6: =IF(Brésil!$D$5="",0,SUM('Bahrein:Las Végas'!$G$5)) -> 232 | P6: =O5-O6 -> 41 | Q6: 3
G7: 0 | I7: Mc LAREN | J7: =IF(SUM(Brésil!$D$29:$D$30)=0,0,SUM('Bahrein:Las Végas'!$G$29:$G$30)) -> 284 | K7: 104 | L7: 4 | N7: ALONSO Fernando | O7: =IF(Brésil!$D$14="",0,SUM('Bahrein:Las Végas'!$G$14)) -> 200 | P7: 32 | Q7: 4
A8: SAINZ.Jr Carlos | B8: FERRARI | D8: 6 | G8: 8 | I8: ASTON MARTIN | J8: =IF(SUM(Brésil!$D$14:$D$15)=0,0,SUM('Bahrein:Las Végas'!$G$14:$G$15)) -> 273 | K8: 11 | L8: 5 | N8: SAINZ.Jr Carlos | O8: =IF(Brésil!$D$8="",0,SUM('Bahrein:Las Végas'!$G$8)) -> 200 | P8: 0 | Q8: 4
A9: LECLERC Charles | D9: 2 | E9: 1 | G9: 18 | I9: ALPINE F1 TEAM | J9: =IF(SUM(Brésil!$D$20:$D$21)=0,0,SUM('Bahrein:Las Végas'!$G$20:$G$21)) -> 120 | K9: 153 | L9: 6 | N9: NORRIS Lando | O9: =IF(Brésil!$D$29="",0,SUM('Bahrein:Las Végas'!$G$29)) -> 195 | P9: 5 | Q9: 6
G10: 0 | I10: WILLIAMS | J10: =IF(SUM(Brésil!$D$17:$D$18)=0,0,SUM('Bahrein:Las Végas'!$G$17:$G$18)) -> 28 | K10: 92 | L10: 7 | N10: LECLERC Charles | O10: =IF(Brésil!$D$9="",0,SUM('Bahrein:Las Végas'!$G$9)) -> 188 | P10: 7 | Q10: 7
A11: VERSTAPPEN Max | B11: RED BULL RACING | D11: 1 | G11: 25 | I11: ALPHA TAURI | J11: =IF(SUM(Brésil!$D$23:$D$24)=0,0,SUM('Bahrein:Las Végas'!$G$23:$G$24)) -> 19 | K11: 9 | L11: 8 | N11: RUSSEL George | O11: =IF(Brésil!$D$6="",0,SUM('Bahrein:Las Végas'!$G$6)) -> 160 | P11: 28 | Q11: 8
A12: PEREZ Sergio | D12: 3 | G12: 15 | I12: ALFA ROMÉO | J12: =IF(SUM(Brésil!$D$32:$D$33)="",0,SUM('Bahrein:Las Végas'!$G$32:$G$33)) -> 16 | K12: 3 | L12: 9 | N12: PIASTRI Oscar | O12: =IF(Brésil!$D$30="",0,SUM('Bahrein:Las Végas'!$G$30)) -> 89 | P12: 71 | Q12: 9
G13: 0 | I13: HAAS | J13: =IF(SUM(Brésil!$D$26:$D$27)=0,0,SUM('Bahrein:Las Végas'!$G$26:$G$27)) -> 12 | K13: 4 | L13: 10 | N13: STROLL Lance | O13: =IF(Brésil!$D$15="",0,SUM('Bahrein:Las Végas'!$G$15)) -> 73 | P13: 16 | Q13: 10
A14: ALONSO Fernando | B14: ASTON MARTIN | D14: 9 | G14: 2 | N14: GASLY Pierre | O14: =IF(Brésil!$D$20="",0,SUM('Bahrein:Las Végas'!$G$20)) -> 62 | P14: 11 | Q14: 11
A15: STROLL Lance | D15: 5 | G15: 10 | N15: OCON Sebastian | O15: =IF(Brésil!$D$21="",0,SUM('Bahrein:Las Végas'!$G$21)) -> 58 | P15: 4 | Q15: 12
G16: 0 | N16: ALBON Alexander | O16: =IF(Brésil!$D$17="",0,SUM('Bahrein:Las Végas'!$G$17)) -> 27 | P16: 31 | Q16: 13
A17: ALBON Alexander | B17: WILLIAMS | D17: 12 | G17: 0 | N17: TSUNODA Yoki | O17: =IF(Brésil!$D$23="",0,SUM('Bahrein:Las Végas'!$G$23)) -> 13 | P17: 14 | Q17: 14
A18: SARGEANT Logan | D18: 16 | G18: 0 | N18: BOTTAS Valtteri | O18: =IF(Brésil!$D$32="",0,SUM('Bahrein:Las Végas'!$G$32)) -> 10 | P18: 3 | Q18: 15
G19: 0 | N19: HULKENBERG Nico | O19: =IF(Brésil!$D$27="",0,SUM('Bahrein:Las Végas'!$G$27)) -> 9 | P19: 1 | Q19: 16
A20: GASLY Pierre | B20: ALPINE F1 TEAM | D20: 11 | G20: 0 | N20: GUANYU Zhou | O20: =IF(Brésil!$D$33="",0,SUM('Bahrein:Las Végas'!$G$33)) -> 6 | P20: 3 | Q20: 17
A21: OCON Sebastian | D21: 4 | G21: 12 | N21: RICCIARDO Daniel | O21: =IF(Brésil!$D$24="",0,SUM('Bahrein:Las Végas'!$G$24)) -> 6 | P21: 0 | Q21: 17
G22: 0 | N22: MAGNUSSEN Kevin | O22: =IF(Brésil!$D$26="",0,SUM('Bahrein:Las Végas'!$G$26)) -> 3 | P22: 3 | Q22: 19
A23: TSUNODA Yuki | B23: ALPHA TAURI | D23: OUT | G23: 0 | N23: SARGEANT Logan | O23: =IF(Brésil!$D$18="",0,SUM('Bahrein:Las Végas'!$G$18)) -> 1 | P23: 2 | Q23: 20
A24: RICCIARDO Daniel | D24: 14 | G24: 0
G25: 0
A26: MAGNUSSEN Kevin | B26: HAAS | D26: 13 | G26: 0
A27: HULKENBERG Nico | D27: OUT | G27: 0
G28: 0
A29: NORRIS Lando | B29: Mc LAREN | D29: OUT | G29: 0
A30: PIASTRI Oscar | D30: 10 | F30: 1 | G30: 2
G31: 0
A32: BOTTAS Valtteri | B32: ALFA ROMÉO | D32: 17 | G32: 0
A33: GUANYU Zhou | D33: 15 | G33: 0
G34: 0

Sheet AbuDhabi
A1: YAS MARINA - 26 NOVEMBRE 2023
A3: PILOTES | B3: ECURIES | C3: VOITURES | D3: Finish | E3: Pôle | F3: Pt tour | G3: Points | I3: ÉCURIES | J3: Points | K3: Écart | L3: Rang | N3: Noms | O3: Points | P3: Écart | Q3: Rang
I4: MERCEDES | J4: =IF(SUM('Las Végas'!$D$5:$D$6)=0,0,SUM(Bahrein:AbuDhabi!$G$5:$G$6)) -> 392 | L4: =IF(J4="",0,(RANK(J4,$J$4:$J$13))) -> 2 | N4: VERSTAPPEN Max | O4: =IF('Las Végas'!$D$11="",0,SUM(Bahrein:AbuDhabi!$G$11:$G$11)) -> 549 | Q4: =IF(O4="",0,(RANK(O4,$O$4:$O$23))) -> 1
A5: HAMILTON Lewis | B5: MERCEDES | G5: =IFERROR(CHOOSE(D5,25,18,15,12,10,8,6,4,2,1)+IF(D5<=10,F5),0) -> 0 | I5: HAAS | J5: =IF(SUM('Las Végas'!$D$26:$D$27)=0,0,SUM(Bahrein:AbuDhabi!$G$26:$G$27)) -> 12 | K5: =J4-J5 -> 380 | L5: =IF(J5="",0,(RANK(J5,$J$4:$J$13))) -> 10 | N5: PEREZ Sergio | O5: =IF('Las Végas'!$D$12="",0,SUM(Bahrein:AbuDhabi!$G$12)) -> 273 | P5: =O4-O5 -> 276 | Q5: =IF(O5="",0,(RANK(O5,$O$4:$O$23))) -> 2
A6: RUSSELL George | G6: =IFERROR(CHOOSE(D6,25,18,15,12,10,8,6,4,2,1)+IF(D6<=10,F6),0) -> 0 | I6: Mc LAREN | J6: =IF(SUM('Las Végas'!$D$29:$D$30)=0,0,SUM(Bahrein:AbuDhabi!$G$29:$G$30)) -> 284 | K6: =J5-J6 -> -272 | L6: 4 | N6: ALONSO Fernando | O6: =IF('Las Végas'!$D$14="",0,SUM(Bahrein:AbuDhabi!$G$14)) -> 200 | P6: =O5-O6 -> 73 | Q6: 4
G7: 0 | I7: FERRARI | J7: =IF(SUM('Las Végas'!$D$8:$D$9)=0,0,SUM(Bahrein:AbuDhabi!$G$8:$G$9)) -> 388 | K7: -104 | L7: 3 | N7: HAMILTON Lewis | O7: =IF('Las Végas'!$D$5="",0,SUM(Bahrein:AbuDhabi!$G$5)) -> 232 | P7: -32 | Q7: 3
A8: SAINZ.Jr Carlos | B8: FERRARI | G8: 0 | I8: WILLIAMS | J8: =IF(SUM('Las Végas'!$D$17:$D$18)=0,0,SUM(Bahrein:AbuDhabi!$G$17:$G$18)) -> 28 | K8: 360 | L8: 7 | N8: SAINZ.Jr Carlos | O8: =IF('Las Végas'!$D$8="",0,SUM(Bahrein:AbuDhabi!$G$8)) -> 200 | P8: 32 | Q8: 4
A9: LECLERC Charles | G9: 0 | I9: ALFA ROMÉO | J9: =IF(SUM('Las Végas'!$D$32:$D$33)=0,0,SUM(Bahrein:AbuDhabi!$G$32:$G$33)) -> 16 | K9: 12 | L9: 9 | N9: STROLL Lance | O9: =IF('Las Végas'!$D$15="",0,SUM(Bahrein:AbuDhabi!$G$15)) -> 73 | P9: 127 | Q9: 10
G10: 0 | I10: RED BULL RACING | J10: =IF(SUM('Las Végas'!$D$11:$D$12)=0,0,SUM(Bahrein:AbuDhabi!$G$11:$G$12)) -> 822 | K10: -806 | L10: 1 | N10: RUSSEL George | O10: =IF('Las Végas'!$D$6="",0,SUM(Bahrein:AbuDhabi!$G$6)) -> 160 | P10: -87 | Q10: 8
A11: VERSTAPPEN Max | B11: RED BULL RACING | G11: 0 | I11: ASTON MARTIN | J11: =IF(SUM('Las Végas'!$D$14:$D$15)=0,0,SUM(Bahrein:AbuDhabi!$G$14:$G$15)) -> 273 | K11: 549 | L11: 5 | N11: NORRIS Lando | O11: =IF('Las Végas'!$D$29="",0,SUM(Bahrein:AbuDhabi!$G$29)) -> 195 | P11: -35 | Q11: 6
A12: PEREZ Sergio | G12: 0 | I12: ALPINE F1 TEAM | J12: =IF(SUM('Las Végas'!$D$20:$D$21)=0,0,SUM(Bahrein:AbuDhabi!$G$20:$G$21)) -> 120 | K12: 153 | L12: 6 | N12: LECLERC Charles | O12: =IF('Las Végas'!$D$9="",0,SUM(Bahrein:AbuDhabi!$G$9)) -> 188 | P12: 7 | Q12: 7
G13: 0 | I13: ALPHA TAURI | J13: =IF(SUM('Las Végas'!$D$23:$D$24)=0,0,SUM(Bahrein:AbuDhabi!$G$23:$G$24)) -> 19 | K13: 101 | L13: 8 | N13: HULKENBERG Nico | O13: =IF('Las Végas'!$D$27="",0,SUM(Bahrein:AbuDhabi!$G$27)) -> 9 | P13: 179 | Q13: 16
A14: ALONSO Fernando | B14: ASTON MARTIN | G14: 0 | N14: BOTTAS Valtteri | O14: =IF('Las Végas'!$D$32="",0,SUM(Bahrein:AbuDhabi!$G$32)) -> 10 | P14: -1 | Q14: 15
A15: STROLL Lance | G15: 0 | N15: GASLY Pierre | O15: =IF('Las Végas'!$D$20="",0,SUM(Bahrein:AbuDhabi!$G$20)) -> 62 | P15: -52 | Q15: 11
G16: 0 | N16: OCON Sebastian | O16: =IF('Las Végas'!$D$21="",0,SUM(Bahrein:AbuDhabi!$G$21)) -> 58 | P16: 4 | Q16: 12
A17: ALBON Alexander | B17: WILLIAMS | G17: 0 | N17: PIASTRI Oscar | O17: =IF('Las Végas'!$D$30="",0,SUM(Bahrein:AbuDhabi!$G$30)) -> 89 | P17: -31 | Q17: 9
A18: SARGEANT Logan | G18: 0 | N18: GUANYU Zhou | O18: =IF('Las Végas'!$D$33="",0,SUM(Bahrein:AbuDhabi!$G$33)) -> 6 | P18: 83 | Q18: 17
G19: 0 | N19: ALBON Alexander | O19: =IF('Las Végas'!$D$17="",0,SUM(Bahrein:AbuDhabi!$G$17)) -> 27 | P19: -21 | Q19: 13
A20: GASLY Pierre | B20: ALPINE F1 TEAM | G20: 0 | N20: MAGNUSSEN Kevin | O20: =IF('Las Végas'!$D$26="",0,SUM(Bahrein:AbuDhabi!$G$26)) -> 3 | P20: 24 | Q20: 19
A21: OCON Sebastian | G21: 0 | N21: TSUNODA Yoki | O21: =IF('Las Végas'!$D$23="",0,SUM(Bahrein:AbuDhabi!$G$23)) -> 13 | P21: -10 | Q21: 14
G22: 0 | N22: RICCIARDO Daniel | O22: =IF('Las Végas'!$D$24="",0,SUM(Bahrein:AbuDhabi!$G$24)) -> 6 | P22: 7 | Q22: 17
A23: TSUNODA Yuki | B23: ALPHA TAURI | G23: 0 | N23: SARGEANT Logan | O23: =IF('Las Végas'!$D$18="",0,SUM(Bahrein:AbuDhabi!$G$18)) -> 1 | P23: 5 | Q23: 20
A24: RICCIARDO Daniel | G24: 0
G25: 0
A26: MAGNUSSEN Kevin | B26: HAAS | G26: 0
A27: HULKENBERG Nico | G27: 0
G28: 0
A29: NORRIS Lando | B29: Mc LAREN | G29: 0
A30: PIASTRI Oscar | G30: 0
G31: 0
A32: BOTTAS Valtteri | B32: ALFA ROMÉO | G32: 0
A33: GUANYU Zhou | G33: 0
G34: 0

Sheet Graphique
B1: =_xlfn.LET(_xlpm.tbl,_xlfn.VSTACK(Bahrein:AbuDhabi!$N$4:$O$35),_xlfn.TOROW(_xlfn._xlws.SORT(_xlfn.UNIQUE(_xlfn._xlws.FILTER(_xlfn.TAKE(_xlpm.tbl,,1),_xlfn.TAKE(_xlpm.tbl,,-1)<>0))))) -> ALBON Alexander | C1: ALONSO Fernando | D1: BOTTAS Valtteri | E1: GASLY Pierre | F1: GUANYU Zhou | G1: HAMILTON Lewis | H1: HULKENBERG Nico | I1: LECLERC Charles | J1: MAGNUSEN Kevin | K1: MAGNUSSEN Kevin | L1: MAGNUSSUN Kevin | M1: NORRIS Lando | N1: OCON Sebastian | O1: PEREZ Sergio | P1: PIASTRI Oscar | Q1: RICCIARDO Daniel | R1: RUSSEL George | S1: SAINZ.Jr Carlos | T1: SARGEANT Logan | U1: STROLL Lance | V1: TSUNODA Yoki | W1: VERSTAPPEN Max
A2: =_xlfn.LET(_xlpm.tbl,_xlfn.VSTACK(Bahrein:AbuDhabi!$N$4:$O$35),_xlfn._xlws.FILTER(_xlfn.TAKE(_xlpm.tbl,,-1),(_xlfn.TAKE(_xlpm.tbl,,1)<>0))) -> 25 | B2: =_xlfn.LET(_xlpm.tbl,_xlfn.VSTACK(Bahrein:AbuDhabi!$N$4:$O$35),_xlfn._xlws.FILTER(_xlfn.TAKE(_xlpm.tbl,,-1),(_xlfn.TAKE(_xlpm.tbl,,-1)<>0)*(_xlfn.TAKE(_xlpm.tbl,,1)=B$1))) -> 1 | C2: =_xlfn.LET(_xlpm.tbl,_xlfn.VSTACK(Bahrein:AbuDhabi!$N$4:$O$35),_xlfn._xlws.FILTER(_xlfn.TAKE(_xlpm.tbl,,-1),(_xlfn.TAKE(_xlpm.tbl,,-1)<>0)*(_xlfn.TAKE(_xlpm.tbl,,1)=C$1))) -> 15 | D2: =_xlfn.LET(_xlpm.tbl,_xlfn.VSTACK(Bahrein:AbuDhabi!$N$4:$O$35),_xlfn._xlws.FILTER(_xlfn.TAKE(_xlpm.tbl,,-1),(_xlfn.TAKE(_xlpm.tbl,,-1)<>0)*(_xlfn.TAKE(_xlpm.tbl,,1)=D$1))) -> 4 | E2: =_xlfn.LET(_xlpm.tbl,_xlfn.VSTACK(Bahrein:AbuDhabi!$N$4:$O$35),_xlfn._xlws.FILTER(_xlfn.TAKE(_xlpm.tbl,,-1),(_xlfn.TAKE(_xlpm.tbl,,-1)<>0)*(_xlfn.TAKE(_xlpm.tbl,,1)=E$1))) -> 4 | F2: =_xlfn.LET(_xlpm.tbl,_xlfn.VSTACK(Bahrein:AbuDhabi!$N$4:$O$35),_xlfn._xlws.FILTER(_xlfn.TAKE(_xlpm.tbl,,-1),(_xlfn.TAKE(_xlpm.tbl,,-1)<>0)*(_xlfn.TAKE(_xlpm.tbl,,1)=F$1))) -> 2 | G2: =_xlfn.LET(_xlpm.tbl,_xlfn.VSTACK(Bahrein:AbuDhabi!$N$4:$O$35),_xlfn._xlws.FILTER(_xlfn.TAKE(_xlpm.tbl,,-1),(_xlfn.TAKE(_xlpm.tbl,,-1)<>0)*(_xlfn.TAKE(_xlpm.tbl,,1)=G$1))) -> 10 | H2: =_xlfn.LET(_xlpm.tbl,_xlfn.VSTACK(Bahrein:AbuDhabi!$N$4:$O$35),_xlfn._xlws.FILTER(_xlfn.TAKE(_xlpm.tbl,,-1),(_xlfn.TAKE(_xlpm.tbl,,-1)<>0)*(_xlfn.TAKE(_xlpm.tbl,,1)=H$1))) -> 6 | I2: =_xlfn.LET(_xlpm.tbl,_xlfn.VSTACK(Bahrein:AbuDhabi!$N$4:$O$35),_xlfn._xlws.FILTER(_xlfn.TAKE(_xlpm.tbl,,-1),(_xlfn.TAKE(_xlpm.tbl,,-1)<>0)*(_xlfn.TAKE(_xlpm.tbl,,1)=I$1))) -> 6 | J2: =_xlfn.LET(_xlpm.tbl,_xlfn.VSTACK(Bahrein:AbuDhabi!$N$4:$O$35),_xlfn._xlws.FILTER(_xlfn.TAKE(_xlpm.tbl,,-1),(_xlfn.TAKE(_xlpm.tbl,,-1)<>0)*(_xlfn.TAKE(_xlpm.tbl,,1)=J$1))) -> 2 | K2: =_xlfn.LET(_xlpm.tbl,_xlfn.VSTACK(Bahrein:AbuDhabi!$N$4:$O$35),_xlfn._xlws.FILTER(_xlfn.TAKE(_xlpm.tbl,,-1),(_xlfn.TAKE(_xlpm.tbl,,-1)<>0)*(_xlfn.TAKE(_xlpm.tbl,,1)=K$1))) -> 1 | L2: =_xlfn.LET(_xlpm.tbl,_xlfn.VSTACK(Bahrein:AbuDhabi!$N$4:$O$35),_xlfn._xlws.FILTER(_xlfn.TAKE(_xlpm.tbl,,-1),(_xlfn.TAKE(_xlpm.tbl,,-1)<>0)*(_xlfn.TAKE(_xlpm.tbl,,1)=L$1))) -> 2 | M2: =_xlfn.LET(_xlpm.tbl,_xlfn.VSTACK(Bahrein:AbuDhabi!$N$4:$O$35),_xlfn._xlws.FILTER(_xlfn.TAKE(_xlpm.tbl,,-1),(_xlfn.TAKE(_xlpm.tbl,,-1)<>0)*(_xlfn.TAKE(_xlpm.tbl,,1)=M$1))) -> 4 | N2: =_xlfn.LET(_xlpm.tbl,_xlfn.VSTACK(Bahrein:AbuDhabi!$N$4:$O$35),_xlfn._xlws.FILTER(_xlfn.TAKE(_xlpm.tbl,,-1),(_xlfn.TAKE(_xlpm.tbl,,-1)<>0)*(_xlfn.TAKE(_xlpm.tbl,,1)=N$1))) -> 4 | O2: =_xlfn.LET(_xlpm.tbl,_xlfn.VSTACK(Bahrein:AbuDhabi!$N$4:$O$35),_xlfn._xlws.FILTER(_xlfn.TAKE(_xlpm.tbl,,-1),(_xlfn.TAKE(_xlpm.tbl,,-1)<>0)*(_xlfn.TAKE(_xlpm.tbl,,1)=O$1))) -> 18 | P2: =_xlfn.LET(_xlpm.tbl,_xlfn.VSTACK(Bahrein:AbuDhabi!$N$4:$O$35),_xlfn._xlws.FILTER(_xlfn.TAKE(_xlpm.tbl,,-1),(_xlfn.TAKE(_xlpm.tbl,,-1)<>0)*(_xlfn.TAKE(_xlpm.tbl,,1)=P$1))) -> 4 | Q2: =_xlfn.LET(_xlpm.tbl,_xlfn.VSTACK(Bahrein:AbuDhabi!$N$4:$O$35),_xlfn._xlws.FILTER(_xlfn.TAKE(_xlpm.tbl,,-1),(_xlfn.TAKE(_xlpm.tbl,,-1)<>0)*(_xlfn.TAKE(_xlpm.tbl,,1)=Q$1))) -> 6 | R2: =_xlfn.LET(_xlpm.tbl,_xlfn.VSTACK(Bahrein:AbuDhabi!$N$4:$O$35),_xlfn._xlws.FILTER(_xlfn.TAKE(_xlpm.tbl,,-1),(_xlfn.TAKE(_xlpm.tbl,,-1)<>0)*(_xlfn.TAKE(_xlpm.tbl,,1)=R$1))) -> 6 | S2: =_xlfn.LET(_xlpm.tbl,_xlfn.VSTACK(Bahrein:AbuDhabi!$N$4:$O$35),_xlfn._xlws.FILTER(_xlfn.TAKE(_xlpm.tbl,,-1),(_xlfn.TAKE(_xlpm.tbl,,-1)<>0)*(_xlfn.TAKE(_xlpm.tbl,,1)=S$1))) -> 12 | T2: =_xlfn.LET(_xlpm.tbl,_xlfn.VSTACK(Bahrein:AbuDhabi!$N$4:$O$35),_xlfn._xlws.FILTER(_xlfn.TAKE(_xlpm.tbl,,-1),(_xlfn.TAKE(_xlpm.tbl,,-1)<>0)*(_xlfn.TAKE(_xlpm.tbl,,1)=T$1))) -> 1 | U2: =_xlfn.LET(_xlpm.tbl,_xlfn.VSTACK(Bahrein:AbuDhabi!$N$4:$O$35),_xlfn._xlws.FILTER(_xlfn.TAKE(_xlpm.tbl,,-1),(_xlfn.TAKE(_xlpm.tbl,,-1)<>0)*(_xlfn.TAKE(_xlpm.tbl,,1)=U$1))) -> 8 | V2: =_xlfn.LET(_xlpm.tbl,_xlfn.VSTACK(Bahrein:AbuDhabi!$N$4:$O$35),_xlfn._xlws.FILTER(_xlfn.TAKE(_xlpm.tbl,,-1),(_xlfn.TAKE(_xlpm.tbl,,-1)<>0)*(_xlfn.TAKE(_xlpm.tbl,,1)=V$1))) -> 1 | W2: =_xlfn.LET(_xlpm.tbl,_xlfn.VSTACK(Bahrein:AbuDhabi!$N$4:$O$35),_xlfn._xlws.FILTER(_xlfn.TAKE(_xlpm.tbl,,-1),(_xlfn.TAKE(_xlpm.tbl,,-1)<>0)*(_xlfn.TAKE(_xlpm.tbl,,1)=W$1))) -> 25
A3: 18 | B3: 1 | C3: 30 | D3: 4 | E3: 4 | F3: 2 | G3: 20 | H3: 1 | I3: 6 | K3: 1 | M3: 8 | N3: 4 | O3: 43 | P3: 4 | Q3: 6 | R3: 18 | S3: 20 | T3: 1 | U3: 8 | V3: 2 | W3: 44
A4: 15 | B4: 1 | C4: 45 | D4: 4 | E4: 4 | F4: 2 | G4: 38 | H4: 6 | I4: 28 | K4: 1 | M4: 10 | N4: 4 | O4: 54 | P4: 4 | Q4: 6 | R4: 18 | S4: 20 | T4: 1 | U4: 20 | V4: 2 | W4: 69
A5: 12 | B5: 1 | C5: 60 | D5: 4 | E5: 8 | F5: 2 | G5: 48 | H5: 6 | I5: 34 | K5: 2 | M5: 10 | N5: 6 | O5: 87 | P5: 4 | Q5: 6 | R5: 28 | S5: 34 | T5: 1 | U5: 27 | V5: 2 | W5: 93
A6: 10 | B6: 1 | C6: 75 | D6: 4 | E6: 8 | F6: 2 | G6: 56 | H6: 6 | I6: 34 | K6: 2 | M6: 10 | N6: 6 | O6: 105 | P6: 5 | R6: 40 | S6: 44 | T6: 1 | U6: 27 | V6: 2 | W6: 119
A7: 8 | B7: 1 | C7: 75 | D7: 4 | E7: 14 | F7: 4 | G7: 56 | H7: 6 | I7: 42 | K7: 2 | M7: 12 | N7: 21 | O7: 105 | P7: 5 | R7: 40 | S7: 44 | U7: 27 | V7: 2 | W7: 119
A8: 6 | B8: 1 | C8: 93 | D8: 4 | E8: 15 | F8: 4 | G8: 69 | H8: 6 | I8: 42 | K8: 2 | M8: 12 | N8: 25 | O8: 105 | P8: 5 | R8: 50 | S8: 48 | U8: 27 | V8: 2 | W8: 144
A9: 4 | B9: 7 | C9: 99 | D9: 4 | E9: 15 | F9: 4 | G9: 87 | H9: 9 | I9: 54 | K9: 2 | M9: 12 | N9: 29 | O9: 117 | P9: 17 | R9: 65 | S9: 58 | U9: 35 | V9: 2 | W9: 170
A10: 1 | B10: 7 | C10: 117 | D10: 5 | E10: 16 | F10: 4 | G10: 102 | H10: 9 | I10: 72 | K10: 2 | M10: 24 | N10: 31 | O10: 126 | P10: 27 | R10: 65 | S10: 68 | U10: 37 | V10: 2 | W10: 195
A11: 0 | B11: 11 | C11: 131 | D11: 5 | E11: 16 | F11: 4 | G11: 106 | H11: 9 | I11: 74 | K11: 2 | M11: 42 | N11: 31 | O11: 148 | P11: 34 | R11: 72 | S11: 82 | U11: 44 | V11: 2 | W11: 229
A12: 0 | B12: 11 | C12: 137 | D12: 5 | E12: 16 | F12: 4 | G12: 121 | H12: 9 | I12: 80 | K12: 2 | M12: 60 | N12: 31 | O12: 156 | P12: 36 | R12: 82 | S12: 83 | U12: 44 | V12: 3 | W12: 255
A13: 0 | B13: 11 | C13: 139 | D13: 5 | E13: 22 | F13: 4 | G13: 133 | H13: 2 | I13: 99 | K13: 2 | M13: 69 | N13: 35 | O13: 171 | P13: 36 | R13: 90 | S13: 87 | U13: 45 | V13: 3 | W13: 281
A14: 0 | B14: 15 | C14: 149 | D14: 5 | E14: 37 | F14: 4 | G14: 148 | H14: 9 | I14: 99 | K14: 3 | M14: 75 | N14: 36 | O14: 189 | P14: 42 | R14: 99 | S14: 92 | U14: 47 | V14: 3 | W14: 314
A15: 0 | B15: 21 | C15: 168 | D15: 5 | E15: 37 | F15: 4 | G15: 156 | H15: 9 | I15: 111 | K15: 3 | M15: 79 | N15: 36 | O15: 201 | P15: 57 | R15: 99 | S15: 102 | U15: 47 | V15: 3 | W15: 339
A16: 0 | B16: 21 | C16: 170 | D16: 6 | E16: 45 | F16: 4 | G16: 164 | H16: 9 | I16: 123 | K16: 3 | M16: 42 | N16: 36 | O16: 219 | P16: 83 | R16: 109 | S16: 117 | U16: 47 | V16: 3 | W16: 364
A17: 0 | B17: 21 | C17: 170 | D17: 6 | E17: 46 | F17: 6 | G17: 180 | H17: 9 | I17: 135 | K17: 3 | M17: 115 | N17: 38 | O17: 223 | P17: 83 | R17: 109 | S17: 142 | U17: 47 | V17: 3 | W17: 374
A18: 0 | B18: 23 | C18: 174 | D18: 6 | E18: 46 | F18: 6 | G18: 400 | H18: 9 | I18: 145 | K18: 3 | M18: 136 | N18: 44 | O18: 223 | P18: 87 | R18: 115 | S18: 400 | U18: 47 | V18: 8 | W18: 400
A19: 0 | B19: 25 | C19: 183 | D19: 10 | E19: 56 | F19: 6 | G19: 194 | H19: 9 | I19: 151 | K19: 3 | M19: 159 | N19: 44 | O19: 224 | P19: 87 | R19: 132 | S19: 153 | U19: 47 | V19: 8 | W19: 433
A20: 0 | B20: 27 | C20: 183 | D20: 10 | E20: 56 | F20: 6 | G20: 201 | H20: 9 | I20: 166 | K20: 3 | M20: 169 | N20: 45 | O20: 240 | P20: 89 | R20: 143 | S20: 171 | U20: 53 | V20: 13 | W20: 466
A21: 0 | B21: 27 | C21: 183 | D21: 10 | E21: 62 | F21: 6 | G21: 220 | H21: 9 | I21: 170 | K21: 3 | M21: 195 | N21: 46 | O21: 240 | P21: 89 | R21: 151 | S21: 183 | U21: 53 | V21: 13 | W21: 491
A22: 44 | B22: 27 | C22: 198 | D22: 10 | E22: 62 | F22: 6 | G22: 226 | H22: 9 | I22: 188 | M22: 195 | N22: 58 | O22: 258 | R22: 156 | S22: 192 | U22: 63 | V22: 13 | W22: 524
A23: 43 | B23: 27 | C23: 200 | D23: 10 | E23: 62 | G23: 232 | I23: 188 | M23: 195 | N23: 58 | O23: 273 | R23: 160 | S23: 200 | U23: 73 | W23: 549
A24: 30 | C24: 200 | D24: 10 | G24: 232 | O24: 273 | R24: 160 | S24: 200 | U24: 73 | W24: 549
A25: 20
A26: 20
A27: 18
A28: 8
A29: 6
A30: 4
A31: 4
A32: 4
A33: 4
A34: 1
A35: 1
A36: 0
A37: 0
A38: 0
A39: 0
A40: 0
A41: 0
A42: 69
A43: 54
A44: 45
A45: 38
A46: 20
A47: 20
A48: 18
A49: 8
A50: 6
A51: 6
A52: 4
A53: 4
A54: 4
A55: 4
A56: 2
A57: 1
A58: 1
A59: 1
A60: 0
A61: 0
A62: 93
A63: 87
A64: 60
A65: 48
A66: 34
A67: 28
A68: 28
A69: 27
A70: 10
A71: 4
A72: 4
A73: 4
A74: 4
A75: 2
A76: 2
A77: 1
A78: 1
A79: 1
A80: 0
A81: 0
A82: 119
A83: 105
A84: 75
A85: 56
A86: 44
A87: 40
A88: 34
A89: 27
A90: 10
A91: 8
A92: 6
A93: 6
A94: 4
A95: 4
A96: 2
A97: 2
A98: 2
A99: 1
A100: 0
A101: 0
A102: 119
A103: 105
A104: 75
A105: 56
A106: 44
A107: 40
A108: 34
A109: 27
A110: 10
A111: 8
A112: 6
A113: 6
A114: 4
A115: 4
A116: 2
A117: 2
A118: 2
A119: 0
A120: 0
A121: 0
A122: 144
A123: 105
A124: 93
A125: 69
A126: 50
A127: 48
A128: 42
A129: 27
A130: 21
A131: 14
A132: 12
A133: 6
A134: 5
A135: 4
A136: 2
A137: 2
A138: 2
A139: 1
A140: 0
A141: 0
A142: 170
A143: 117
A144: 99
A145: 87
A146: 65
A147: 58
A148: 42
A149: 35
A150: 25
A151: 15
A152: 12
A153: 6
A154: 5
A155: 4
A156: 4
A157: 2
A158: 2
A159: 1
A160: 0
A161: 0
A162: 195
A163: 126
A164: 117
A165: 102
A166: 68
A167: 65
A168: 54
A169: 37
A170: 29
A171: 15
A172: 12
A173: 7
A174: 6
A175: 5
A176: 5
A177: 4
A178: 2
A179: 2
A180: 0
A181: 0
A182: 229
A183: 148
A184: 131
A185: 106
A186: 82
A187: 72
A188: 72
A189: 44
A190: 31
A191: 24
A192: 16
A193: 9
A194: 7
A195: 5
A196: 4
A197: 2
A198: 2
A199: 0
A200: 0
... 261 more rows
